Department Family,Entity,Date,Expense Type,Expense Area,Supplier,Post Code,Transaction Number,Total
Ministry of Defence,Ministry of Defence,17/06/2011,Rent and rates,Defence Infrastructure Organisation ,ANNINGTON RECEIVABLES LTD,W1U 1DR,808285,38869631.66
Ministry of Defence,Ministry of Defence,24/06/2011,Property leases,Defence Infrastructure Organisation ,ASPIRE DEFENCE LIMITED,SP9 7QD,811257,19822217.08
Ministry of Defence,Ministry of Defence,01/06/2011,PFI Project Charge ,Defence Infrastructure Organisation ,ASPIRE DEFENCE LIMITED,SP9 7QD,801424,19273870.27
Ministry of Defence,Ministry of Defence,07/06/2011,"Purchase of munitions, other inventory or fuel",Defence Equipment & Support,BP OIL INTERNATIONAL LIMITED,E14 5NJ,2000011808,18377548.34
Ministry of Defence,Ministry of Defence,28/06/2011,"Purchase of munitions, other inventory or fuel",Defence Equipment & Support,HESS ENERGY TRADING CO (U K) LTD,SW1X 7HY,2000012033,15186111.11
Ministry of Defence,Ministry of Defence,03/06/2011,"Purchase of munitions, other inventory or fuel",Defence Equipment & Support,SHELL MARINE PRODUCTS LIMITED,SE1 7NA,2000011792,14797779.38
Ministry of Defence,Ministry of Defence,17/06/2011,Government Procurement Card,Ministry of Defence,BARCLAYS BANK PLC,TS17 6YG,10819,9566114.32
Ministry of Defence,Ministry of Defence,17/06/2011,Purchase of buildings and military equipment ,Defence Equipment & Support,LOCKHEED MARTIN AERONAUTICS  COMPANY,,2000011921,9523444.44
Ministry of Defence,Ministry of Defence,20/06/2011,Establishment Support & Training Services ,Navy Command,VT FLAGSHIP LTD,PO6 4PR,809532,7531076.66
Ministry of Defence,Ministry of Defence,17/06/2011,Government Procurement Card,Ministry of Defence,BARCLAYS BANK PLC,TS17 6YG,10820,7511040.72
Ministry of Defence,Ministry of Defence,29/06/2011,Estate management,Defence Infrastructure Organisation ,MODERN HOUSING SOLUTIONS (PRIME)LIMITED,PE28 4QG,813527,7030257.47
Ministry of Defence,Ministry of Defence,21/06/2011,Purchase of buildings and military equipment ,Land Forces,HOLDFAST TRAINING SERVICES LTD,ME4 4UG,809757,6921615.87
Ministry of Defence,Ministry of Defence,27/06/2011,Estate management,Defence Infrastructure Organisation ,LANDMARC SUPPORT SERVICES LIMITED,SP3 4RS,812285,6858873.7
Ministry of Defence,Ministry of Defence,09/06/2011,Estate management,Central TLB,MODUS SERVICES LIMITED,SW1A 2HB,804785,6759014.04
Ministry of Defence,Ministry of Defence,17/06/2011,Estate management,Defence Infrastructure Organisation ,DEBUT SERVICES (SOUTH WEST)LIMITED,BA1 5AB,808418,6470332.7
Ministry of Defence,Ministry of Defence,17/06/2011,Food and clothing,Defence Equipment & Support,PURPLE FOODSERVICE SOLUTIONS LIMITED,GU32 3QD,808718,6024204.46
Ministry of Defence,Ministry of Defence,08/06/2011,Design services and minor equipment purchases,Central TLB,METEOROLOGICAL OFFICE,EX1 3PB,804133,5673666.66
Ministry of Defence,Ministry of Defence,28/06/2011,Design services and minor equipment purchases,Central TLB,METEOROLOGICAL OFFICE,EX1 3PB,812942,5673666.66
Ministry of Defence,Ministry of Defence,10/06/2011,Purchase of buildings and military equipment ,Defence Infrastructure Organisation ,DEBUT SERVICES LIMITED,B75 7RL,805295,5528312.91
Ministry of Defence,Ministry of Defence,21/06/2011,Estate management,Land Forces,HOLDFAST TRAINING SERVICES LTD,ME4 4UG,809757,5448459.09
Ministry of Defence,Ministry of Defence,10/06/2011,Property leases,Defence Infrastructure Organisation ,RMPA SERVICES PLC,CO2 7ST,805702,5442256.07
Ministry of Defence,Ministry of Defence,07/06/2011,Fees for professional services,Land Forces,HP ENTERPRISE SERVICES DEFENCE & SECURITY UK LIMITED,RG27 9XA,803573,4962821
Ministry of Defence,Ministry of Defence,22/06/2011,Estate management,Defence Infrastructure Organisation ,BABCOCK DYNCORP LIMITED,PE28 2EA,810049,4914757.98
Ministry of Defence,Ministry of Defence,22/06/2011,Grants to NDPBs,Land Forces,COUNCIL OF RESERVE FORCES' AND CADETS' ASSOCIATIONS,EC2A 4EY,810136,4665925
Ministry of Defence,Ministry of Defence,29/06/2011,Estate management,Defence Infrastructure Organisation ,INTERSERVE (DEFENCE) LTD,BS34 8YU,5000058539,4464873.9
Ministry of Defence,Ministry of Defence,06/06/2011,IT and communication services,Defence Equipment & Support,MICROSOFT LTD,,32545,4376517
Ministry of Defence,Ministry of Defence,27/06/2011,Purchase of buildings and military equipment ,Defence Infrastructure Organisation ,CARILLIONENTERPRISE LIMITED,B75 7RL,812076,4249469.44
Ministry of Defence,Ministry of Defence,16/06/2011,Estate management,Defence Infrastructure Organisation ,CARILLIONENTERPRISE LIMITED,B75 7RL,807738,3940540.94
Ministry of Defence,Ministry of Defence,10/06/2011,Rent and rates,Defence Infrastructure Organisation ,DEFENCE SUPPORT (ST ATHAN)  LIMITED,SW1E 5LB,805298,3745437.57
Ministry of Defence,Ministry of Defence,27/06/2011,Development costs for military equipment,Defence Equipment & Support,BAE SYSTEMS INTEGRATED SYSTEM TECHNOLOGIES LIMITED,PO31 8PF,812012,3600000
Ministry of Defence,Ministry of Defence,06/06/2011,Design services and minor equipment purchases,Air Command,SERCO LIMITED,RG27 9UY,803273,3490714.98
Ministry of Defence,Ministry of Defence,03/06/2011,Rental of plant and machinery,Defence Equipment & Support,ALC (SPC) LIMITED,OX25 2LD,802235,3401522.68
Ministry of Defence,Ministry of Defence,15/06/2011,Property leases,Defence Infrastructure Organisation ,COAST TO COAST WATER LTD,B26 3JZ,807181,3053839.35
Ministry of Defence,Ministry of Defence,13/06/2011,Property leases,Defence Infrastructure Organisation ,KELDA WATER SERVICES (ESTATES) LIMITED,S35 2PQ,806197,2708542.54
Ministry of Defence,Ministry of Defence,08/06/2011,Purchase of buildings and military equipment ,Defence Infrastructure Organisation ,DEBUT SERVICES LIMITED,B75 7RL,803967,2691847.25
Ministry of Defence,Ministry of Defence,24/06/2011,Rent and rates,Defence Infrastructure Organisation ,TOUCHSTONE CORPORATE PROPERTY SERVICES LIMITED,BA2 2AF,811869,2649885
Ministry of Defence,Ministry of Defence,13/06/2011,Transport hire charges,Land Forces,BABCOCK LAND (WHITEFLEET MANAGEMENT) LIMITED,BH23 6BS,805925,2645809.46
Ministry of Defence,Ministry of Defence,24/06/2011,Transport hire charges,Air Command,FBS LIMITED,RG24 8AG,811441,2508618.69
Ministry of Defence,Ministry of Defence,09/06/2011,"Purchase of munitions, other inventory or fuel",Air Command,BP INTERNATIONAL LIMITED,HP2 4UL,2000011830,2463386.07
Ministry of Defence,Ministry of Defence,21/06/2011,Estate management,Defence Infrastructure Organisation ,BABCOCK DYNCORP LIMITED,PE28 2EA,809596,2452511.8
Ministry of Defence,Ministry of Defence,28/06/2011,Purchase of buildings and military equipment ,Defence Infrastructure Organisation ,TURNER ESTATE SOLUTIONS LIMITED,KY11 2BL,813182,2372542
Ministry of Defence,Ministry of Defence,08/06/2011,Fees for professional services,Central TLB,DEFENCE MANAGEMENT (WATCHFIELD) LIMITED,SN6 8TS,803968,2295191.17
Ministry of Defence,Ministry of Defence,27/06/2011,Rent and rates,Central TLB,LONDON & REGIONAL (ST GEORGES  COURT) LIMITED,W1U 8EW,812293,2160000
Ministry of Defence,Ministry of Defence,16/06/2011,Food and clothing,Defence Equipment & Support,PURPLE FOODSERVICE SOLUTIONS LIMITED,GU32 3QD,808073,1998622.16
Ministry of Defence,Ministry of Defence,13/06/2011,Medical treatment & stores and welfare services.,Central TLB,SERVICES SOUND & VISION CORPORATION,SL9 8TN,806419,1998559
Ministry of Defence,Ministry of Defence,29/06/2011,Estate management,Defence Infrastructure Organisation ,LANDMARC SUPPORT SERVICES LIMITED,SP3 4RS,813486,1944043.9
Ministry of Defence,Ministry of Defence,13/06/2011,Transport hire charges,Air Command,BABCOCK LAND (WHITEFLEET MANAGEMENT) LIMITED,BH23 6BS,805925,1942377.78
Ministry of Defence,Ministry of Defence,14/06/2011,Externally delivered education and training.,Air Command,BABCOCK LAND LIMITED,BH23 9BS,806582,1905608.07
Ministry of Defence,Ministry of Defence,23/06/2011,Purchase of buildings and military equipment ,Defence Infrastructure Organisation ,SEFA CONTRACTORS JV,,3000005630,1901015.26
Ministry of Defence,Ministry of Defence,06/06/2011,Food and clothing,Defence Equipment & Support,PURPLE FOODSERVICE SOLUTIONS LIMITED,GU32 3QD,803222,1796535.84
Ministry of Defence,Ministry of Defence,01/06/2011,Purchase of buildings and military equipment ,Defence Infrastructure Organisation ,SEFA CONTRACTORS JV,,3000005545,1781700.1
Ministry of Defence,Ministry of Defence,23/06/2011,Food and clothing,Defence Equipment & Support,PURPLE FOODSERVICE SOLUTIONS LIMITED,GU32 3QD,811037,1772878.48
Ministry of Defence,Defence Science and Technology Laboratory,17/06/2011,IT Hardware,Infrastructure,SERCO LIMITED,,V - 9000133669 - 00111316,1770418.88
Ministry of Defence,Ministry of Defence,16/06/2011,Property leases,Land Forces,DEFENCE TRAINING SERVICES LIMITED,BA2 3RH,807783,1747972.99
Ministry of Defence,Ministry of Defence,10/06/2011,Purchase of buildings and military equipment ,Defence Infrastructure Organisation ,TURNER ESTATE SOLUTIONS LIMITED,KY11 2BL,805814,1691609.4
Ministry of Defence,Ministry of Defence,08/06/2011,Transport hire charges,Air Command,BABCOCK AEROSPACE LIMITED,BH23 6BS,803872,1639028
Ministry of Defence,Ministry of Defence,27/06/2011,Purchase of buildings and military equipment ,Defence Infrastructure Organisation ,MORGAN SINDALL PLC.,DH1 1TW,812328,1554063.6
Ministry of Defence,Ministry of Defence,06/06/2011,Purchase of buildings and military equipment ,Defence Infrastructure Organisation ,CARILLIONENTERPRISE LIMITED,B75 7RL,802878,1515142.92
Ministry of Defence,Defence Science and Technology Laboratory,10/06/2011,Facility Management Costs,Infrastructure,SERCO LIMITED,,V - 9000133476 - 00111243,1498791.59
Ministry of Defence,Ministry of Defence,29/06/2011,Medical treatment & stores and welfare services.,Central TLB,FRIMLEY PARK HOSPITAL NHS FOUNDATION TRUST,GU16 7UJ,813412,1487644.65
Ministry of Defence,Ministry of Defence,09/06/2011,Medical treatment & stores and welfare services.,Central TLB,UNIVERSITY HOSPITAL BIRMINGHAM NHS FOUNDATION TRUST,B29 6JS,805075,1468504.82
Ministry of Defence,Ministry of Defence,15/06/2011,Fees for professional services,Central TLB,SERCO LIMITED,RG27 9UY,807516,1393524.19
Ministry of Defence,Ministry of Defence,03/06/2011,Property leases,Defence Infrastructure Organisation ,FALCON SUPPORT SERVICES LIMITED,RG10 9JU,802378,1393148.78
Ministry of Defence,Ministry of Defence,22/06/2011,Medical treatment & stores and welfare services.,Air Command,SSAFA FAMILY HEALTH SERVICES,SE1 2LP,810522,1365645.96
Ministry of Defence,Ministry of Defence,07/06/2011,Purchase of buildings and military equipment ,Defence Infrastructure Organisation ,DEBUT SERVICES LIMITED,B75 7RL,803507,1307453.18
Ministry of Defence,Ministry of Defence,14/06/2011,Fees for professional services,Central TLB,CRANFIELD UNIVERSITY,MK43 0AL,806667,1249668.16
Ministry of Defence,Ministry of Defence,08/06/2011,Estate management,Defence Infrastructure Organisation ,INTERSERVE (DEFENCE) LTD,BS34 8YU,5000057377,1248831.61
Ministry of Defence,Ministry of Defence,27/06/2011,Grants to Reserves Forces and Cadets Association,Defence Infrastructure Organisation ,COUNCIL OF RESERVE FORCES' AND CADETS' ASSOCIATIONS,EC2A 4EY,812109,1240054
Ministry of Defence,Ministry of Defence,06/06/2011,Purchase of buildings and military equipment ,Defence Equipment & Support,MEGGITT TRAINING SYSTEMS INC,,803086,1226583.75
Ministry of Defence,Ministry of Defence,10/06/2011,Food and clothing,Defence Equipment & Support,PURPLE FOODSERVICE SOLUTIONS LIMITED,GU32 3QD,805682,1210944.06
Ministry of Defence,Ministry of Defence,01/06/2011,Property leases,Defence Infrastructure Organisation ,VEOLIA WATER NEVIS LIMITED,KY11 8UU,801763,1210163.46
Ministry of Defence,Ministry of Defence,17/06/2011,Property leases,Defence Infrastructure Organisation ,VEOLIA WATER NEVIS LIMITED,KY11 8UU,808842,1203163.46
Ministry of Defence,Ministry of Defence,02/06/2011,Design services and minor equipment purchases,Air Command,SERCO LIMITED,RG27 9UY,802131,1187455.53
Ministry of Defence,Ministry of Defence,27/06/2011,IT and communication services,Defence Equipment & Support,IBM UNITED KINGDOM LIMITED,PO6 3AE,812256,1157428.84
Ministry of Defence,Ministry of Defence,23/06/2011,Estate management,Defence Infrastructure Organisation ,MODERN HOUSING SOLUTIONS (PRIME)LIMITED,PE28 4QG,810905,1139849.5
Ministry of Defence,Ministry of Defence,17/06/2011,Purchase of general transport equipment,Defence Equipment & Support,AEBI SCHMIDT UK LIMITED,PE2 6GP,808264,1112983.2
Ministry of Defence,Ministry of Defence,22/06/2011,Design services and minor equipment purchases,Air Command,SERCO LIMITED,RG27 9UY,810496,1051218.24
Ministry of Defence,Ministry of Defence,16/06/2011,Property leases,Central TLB,MINERVA EDUCATION AND TRAINING  LIMITED,RG10 9JU,807927,1048305.56
Ministry of Defence,Ministry of Defence,17/06/2011,Purchase of information and communications technology,Defence Equipment & Support,HP ENTERPRISE SERVICES DEFENCE & SECURITY UK LIMITED,OX25 1LP,808545,1045941
Ministry of Defence,Ministry of Defence,24/06/2011,Development costs for military equipment,Defence Equipment & Support,MBDA UK LIMITED,SG1 2DA,811581,1037450.4
Ministry of Defence,Ministry of Defence,10/06/2011,Development costs for military equipment,Defence Equipment & Support,MBDA UK LIMITED,SG1 2DA,805519,1018310.4
Ministry of Defence,Ministry of Defence,20/06/2011,Government Procurement Card,Ministry of Defence,BARCLAYS BANK PLC,TS17 6YG,10821,963045.65
Ministry of Defence,Ministry of Defence,22/06/2011,Purchase of buildings and military equipment ,Defence Infrastructure Organisation ,BABCOCK DYNCORP LIMITED,PE28 2EA,810049,950233.64
Ministry of Defence,Ministry of Defence,13/06/2011,Purchase of buildings and military equipment ,Defence Infrastructure Organisation ,DEBUT SERVICES LIMITED,B75 7RL,806037,945743.92
Ministry of Defence,Ministry of Defence,27/06/2011,Purchase of buildings and military equipment ,Defence Infrastructure Organisation ,LEND LEASE CONSTRUCTION (EMEA) LIMITED,BA1 5AB,161137,930793.62
Ministry of Defence,Defence Science and Technology Laboratory,24/06/2011,Rent/Lease of Land & Bldgs,Infrastructure,QINETIQ LIMITED,,V - 9000133878 - 00111934,929179.6
Ministry of Defence,Ministry of Defence,14/06/2011,Estate management,Defence Infrastructure Organisation ,MODERN HOUSING SOLUTIONS (PRIME)LIMITED,PE28 4QG,806817,925901.19
Ministry of Defence,Defence Science and Technology Laboratory,10/06/2011,IS Support Service,Infrastructure,STERIA LIMITED,,V - 9000133423 - 00110296,922072.26
Ministry of Defence,Ministry of Defence,09/06/2011,Grants to NDPBs,Land Forces,ROYAL HOSPITAL,SW3 4SR,804970,916750
Ministry of Defence,Ministry of Defence,13/06/2011,Estate management,Defence Infrastructure Organisation ,SODEXO LTD,M50 0AL,806431,899923.68
Ministry of Defence,Ministry of Defence,06/06/2011,Estate management,Central TLB,Granada Enterprises,,CO AP03 016,885789.33
Ministry of Defence,Ministry of Defence,29/06/2011,Estate management,Defence Infrastructure Organisation ,DEBUT SERVICES LIMITED,B75 7RL,813342,883484.4
Ministry of Defence,Ministry of Defence,29/06/2011,Transport hire charges,Land Forces,RYDER DEUTSCHLAND GMBH,,5000058561,870708.4
Ministry of Defence,Ministry of Defence,27/06/2011,"Purchase of munitions, other inventory or fuel",Air Command,BP INTERNATIONAL LIMITED,HP2 4UL,2000012013,854499.03
Ministry of Defence,Ministry of Defence,16/06/2011,Estate management,Defence Infrastructure Organisation ,MODERN HOUSING SOLUTIONS (PRIME)LIMITED,PE28 2EA,807931,839328.01
Ministry of Defence,Ministry of Defence,29/06/2011,Estate management,Defence Infrastructure Organisation ,SERCO LIMITED,RG27 9UY,813667,835607.46
Ministry of Defence,Ministry of Defence,22/06/2011,Purchase of buildings and military equipment ,Defence Infrastructure Organisation ,DEBUT SERVICES LIMITED,B75 7RL,810148,834893.24
Ministry of Defence,Defence Science and Technology Laboratory,17/06/2011,Sub Contracted Research,Programme Office,QINETIQ LIMITED,,V - 9000133667 - 00111624,826992.21
Ministry of Defence,Ministry of Defence,03/06/2011,Estate management,Air Command,SERCO LIMITED,RG27 9UY,802662,815026.19
Ministry of Defence,Ministry of Defence,17/06/2011,Purchase of buildings and military equipment ,Defence Infrastructure Organisation ,DEBUT SERVICES (SOUTH WEST)LIMITED,BA1 5AB,808418,814050.18
Ministry of Defence,Ministry of Defence,03/06/2011,Estate management,Defence Infrastructure Organisation ,BEZIRKSREGIERUNG DUESSELDORF,,5000057259,807319.95
Ministry of Defence,Ministry of Defence,15/06/2011,Purchase of buildings - Non Dwellings,Navy Command,VT FLAGSHIP LTD,PO6 4PR,807613,804621.6
Ministry of Defence,Ministry of Defence,09/06/2011,General services and support,Defence Equipment & Support,MARSHALL OF CAMBRIDGE AEROSPACE LIMITED,CB5 8RX,804769,799505.4
Ministry of Defence,Ministry of Defence,21/06/2011,Purchase of buildings and military equipment ,Defence Equipment & Support,DEVONPORT ROYAL DOCKYARD LIMITED,PL1 4SG,809704,768763.94
Ministry of Defence,Ministry of Defence,24/06/2011,Payment of utilities,Air Command,TOTAL GAS & POWER LIMITED,RH1 1RX,811867,752051.52
Ministry of Defence,Ministry of Defence,16/06/2011,Grants to NDPBs,Air Command,ROYAL AIR FORCE MUSEUM,NW9 5LL,808108,750000
Ministry of Defence,Ministry of Defence,13/06/2011,Design services and minor equipment purchases,Defence Equipment & Support,POLAR SHIP INVEST II AS,,3000005586,736250
Ministry of Defence,Ministry of Defence,14/06/2011,Design services and minor equipment purchases,Defence Equipment & Support,K LINE OFFSHORE AS,,3000005588,734666.48
Ministry of Defence,Ministry of Defence,01/06/2011,Design services and minor equipment purchases,Defence Equipment & Support,CENTERPRISE INTERNATIONAL LTD,RG24 8GQ,801481,729665.8
Ministry of Defence,Ministry of Defence,07/06/2011,Rental of plant and machinery,Defence Equipment & Support,BARLOWORLD HANDLING LTD,WA3 3JD,803442,726634.59
Ministry of Defence,Ministry of Defence,24/06/2011,Purchase of buildings and military equipment ,Defence Equipment & Support,DEVONPORT ROYAL DOCKYARD LIMITED,PL1 4SG,811396,726128.6
Ministry of Defence,Ministry of Defence,27/06/2011,Medical treatment & stores and welfare services.,Central TLB,PLYMOUTH HOSPITALS NHS TRUST,PL3 5QZ,161150,720000
Ministry of Defence,Ministry of Defence,14/06/2011,Rent and rates,Defence Infrastructure Organisation ,WILTSHIRE COUNCIL,BA14 4DS,807040,716098.31
Ministry of Defence,Ministry of Defence,20/06/2011,"Purchase of munitions, other inventory or fuel",Defence Equipment & Support,THE MAERSK COMPANY LTD,NE1 2HJ,809494,709900
Ministry of Defence,Ministry of Defence,10/06/2011,Payment of utilities,Defence Infrastructure Organisation ,SSE ENERGY SUPPLY LIMITED,PH1 3AQ,805763,709361.57
Ministry of Defence,Ministry of Defence,13/06/2011,Transport hire charges,Defence Equipment & Support,BABCOCK LAND (WHITEFLEET MANAGEMENT) LIMITED,BH23 6BS,805925,704112.02
Ministry of Defence,Ministry of Defence,22/06/2011,Estate management,Air Command,SERCO LIMITED,RG27 9UY,810496,697645.95
Ministry of Defence,Ministry of Defence,08/06/2011,Estate management,Defence Infrastructure Organisation ,MODERN HOUSING SOLUTIONS (PRIME)LIMITED,WV1 4HY,804140,697551.96
Ministry of Defence,Ministry of Defence,22/06/2011,Estate management,Defence Infrastructure Organisation ,PRIDE (SERP) LTD,GU11 2ER,810442,696791.8
Ministry of Defence,Defence Science and Technology Laboratory,03/06/2011,Sub Contracted Work,Operations,QINETIQ LIMITED,,V - 9000133275 - 00110499,689744.75
Ministry of Defence,Ministry of Defence,22/06/2011,Development costs for military equipment,Defence Equipment & Support,MBDA UK LIMITED,SG1 2DA,5000058190,686269.57
Ministry of Defence,Ministry of Defence,09/06/2011,Grants to NDPBs,Navy Command,SEA CADET CORPS,SE1 7JF,804989,684362
Ministry of Defence,Ministry of Defence,09/06/2011,Payment of utilities,Air Command,TOTAL GAS & POWER LIMITED,RH1 1RX,805061,655181.19
Ministry of Defence,Ministry of Defence,08/06/2011,IT and communication services,Defence Equipment & Support,THE VOLPE NATIONAL  TRANSPORTATION SYSTEMS CENTER,,1000001477,648148.15
Ministry of Defence,Ministry of Defence,21/06/2011,Estate management,Defence Infrastructure Organisation ,SERCO LIMITED,RG27 9UY,809918,634838.78
Ministry of Defence,Ministry of Defence,07/06/2011,Estate management,Defence Infrastructure Organisation ,INTERSERVE (DEFENCE) LTD,BS34 8YU,5000057338,631664.34
Ministry of Defence,Ministry of Defence,08/06/2011,Purchase of buildings and military equipment ,Defence Infrastructure Organisation ,BABCOCK DYNCORP LIMITED,PE28 2EA,803873,627326.4
Ministry of Defence,Ministry of Defence,24/06/2011,IT and communication services,Central TLB,LOGICA UK LIMITED,CF31 9AP,811563,614705.09
Ministry of Defence,Ministry of Defence,24/06/2011,General services and support,Land Forces,FBS LIMITED,RG24 8AG,811441,609434.53
Ministry of Defence,Ministry of Defence,22/06/2011,"Purchase of munitions, other inventory or fuel",Defence Equipment & Support,MOLECULAR PRODUCTS LIMITED,CM6 2LT,810301,606420
Ministry of Defence,Ministry of Defence,06/06/2011,IT and communication services,Defence Equipment & Support,LOCKHEED MARTIN UK LIMITED,GU14 6TQ,803060,599189
Ministry of Defence,Ministry of Defence,20/06/2011,Estate management,Defence Infrastructure Organisation ,MODERN HOUSING SOLUTIONS (PRIME)LIMITED,PE28 4QG,809224,592868.73
Ministry of Defence,Ministry of Defence,20/06/2011,Design services and minor equipment purchases,Air Command,BABCOCK SUPPORT SERVICES LIMITED,BH23 6BS,808923,584621.46
Ministry of Defence,Ministry of Defence,14/06/2011,Fees for professional services,Land Forces,BABCOCK LAND LIMITED,BH23 9BS,806582,584359.34
Ministry of Defence,Defence Science and Technology Laboratory,10/06/2011,IT Software,Infrastructure,ORACLE CORPORATION UK LIMITED,,V - 9000133367 - 00110115,582094.4
Ministry of Defence,Ministry of Defence,08/06/2011,Design services and minor equipment purchases,Air Command,VT FLAGSHIP LTD,PO6 4PR,804402,577017.86
Ministry of Defence,Ministry of Defence,23/06/2011,Payment of utilities,Defence Infrastructure Organisation ,SSE ENERGY SUPPLY LIMITED,PH1 3AQ,811120,574545.81
Ministry of Defence,Ministry of Defence,08/06/2011,Estate management,Land Forces,HOLDFAST TRAINING SERVICES LTD,ME4 4UG,804071,571204.16
Ministry of Defence,Ministry of Defence,22/06/2011,Payment of utilities,Defence Infrastructure Organisation ,SSE ENERGY SUPPLY LIMITED,PH1 3AQ,810524,569614.3
Ministry of Defence,Ministry of Defence,14/06/2011,Payment of utilities,Defence Infrastructure Organisation ,SSE ENERGY SUPPLY LIMITED,PH1 3AQ,806962,568075.93
Ministry of Defence,Ministry of Defence,22/06/2011,Fees for professional services,Central TLB,LOGICA UK LIMITED,CF31 9AP,810272,561980.26
Ministry of Defence,Ministry of Defence,24/06/2011,Design services and minor equipment purchases,Air Command,FBS LIMITED,RG24 8AG,811441,561959.54
Ministry of Defence,Ministry of Defence,01/06/2011,"Purchase of munitions, other inventory or fuel",Defence Equipment & Support,BP OIL INTERNATIONAL LIMITED,TW16 7BP,2000011751,558939.81
Ministry of Defence,Ministry of Defence,10/06/2011,Purchase of buildings and military equipment ,Defence Infrastructure Organisation ,VSM ESTATES LIMITED,B32 1AF,805840,532063.2
Ministry of Defence,Ministry of Defence,22/06/2011,Fuel for military use,Land Forces,ARVAL UK LTD,SN5 6PE,810034,528357.33
Ministry of Defence,Ministry of Defence,24/06/2011,Food and clothing,Defence Infrastructure Organisation ,COMPASS CONTRACT SERVICES (U K)LIMITED,B45 9PZ,811366,528226.99
Ministry of Defence,Met Office,15/06/2011,Accommodation,Chief Financial Officer,Stratus Integrated Services Ltd,,308631,526800.3
Ministry of Defence,Ministry of Defence,15/06/2011,Food and clothing,Defence Equipment & Support,PURPLE FOODSERVICE SOLUTIONS LIMITED,GU32 3QD,807470,525369.8
Ministry of Defence,Ministry of Defence,10/06/2011,Rent and rates,Defence Infrastructure Organisation ,LONDON BOROUGH OF HILLINGDON,UB8 1UW,805500,524080.51
Ministry of Defence,Ministry of Defence,21/06/2011,Food and clothing,Defence Infrastructure Organisation ,ARAMARK LTD,LS16 6QY,809578,512576.44
Ministry of Defence,Ministry of Defence,27/06/2011,Estate management,Central TLB,MODUS SERVICES LIMITED,SW1A 2HB,812324,500131.46
Ministry of Defence,Ministry of Defence,27/06/2011,Estate management,Defence Infrastructure Organisation ,LEND LEASE CONSTRUCTION (EMEA) LIMITED,BA1 5AB,161137,500000
Ministry of Defence,Ministry of Defence,08/06/2011,Fuel for military use,Land Forces,ARVAL UK LTD,SN5 6PE,803860,499143.03
Ministry of Defence,Defence Science and Technology Laboratory,17/06/2011,Sub Contracted Research,Programme Office,QINETIQ LIMITED,,V - 9000133667 - 00110097,478077
Ministry of Defence,Ministry of Defence,20/06/2011,Estate management,Defence Infrastructure Organisation ,SODEXO LTD,M50 0AL,809442,472267.42
Ministry of Defence,Ministry of Defence,28/06/2011,Externally delivered education and training.,Land Forces,G4S FSI LIMITED,SM1 4LD,812843,470193.65
Ministry of Defence,Ministry of Defence,16/06/2011,Purchase of buildings and military equipment ,Defence Infrastructure Organisation ,VOLKER STEVIN LIMITED,EN11 9BX,808228,468261.6
Ministry of Defence,Ministry of Defence,27/06/2011,Design services and minor equipment purchases,Air Command,SERCO LIMITED,RG27 9UY,812563,467588.57
Ministry of Defence,Ministry of Defence,24/06/2011,Rental of plant and machinery,Defence Equipment & Support,BARLOWORLD HANDLING LTD,WA3 3JD,811288,466614.99
Ministry of Defence,Ministry of Defence,14/06/2011,Purchase of buildings and military equipment ,Defence Infrastructure Organisation ,PRIDE (SERP) LTD,GU11 2ER,806894,457303.8
Ministry of Defence,Ministry of Defence,03/06/2011,Medical treatment & stores and welfare services.,Central TLB,UNIVERSITY HOSPITAL BIRMINGHAM NHS FOUNDATION TRUST,B29 6JS,802735,447837.01
Ministry of Defence,Ministry of Defence,13/06/2011,"Purchase of munitions, other inventory or fuel",Defence Equipment & Support,THE MAERSK COMPANY LTD,E1 8EP,2000011878,446951.14
Ministry of Defence,Defence Science and Technology Laboratory,03/06/2011,Sub Contracted Research,Programme Office,ROLLS ROYCE PLC,,V - 9000133196 - 00106185,443012
Ministry of Defence,Defence Science and Technology Laboratory,24/06/2011,Sub Contracted Research,Programme Office,SELEX GALILEO LIMITED,,V - 9000133881 - 00111815,435956
Ministry of Defence,Ministry of Defence,16/06/2011,Design services and minor equipment purchases,Air Command,COMPASS GROUP UK AND IRELAND LIMITED,B45 9PZ,807761,433764.74
Ministry of Defence,Ministry of Defence,07/06/2011,Food and clothing,Defence Equipment & Support,PURPLE FOODSERVICE SOLUTIONS LIMITED,GU32 3QD,803722,426876.41
Ministry of Defence,Ministry of Defence,13/06/2011,Purchase of buildings and military equipment ,Defence Infrastructure Organisation ,MODERN HOUSING SOLUTIONS (PRIME)LIMITED,PE28 4QG,806254,426307.76
Ministry of Defence,Ministry of Defence,24/06/2011,Estate management,Defence Infrastructure Organisation ,SERCO LIMITED,RG27 9UY,811783,423168.13
Ministry of Defence,Ministry of Defence,14/06/2011,Design services and minor equipment purchases,Defence Equipment & Support,REM STAR AS,,3000005595,419355.05
Ministry of Defence,Ministry of Defence,01/06/2011,Design services and minor equipment purchases,Air Command,SERCO LIMITED,RG27 9UY,801720,416862.39
Ministry of Defence,Ministry of Defence,06/06/2011,Purchase of buildings and military equipment ,Defence Infrastructure Organisation ,DEBUT SERVICES LIMITED,B75 7RL,802920,416419.93
Ministry of Defence,Ministry of Defence,14/06/2011,Purchase of buildings and military equipment ,Defence Infrastructure Organisation ,CARILLIONENTERPRISE LIMITED,B75 7RL,806638,414751.79
Ministry of Defence,Ministry of Defence,13/06/2011,Purchase of buildings and military equipment ,Defence Infrastructure Organisation ,CARILLIONENTERPRISE LIMITED,B75 7RL,805984,412354.75
Ministry of Defence,Ministry of Defence,24/06/2011,Payment of utilities,Defence Infrastructure Organisation ,NEW ENERGIE GMBH,,5000058428,409328.82
Ministry of Defence,Ministry of Defence,17/06/2011,Rent and rates,Defence Infrastructure Organisation ,SHEPWAY DISTRICT COUNCIL,CT20 2QY,808763,409185
Ministry of Defence,Ministry of Defence,13/06/2011,Food and clothing,Defence Infrastructure Organisation ,ISS MEDICLEAN LIMITED,GU21 5RW,806179,407887.53
Ministry of Defence,Ministry of Defence,22/06/2011,Estate management,Defence Infrastructure Organisation ,SODEXO LTD,M50 0AL,810506,403907.41
Ministry of Defence,Ministry of Defence,20/06/2011,Payment of utilities,Central TLB,SSE ENERGY SUPPLY LIMITED,PH1 3AQ,809458,399246.13
Ministry of Defence,Ministry of Defence,17/06/2011,Design services and minor equipment purchases,Defence Equipment & Support,QINETIQ LIMITED,PO12 2AG,808721,398940
Ministry of Defence,Ministry of Defence,14/06/2011,Fees for professional services,Defence Infrastructure Organisation ,GVA GRIMLEY LIMITED,B1 2JB,806738,398245.72
Ministry of Defence,Ministry of Defence,01/06/2011,Estate management,Central TLB,BIRMINGHAM CITY UNIVERSITY,B42 2SU,801455,396192
Ministry of Defence,Ministry of Defence,01/06/2011,"Transporation of personnel, freight and travel expenses",Central TLB,Hafif Travel & Tourism Ltd,,CO AP03 020,394770.12
Ministry of Defence,Ministry of Defence,07/06/2011,Purchase of buildings and military equipment ,Defence Infrastructure Organisation ,BABCOCK DYNCORP LIMITED,PE28 2EA,803425,394272.57
Ministry of Defence,Ministry of Defence,27/06/2011,Payment of utilities,Air Command,TOTAL GAS & POWER LIMITED,RH1 1RX,812637,394066.74
Ministry of Defence,Ministry of Defence,22/06/2011,Estate management,Defence Infrastructure Organisation ,TURNER FACILITIES MANAGEMENT LTD,G51 3EQ,810564,392973.18
Ministry of Defence,Defence Science and Technology Laboratory,24/06/2011,Sub Contracted Research,Programme Office,SELEX GALILEO LIMITED,,V - 9000133882 - 00110231,379986
Ministry of Defence,Ministry of Defence,24/06/2011,Rent and rates,Central TLB,CHARLES HUBBARD & PARTNERST/A EDMUND KIRBY,L3 9NY,811348,379419.04
Ministry of Defence,Ministry of Defence,08/06/2011,Estate management,Defence Infrastructure Organisation ,MODERN HOUSING SOLUTIONS (PRIME)LIMITED,PE28 4QG,804139,378246.62
Ministry of Defence,Ministry of Defence,14/06/2011,Design services and minor equipment purchases,Defence Equipment & Support,BAE SYSTEMS INTEGRATED SYSTEM TECHNOLOGIES LIMITED,PO31 8PF,806593,377914
Ministry of Defence,Ministry of Defence,21/06/2011,Payment of utilities,Defence Infrastructure Organisation ,SVO VERTRIEB GMBH,,5000058075,377249.23
Ministry of Defence,Ministry of Defence,10/06/2011,Property leases,Defence Infrastructure Organisation ,COVESEA LIMITED,EH2 2PJ,805275,372806.91
Ministry of Defence,Ministry of Defence,09/06/2011,Property leases,Defence Infrastructure Organisation ,ROSELEAD LIMITED,CB1 2JD,804967,371652.32
Ministry of Defence,Ministry of Defence,23/06/2011,Purchase of general transport equipment,Defence Equipment & Support,AEBI SCHMIDT UK LIMITED,PE2 6GP,810615,370994.4
Ministry of Defence,Ministry of Defence,13/06/2011,Payment of utilities,Defence Infrastructure Organisation ,ELECTRICITY AUTHORITY OF CYPRUS,BFPO 53,4000005378,368593.13
Ministry of Defence,Defence Science and Technology Laboratory,24/06/2011,Sub Contracted Research,Programme Office,SELEX GALILEO LIMITED,,V - 9000133881 - 00111879,364595.74
Ministry of Defence,Ministry of Defence,20/06/2011,Development costs for military equipment,Defence Equipment & Support,BAE SYSTEMS INTEGRATED SYSTEM TECHNOLOGIES LIMITED,PO31 8PF,808930,360000
Ministry of Defence,Ministry of Defence,10/06/2011,Purchase of buildings and military equipment ,Defence Infrastructure Organisation ,CARILLIONENTERPRISE LIMITED,B75 7RL,805232,354705
Ministry of Defence,Ministry of Defence,22/06/2011,Purchase of buildings and military equipment ,Defence Infrastructure Organisation ,TURNER FACILITIES MANAGEMENT LTD,G51 3EQ,810564,353639.98
Ministry of Defence,Ministry of Defence,28/06/2011,Payment of utilities,Air Command,COUNCIL OF RESERVE FORCES' AND CADETS' ASSOCIATIONS,EC2A 4EY,812792,353169
Ministry of Defence,Ministry of Defence,24/06/2011,Estate management,Air Command,SSI SCHAEFER LTD,SP10 5QZ,811813,351562.08
Ministry of Defence,Ministry of Defence,03/06/2011,Estate management,Defence Infrastructure Organisation ,OBERFINANZDIREKTION NIEDERSACHSEN,,5000057284,351379.56
Ministry of Defence,Ministry of Defence,10/06/2011,Estate management,Defence Infrastructure Organisation ,TURNER FACILITIES MANAGEMENT LTD,G51 3EQ,805815,345808.4
Ministry of Defence,Ministry of Defence,13/06/2011,Estate management,Defence Infrastructure Organisation ,MODERN HOUSING SOLUTIONS (PRIME)LIMITED,PE28 4QG,806254,345337.8
Ministry of Defence,Ministry of Defence,22/06/2011,Design services and minor equipment purchases,Defence Equipment & Support,MBDA UK LIMITED,SG1 2DA,810289,343227
Ministry of Defence,Ministry of Defence,10/06/2011,Design services and minor equipment purchases,Defence Equipment & Support,EUROCOPTER,,5000057511,341386.09
Ministry of Defence,Ministry of Defence,21/06/2011,Purchase of inventory and services ,Central TLB,UNIVERSITY HOSPITAL BIRMINGHAM NHS FOUNDATION TRUST,B29 6JS,809974,341314.44
Ministry of Defence,Ministry of Defence,24/06/2011,Estate management,Defence Infrastructure Organisation ,COMPASS CONTRACT SERVICES (U K)LIMITED,B45 9PZ,811366,340936.38
Ministry of Defence,Ministry of Defence,27/06/2011,Estate management,Defence Infrastructure Organisation ,SERCO LIMITED,RG27 9UY,812563,338870.68
Ministry of Defence,Ministry of Defence,10/06/2011,Design services and minor equipment purchases,Defence Equipment & Support,ROLLS-ROYCE TURBOMECA LIMITED,SW1X 7HH,805711,337315
Ministry of Defence,Ministry of Defence,13/06/2011,Transport hire charges,Navy Command,BABCOCK LAND (WHITEFLEET MANAGEMENT) LIMITED,BH23 6BS,805925,335297.77
Ministry of Defence,Ministry of Defence,09/06/2011,Design services and minor equipment purchases,Command Joint Operations,VAN WIJNGAARDEN MARINE SERVICES B V,,3000005579,333029
Ministry of Defence,Ministry of Defence,20/06/2011,Design services and minor equipment purchases,Defence Equipment & Support,COBHAM FLIGHT INSPECTION  LIMITED,DL2 1NJ,809013,332965
Ministry of Defence,Ministry of Defence,16/06/2011,Medical treatment & stores and welfare services.,Central TLB,SOUTH TEES HOSPITALS NHS TRUST,TS4 3BW,808142,332776
Ministry of Defence,Ministry of Defence,28/06/2011,Medical treatment & stores and welfare services.,Central TLB,SOUTH TEES HOSPITALS NHS TRUST,TS4 3BW,813138,332776
Ministry of Defence,Ministry of Defence,23/06/2011,Purchase of inventory and services ,Defence Equipment & Support,ITALIAN GOVERNMENT,,5000058315,328929.62
Ministry of Defence,Ministry of Defence,20/06/2011,Purchase of inventory and services ,Defence Equipment & Support,FENTON PHARMACEUTICALS LTD,W1U 6NS,809097,328132.9
Ministry of Defence,Defence Science and Technology Laboratory,10/06/2011,IT Hardware,Infrastructure,STERIA LIMITED,,V - 9000133423 - 00110297,324773.95
Ministry of Defence,Ministry of Defence,28/06/2011,Medical treatment & stores and welfare services.,Central TLB,UNIVERSITY HOSPITAL BIRMINGHAM NHS FOUNDATION TRUST,B29 6JS,813191,322336
Ministry of Defence,Ministry of Defence,20/06/2011,Transport hire charges,Land Forces,BABCOCK LAND (WHITEFLEET MANAGEMENT) LIMITED,BH23 6BS,808919,322091.08
Ministry of Defence,Ministry of Defence,07/06/2011,Payment of utilities,Defence Infrastructure Organisation ,TOTAL GAS & POWER LIMITED,RH1 1RX,803797,321703.8
Ministry of Defence,Ministry of Defence,08/06/2011,Estate management,Defence Infrastructure Organisation ,TURNER FACILITIES MANAGEMENT LTD,G51 3EQ,804387,318994.48
Ministry of Defence,Ministry of Defence,24/06/2011,Purchase of buildings and military equipment ,Defence Infrastructure Organisation ,DEBUT SERVICES LIMITED,B75 7RL,811389,317606.78
Ministry of Defence,Ministry of Defence,16/06/2011,Purchase of inventory and services ,Defence Equipment & Support,HESCO BASTION LTD,LS9 0NP,807855,316021.64
Ministry of Defence,Ministry of Defence,08/06/2011,IT and communication services,Land Forces,ALLOCATE SOFTWARE PLC,W1J 9ER,803844,316000
Ministry of Defence,Ministry of Defence,09/06/2011,Purchase of buildings and military equipment ,Defence Infrastructure Organisation ,SEFA CONTRACTORS JV,,3000005577,313475.68
Ministry of Defence,Ministry of Defence,01/06/2011,Estate management,Defence Infrastructure Organisation ,MODERN HOUSING SOLUTIONS (PRIME)LIMITED,PE28 4QG,801628,310779.13
Ministry of Defence,Ministry of Defence,22/06/2011,Payment of utilities,Land Forces,SSE ENERGY SUPPLY LIMITED,PH1 3AQ,810524,310757.33
Ministry of Defence,Ministry of Defence,20/06/2011,Property leases,Defence Infrastructure Organisation ,BANNOCKBURN HOMES LIMITED,EH2 1DF,808935,306911.95
Ministry of Defence,Ministry of Defence,17/06/2011,Payment of utilities,Air Command,SSE ENERGY SUPPLY LIMITED,PH1 3AQ,808786,305617.12
Ministry of Defence,Ministry of Defence,09/06/2011,Estate management,Defence Infrastructure Organisation ,MODERN HOUSING SOLUTIONS (PRIME)LIMITED,PE28 4QG,804784,304966.55
Ministry of Defence,Ministry of Defence,17/06/2011,Estate management,Defence Infrastructure Organisation ,BEZIRKSREGIERUNG DUESSELDORF,,5000057762,302820.26
Ministry of Defence,Ministry of Defence,14/06/2011,Payment of utilities,Land Forces,SSE ENERGY SUPPLY LIMITED,PH1 3AQ,806962,302281.51
Ministry of Defence,Ministry of Defence,10/06/2011,Estate management,Air Command,VT FLAGSHIP LTD,PO6 4PR,805841,301630.31
Ministry of Defence,Ministry of Defence,24/06/2011,Estate management,Air Command,T.G. POWER LTD,G51 3EQ,811833,301630.31
Ministry of Defence,Royal Hospital Chelsea GIA,21/06/2011,Insurance,Royal Hospital Chelsea,Towergate Riskline,,PIN118202,300045.65
Ministry of Defence,Defence Science and Technology Laboratory,24/06/2011,Sub Contracted Work,Programme Office,QINETIQ LIMITED,,V - 9000133878 - 00111272,300000
Ministry of Defence,Ministry of Defence,28/06/2011,Property leases,Defence Infrastructure Organisation ,ASPIRE DEFENCE LIMITED,SP9 7QD,812716,299184.74
Ministry of Defence,Ministry of Defence,09/06/2011,IT and communication services,Defence Equipment & Support,IBM UNITED KINGDOM LIMITED,PO6 3AE,804711,296670.63
Ministry of Defence,Ministry of Defence,29/06/2011,Purchase of buildings and military equipment ,Defence Infrastructure Organisation ,DEBUT SERVICES LIMITED,B75 7RL,813342,294408.68
Ministry of Defence,Ministry of Defence,10/06/2011,Payment of utilities,Defence Infrastructure Organisation ,SSE ENERGY SUPPLY LIMITED,PO9 5JB,805761,293507.5
Ministry of Defence,Ministry of Defence,23/06/2011,Food and clothing,Defence Infrastructure Organisation ,ARAMARK LTD,LS16 6QY,810635,290197.28
Ministry of Defence,Defence Science and Technology Laboratory,17/06/2011,Consumable Materials,Operations,ACUTRONIC SWITZERLAND LIMITED,,V - 0000001665 - 00104548,288693.79
Ministry of Defence,Ministry of Defence,13/06/2011,Fees for professional services,Central TLB,TNT UK LIMITED,BL0 9AR,806496,285809.01
Ministry of Defence,Ministry of Defence,23/06/2011,Transport hire charges,Land Forces,BABCOCK LAND (WHITEFLEET MANAGEMENT) LIMITED,BH23 6BS,810656,285123.25
Ministry of Defence,Ministry of Defence,17/06/2011,IT and communication services,Defence Equipment & Support,IBM UNITED KINGDOM LIMITED,PO6 3AE,808548,283264.35
Ministry of Defence,Ministry of Defence,27/06/2011,Estate management,Defence Infrastructure Organisation ,TURNER FACILITIES MANAGEMENT LTD,G51 3EQ,812640,275736.77
Ministry of Defence,Ministry of Defence,27/06/2011,Purchase of buildings and military equipment ,Air Command,TURNER FACILITIES MANAGEMENT LTD,G51 3EQ,812640,274744.22
Ministry of Defence,Ministry of Defence,10/06/2011,Payment of utilities,Defence Infrastructure Organisation ,ELECTRICITY AUTHORITY OF CYPRUS,BFPO 53,4000005367,274209.9
Ministry of Defence,Ministry of Defence,21/06/2011,Design services and minor equipment purchases,Defence Equipment & Support,BAE SYSTEMS (OPERATIONS) LIMITED,PR4 1AX,160974,267438.11
Ministry of Defence,Ministry of Defence,01/06/2011,"Transporation of personnel, freight and travel expenses",Land Forces,ROYAL BRUNEI AIRLINES SDN BHD,,801706,263058.57
Ministry of Defence,Ministry of Defence,15/06/2011,"Purchase of munitions, other inventory or fuel",Defence Equipment & Support,ENERSYS LTD.,,807252,262649.6
Ministry of Defence,Defence Science and Technology Laboratory,10/06/2011,Sub Contracted Research,Programme Office,QINETIQ LIMITED,,V - 9000133475 - 00107150,262000
Ministry of Defence,Ministry of Defence,22/06/2011,Purchase of inventory and services ,Defence Equipment & Support,AAH PHARMACEUTICALS LTD,CV2 2TX,810002,255589.94
Ministry of Defence,Ministry of Defence,14/06/2011,Property leases,Defence Infrastructure Organisation ,TRICOMM HOUSING (PORTSMOUTH) LIMITED,EH3 7HL,807004,254713.56
Ministry of Defence,Defence Science and Technology Laboratory,17/06/2011,Sub Contracted Research,Programme Office,QINETIQ LIMITED,,V - 9000133667 - 00107132,251346
Ministry of Defence,Ministry of Defence,01/06/2011,Payment of utilities,Defence Infrastructure Organisation ,STADTWERKE HERFORD GMBH,,5000057084,251327.44
Ministry of Defence,Ministry of Defence,23/06/2011,Purchase of buildings and military equipment ,Defence Infrastructure Organisation ,MODERN HOUSING SOLUTIONS (PRIME)LIMITED,PE28 4QG,810905,251230.02
Ministry of Defence,Ministry of Defence,27/06/2011,Design services and minor equipment purchases,Defence Equipment & Support,POLAR SHIP INVEST II AS,,3000005638,250726.66
Ministry of Defence,Defence Science and Technology Laboratory,10/06/2011,Sub Contracted Research,Programme Office,QINETIQ LIMITED,,V - 9000133475 - 00107111,249700
Ministry of Defence,Ministry of Defence,13/06/2011,Transport hire charges,Defence Infrastructure Organisation ,BABCOCK LAND (WHITEFLEET MANAGEMENT) LIMITED,BH23 6BS,805925,247914.19
Ministry of Defence,Ministry of Defence,24/06/2011,Food and clothing,Defence Infrastructure Organisation ,COMPASS SERVICES (U.K.) LIMITED,B45 9PZ,811369,247401.88
Ministry of Defence,Ministry of Defence,23/06/2011,Rent and rates,Defence Infrastructure Organisation ,RUSHMOOR BOROUGH COUNCIL,GU14 7JU,811073,245347.89
Ministry of Defence,Ministry of Defence,28/06/2011,Rent and rates,Air Command,COUNCIL OF RESERVE FORCES' AND CADETS' ASSOCIATIONS,EC2A 4EY,812792,242946
Ministry of Defence,Ministry of Defence,28/06/2011,Rent and rates,Central TLB,DEPARTMENT FOR WORK AND PENSIONS,FY5 3TA,812798,242286.58
Ministry of Defence,Ministry of Defence,08/06/2011,Preparation of land & buildings for disposal,Defence Infrastructure Organisation ,GRONTMIJ LIMITED,LS7 4DN,804058,241633.48
Ministry of Defence,Ministry of Defence,06/06/2011,Medical treatment & stores and welfare services.,Air Command,THE SOLDIERS  SAILORS  AIRMEN AND FAMILIES ASS - FORCES HELP,SE1 2LP,803333,240485.25
Ministry of Defence,Defence Science and Technology Laboratory,03/06/2011,IT Software,Infrastructure,ORACLE CORPORATION UK LIMITED,,V - 9000133208 - 00110112,240221.42
Ministry of Defence,Ministry of Defence,02/06/2011,Payment of utilities,Land Forces,E.ON,,5000057140,239596.47
Ministry of Defence,Ministry of Defence,16/06/2011,Purchase of buildings and military equipment ,Defence Infrastructure Organisation ,CARILLIONENTERPRISE LIMITED,B75 7RL,807738,239445.73
Ministry of Defence,Council of Reserve Forces and Cadets Associations,24/06/2011,Purchase of buildings and military equipment ,Capital Expenditure,CONLON CONSTRUCTION LTD,,2336,238313.07
Ministry of Defence,Ministry of Defence,07/06/2011,Medical treatment & stores and welfare services.,Central TLB,PORTSMOUTH HOSPITALS N H S TRUST,WF3 1WE,2.00E+11,237500
Ministry of Defence,Ministry of Defence,13/06/2011,Property leases,Defence Infrastructure Organisation ,ASPIRE DEFENCE LIMITED,SP9 7QD,805912,237291.31
Ministry of Defence,Ministry of Defence,13/06/2011,"Purchase of munitions, other inventory or fuel",Defence Equipment & Support,H M REVENUE & CUSTOMS,M50 3XN,806142,236629.89
Ministry of Defence,Ministry of Defence,23/06/2011,Rent and rates,Defence Infrastructure Organisation ,RICHMONDSHIRE DISTRICT COUNCIL,DL10 7AF,811052,236416.14
Ministry of Defence,Ministry of Defence,09/06/2011,Payment of utilities,Defence Infrastructure Organisation ,TOTAL GAS & POWER LIMITED,RH1 1RX,805061,235665.29
Ministry of Defence,Ministry of Defence,27/06/2011,Design services and minor equipment purchases,Land Forces,SSI SCHAEFER LTD,SP10 5QZ,812595,235432.68
Ministry of Defence,Ministry of Defence,27/06/2011,Estate management,Defence Infrastructure Organisation ,ALDERSHOT HEALTHCARE INVESTMENTS LIMITED,GU1 2AB,811956,233780.51
Ministry of Defence,Ministry of Defence,02/06/2011,"Transporation of personnel, freight and travel expenses",Land Forces,ROYAL BRUNEI AIRLINES SDN BHD,,802117,232700.72
Ministry of Defence,Ministry of Defence,16/06/2011,Purchase of inventory and services ,Defence Equipment & Support,DEVONPORT ROYAL DOCKYARD LIMITED,PL1 4SG,807786,231871.79
Ministry of Defence,Defence Support Group,02/06/2011,Works-Planned Maintenance,Land Supply,BABCOCK SUPPORT SERVICES LTD,,10127100,231583.85
Ministry of Defence,Ministry of Defence,08/06/2011,Payment of utilities,Defence Infrastructure Organisation ,E.ON,,5000057361,224015.32
Ministry of Defence,Ministry of Defence,22/06/2011,Grants to Reserves Forces and Cadets Association,Central TLB,COUNCIL OF RESERVE FORCES' AND CADETS' ASSOCIATIONS,EC2A 4EY,810136,222963
Ministry of Defence,Ministry of Defence,29/06/2011,Estate management,Defence Infrastructure Organisation ,INTERSERVE (DEFENCE) LTD,BS34 8YU,813467,221685.78
Ministry of Defence,Ministry of Defence,21/06/2011,Estate management,Defence Infrastructure Organisation ,ARAMARK LTD,LS16 6QY,809578,221514.66
Ministry of Defence,Ministry of Defence,03/06/2011,Interest paid PFIs and finance leases,Defence Infrastructure Organisation ,FALCON SUPPORT SERVICES LIMITED,RG10 9JU,802378,220003.1
Ministry of Defence,Ministry of Defence,06/06/2011,Estate management,Air Command,SERCO LIMITED,RG27 9UY,803273,219000.34
Ministry of Defence,Ministry of Defence,10/06/2011,Estate management,Air Command,SERCO LIMITED,RG27 9UY,805740,219000.34
Ministry of Defence,Ministry of Defence,29/06/2011,"Purchase of munitions, other inventory or fuel",Defence Equipment & Support,ENERSYS LTD.,,813390,218199.38
Ministry of Defence,Ministry of Defence,10/06/2011,Rent and rates,Defence Infrastructure Organisation ,ARGYLL & BUTE COUNCIL,PA28 JU,805151,217479.33
Ministry of Defence,Defence Science and Technology Laboratory,17/06/2011,Sub Contracted Research,Programme Office,AEROSYSTEMS INTERNATIONAL LIMITED,,V - 9000133677 - 00106731,214449.5
Ministry of Defence,Ministry of Defence,16/06/2011,Purchase of buildings and military equipment ,Defence Equipment & Support,DEVONPORT ROYAL DOCKYARD LIMITED,PL1 4SG,807786,212750.91
Ministry of Defence,Ministry of Defence,14/06/2011,Estate management,Air Command,SERCO LIMITED,RG27 9UY,806935,211559.76
Ministry of Defence,Ministry of Defence,24/06/2011,Food and clothing,Land Forces,TECHNOGYM U K LIMITED,RG12 8PE,811840,207005.31
Ministry of Defence,Ministry of Defence,14/06/2011,Estate management,Defence Infrastructure Organisation ,SODEXO LTD,M50 0AL,806945,206497.36
Ministry of Defence,Ministry of Defence,23/06/2011,Purchase of inventory and services ,Defence Equipment & Support,NHS BLOOD AND TRANSPLANT,LS15 7TW,810922,205876.13
Ministry of Defence,Ministry of Defence,07/06/2011,Transport hire charges,Land Forces,BABCOCK LAND (WHITEFLEET MANAGEMENT) LIMITED,BH23 6BS,803428,205767.62
Ministry of Defence,Ministry of Defence,21/06/2011,Rent and rates,Central TLB,EIENDOMSUTVIKLING SOR AS,,2095384,205475.06
Ministry of Defence,Ministry of Defence,29/06/2011,Externally delivered education and training.,Land Forces,DEFLOG VQ TRUST LIMITED,HU17 8DY,813347,205236.74
Ministry of Defence,Ministry of Defence,23/06/2011,Food and clothing,Defence Infrastructure Organisation ,AVENANCE PLC,SK11 6ET,810646,204867.55
Ministry of Defence,Ministry of Defence,27/06/2011,Payment of utilities,Defence Equipment & Support,TOTAL GAS & POWER LIMITED,RH1 1RX,812637,202605.87
Ministry of Defence,Ministry of Defence,02/06/2011,Design services and minor equipment purchases,Defence Equipment & Support,THALES MISSILE ELECTRONICS LTD,RG21 4HJ,802169,201229.13
Ministry of Defence,Defence Science and Technology Laboratory,17/06/2011,Capital Asset expenditure,Infrastructure,BCD ENGINEERING (UK) LIMITED,,V - 9000133653 - 00110817,200000
Ministry of Defence,Defence Science and Technology Laboratory,24/06/2011,Sub Contracted Research,Programme Office,QINETIQ LIMITED,,V - 9000133878 - 00110679,200000
Ministry of Defence,Ministry of Defence,09/06/2011,Purchase of buildings and military equipment ,Defence Infrastructure Organisation ,MODERN HOUSING SOLUTIONS (PRIME)LIMITED,PE28 4QG,804784,199592.25
Ministry of Defence,Ministry of Defence,24/06/2011,Payment of utilities,Defence Infrastructure Organisation ,STADTWERKE BIELEFELD GMBH,,5000058440,199202.95
Ministry of Defence,Ministry of Defence,17/06/2011,Payments made in advance,Central TLB,NATO,,5000057820,198906.09
Ministry of Defence,Ministry of Defence,02/06/2011,Purchase of buildings and military equipment ,Defence Infrastructure Organisation ,DEBUT SERVICES LIMITED,B75 7RL,801878,197378
Ministry of Defence,Ministry of Defence,09/06/2011,Estate management,Defence Infrastructure Organisation ,ARAMARK LTD,LS16 6QY,804445,196214.77
Ministry of Defence,Met Office,08/06/2011,Procurement Card,Other,Barclaycard Commercial,,308326,195649.37
Ministry of Defence,Ministry of Defence,24/06/2011,Purchase of buildings and military equipment ,Defence Equipment & Support,JAMES FISHER INSPECTION AND MEASUREMENT SERVICES LIMITED,CH5 2QJ,811521,192620.52
Ministry of Defence,Defence Science and Technology Laboratory,10/06/2011,Sub Contracted Research,Programme Office,QINETIQ LIMITED,,V - 9000133475 - 00107376,192153
Ministry of Defence,Ministry of Defence,13/06/2011,Estate management,Air Command,SODEXO LTD,M50 0AL,806431,191895.49
Ministry of Defence,Ministry of Defence,17/06/2011,Building maintenance and accommodation stores,Defence Infrastructure Organisation ,MILLBROOK FURNISH IND-PR,,GPC 004,191016
Ministry of Defence,Ministry of Defence,13/06/2011,Design services and minor equipment purchases,Defence Equipment & Support,ROLLS-ROYCE POWER ENGINEERING PLC,KY11 9JT,806399,190440.35
Ministry of Defence,Ministry of Defence,23/06/2011,Food and clothing,Defence Infrastructure Organisation ,COMPASS SERVICES (U.K.) LIMITED,B45 9PZ,810728,190196.91
Ministry of Defence,Ministry of Defence,07/06/2011,Medical treatment & stores and welfare services.,Central TLB,ST JOHN & RED CROSS DEFENCE MEDICAL WELFARE SERVICE,EC4M 7HQ,803764,190071.08
Ministry of Defence,Defence Science and Technology Laboratory,17/06/2011,Sub Contracted Research,Programme Office,QINETIQ LIMITED,,V - 9000133667 - 00110471,190000
Ministry of Defence,Defence Science and Technology Laboratory,24/06/2011,Sub Contracted Research,Programme Office,SELEX GALILEO LIMITED,,V - 9000133882 - 00110232,189995
Ministry of Defence,Ministry of Defence,22/06/2011,Purchase of inventory and services ,Defence Equipment & Support,FENTON PHARMACEUTICALS LTD,W1U 6NS,810186,189000
Ministry of Defence,Ministry of Defence,22/06/2011,IT and communication services,Defence Equipment & Support,JEDI SYSTEMS CONSULTANCY LIMITED,GU4 8AQ,810255,188500
Ministry of Defence,Defence Science and Technology Laboratory,10/06/2011,Sub Contracted Work,Operations,G-NIUS UNMANNED GROUND SYSTEMS (UGS) LIMITED,,V - 0000001658 - 00109512,187500
Ministry of Defence,Ministry of Defence,06/06/2011,Externally delivered education and training.,Air Command,WESTLAND HELICOPTERS LTD,BA20 2YB,803374,187443
Ministry of Defence,Ministry of Defence,23/06/2011,Food and clothing,Air Command,AVENANCE PLC,SK11 6ET,810646,187431.53
Ministry of Defence,Ministry of Defence,10/06/2011,Purchase of inventory and services ,Defence Equipment & Support,HARSCO INFRASTRUCTURE SERVICES LIMITED,G51 1PR,805414,186917.12
Ministry of Defence,Ministry of Defence,17/06/2011,Purchase of inventory and services ,Defence Equipment & Support,HARSCO INFRASTRUCTURE SERVICES LIMITED,G51 1PR,808525,186917.12
Ministry of Defence,Ministry of Defence,13/06/2011,Food and clothing,Defence Equipment & Support,PURPLE FOODSERVICE SOLUTIONS LIMITED,GU32 3QD,806373,186605.08
Ministry of Defence,Ministry of Defence,06/06/2011,Food and clothing,Defence Infrastructure Organisation ,AVENANCE PLC,SK11 6ET,802812,185947.49
Ministry of Defence,Ministry of Defence,27/06/2011,General services and support,Defence Equipment & Support,TEAM SIMOCO LIMITED,DE1 1NH,812614,185589.16
Ministry of Defence,Ministry of Defence,09/06/2011,Estate management,Defence Infrastructure Organisation ,TURNER FACILITIES MANAGEMENT LTD,G51 3EQ,805069,185268.6
Ministry of Defence,Ministry of Defence,10/06/2011,Payment of utilities,Defence Equipment & Support,SSE ENERGY SUPPLY LIMITED,PH1 3AQ,805763,183712.36
Ministry of Defence,Ministry of Defence,14/06/2011,Payment of utilities,Land Forces,GB OILS LIMITED,FK5 4RB,806729,183158.53
Ministry of Defence,Ministry of Defence,22/06/2011,Development costs for military equipment,Defence Equipment & Support,MBDA UK LIMITED,SG1 2DA,810289,182999.51
Ministry of Defence,Ministry of Defence,24/06/2011,Payment of utilities,Defence Infrastructure Organisation ,STADTWERKE GUETERSLOH GMBH,,5000058441,182873.74
Ministry of Defence,Ministry of Defence,23/06/2011,Fees for professional services,Land Forces,L.A. INTERNATIONAL COMPUTER  CONSULTANTS LIMITED,ST1 5UB,810870,182456
Ministry of Defence,Ministry of Defence,02/06/2011,Fees for professional services,Land Forces,G4S CARE AND JUSTICE SERVICES (UK) LIMITED,S81 7QF,801922,182014.57
Ministry of Defence,Defence Science and Technology Laboratory,03/06/2011,Sub Contracted Work,Operations,RAYTHEON SYSTEMS LIMITED,,V - 9000133188 - 00110547,180000
Ministry of Defence,Defence Support Group,23/06/2011,Barclaycard Control a/c,Corporate,Barclays Bank ( Visa),,10128829,178516.19
Ministry of Defence,Ministry of Defence,16/06/2011,Purchase of buildings and military equipment ,Defence Equipment & Support,BAE SYSTEMS SURFACE SHIPS PORTSMOUTH LIMITED,PO1 3NH,807685,178499.69
Ministry of Defence,Ministry of Defence,06/06/2011,"Purchase of munitions, other inventory or fuel",Defence Equipment & Support,ANTEON LIMITED,PE1 5FL,802799,178200
Ministry of Defence,Ministry of Defence,09/06/2011,Property leases,Defence Infrastructure Organisation ,THE RIVERSIDE GROUP LIMITED,L24 8RF,805049,178126.58
Ministry of Defence,Ministry of Defence,16/06/2011,"Transporation of personnel, freight and travel expenses",Land Forces,ROYAL BRUNEI AIRLINES SDN BHD,,808109,177699.25
Ministry of Defence,Defence Science and Technology Laboratory,24/06/2011,Materials & Equipment,Operations,BARCLAYCARD,,G - 9000133909 - 00112432,176158.97
Ministry of Defence,Ministry of Defence,08/06/2011,Design services and minor equipment purchases,Defence Equipment & Support,DEFENCE SUPPORT GROUP  (DSG),SP11 8HT,803971,175328.67
Ministry of Defence,Ministry of Defence,28/06/2011,Externally delivered education and training.,Land Forces,MPALA RANCH LTD,,2070073,175321.01
Ministry of Defence,Ministry of Defence,24/06/2011,Payment of utilities,Defence Infrastructure Organisation ,TOTAL GAS & POWER LIMITED,RH1 1RX,811867,175098.18
Ministry of Defence,Defence Science and Technology Laboratory,17/06/2011,Sub Contracted Research,Programme Office,CRANFIELD UNIVERSITY,,V - 9000133579 - 00105535,174657
Ministry of Defence,Defence Science and Technology Laboratory,03/06/2011,Sub Contracted Work,Programme Office,DETICA LIMITED,,V - 9000133190 - 00109298,174601.99
Ministry of Defence,Ministry of Defence,01/06/2011,"Transporation of personnel, freight and travel expenses",Central TLB,Suez Canal Authority,,1,173346.65
Ministry of Defence,Ministry of Defence,22/06/2011,Rent and rates,Central TLB,KBC VERZEKERINGEN REF EIGENDOM,,5000058170,172186.43
Ministry of Defence,Ministry of Defence,23/06/2011,Purchase of buildings and military equipment ,Defence Infrastructure Organisation ,ISG JACKSON LIMITED,IP3 0NA,810849,171843.6
Ministry of Defence,Defence Science and Technology Laboratory,17/06/2011,Sub Contracted Research,Programme Office,AEROSYSTEMS INTERNATIONAL LIMITED,,V - 9000133677 - 00104576,171559.6
Ministry of Defence,Ministry of Defence,14/06/2011,Food and clothing,Defence Equipment & Support,PURPLE FOODSERVICE SOLUTIONS LIMITED,GU32 3QD,806896,171056.12
Ministry of Defence,Ministry of Defence,24/06/2011,Design services and minor equipment purchases,Air Command,SERCO LIMITED,RG27 9UY,811783,170507.58
Ministry of Defence,Ministry of Defence,22/06/2011,Rent and rates,Defence Infrastructure Organisation ,EAST RIDING OF YORKSHIRE COUNCIL,HU17 9BA,810167,170282.05
Ministry of Defence,Ministry of Defence,06/06/2011,Purchase of buildings and military equipment ,Defence Infrastructure Organisation ,ROLLALONG LIMITED,BH21 6SF,803246,168988.82
Ministry of Defence,Ministry of Defence,28/06/2011,Purchase of buildings and military equipment ,Defence Equipment & Support,ASPIRE DEFENCE LIMITED,SP9 7QD,812716,168332.99
Ministry of Defence,Ministry of Defence,13/06/2011,Externally delivered education and training.,Central TLB,COMMUNICAID GROUP LIMITED,EC3A 5BU,806016,168262.5
Ministry of Defence,Ministry of Defence,07/06/2011,Development costs for military equipment,Defence Equipment & Support,ORACLE CORPORATION U K LTD,RG6 1RA,803693,167649.35
Ministry of Defence,Ministry of Defence,08/06/2011,Payment of utilities,Defence Equipment & Support,SSE ENERGY SUPPLY LIMITED,PH1 3AQ,804337,167178.6
Ministry of Defence,Ministry of Defence,08/06/2011,Purchase of buildings and military equipment ,Defence Infrastructure Organisation ,RMPA SERVICES PLC,CO2 7ST,804298,166721.21
Ministry of Defence,Ministry of Defence,03/06/2011,Research and development,Central TLB,DEFENCE SCIENCE & TECHNOLOGY LABORATORY,PO14 9HL,802346,166172.43
Ministry of Defence,Ministry of Defence,06/06/2011,Estate management,Defence Infrastructure Organisation ,CARILLIONENTERPRISE LIMITED,B75 7RL,802878,166102.65
Ministry of Defence,United Kingdom Hydrographic Office,16/06/2011,Projects - Large Purchases,Admiralty Vector Chart Service Programme,Maritime Information Systems AS,,1500012332,165000
Ministry of Defence,Ministry of Defence,17/06/2011,Purchase of inventory and services ,Defence Equipment & Support,DHS SYSTEMS INT'L LIMITED,HR2 6NP,808424,164363.4
Ministry of Defence,Ministry of Defence,14/06/2011,Research and development,Defence Equipment & Support,GKN AEROSPACE SERVICES LIMITED,PO3 5PE,806734,164046
Ministry of Defence,Met Office,03/06/2011,Services,Technology,Bt Plc,,308141,163964.55
Ministry of Defence,Ministry of Defence,09/06/2011,Rent and rates,Air Command,NATIONAL ASSEMBLY FOR WALES,CF10 3NQ,2.00E+11,162505.13
Ministry of Defence,Defence Science and Technology Laboratory,24/06/2011,Energy & Utility,Infrastructure,SCOTTISH HYDRO ELECTRIC GAS LIMITED,,V - 9000133877 - 00111443,162445.52
Ministry of Defence,Ministry of Defence,15/06/2011,Externally delivered education and training.,Air Command,COMPASS GROUP UK AND IRELAND LIMITED,B45 9PZ,807188,162175.21
Ministry of Defence,Ministry of Defence,15/06/2011,Food and clothing,Defence Infrastructure Organisation ,AVENANCE PLC,SK11 6ET,807099,161583.14
Ministry of Defence,Ministry of Defence,03/06/2011,Externally delivered education and training.,Central TLB,UNIVERSITY HOSPITAL BIRMINGHAM NHS FOUNDATION TRUST,B29 6JS,802735,161412.33
Ministry of Defence,Ministry of Defence,28/06/2011,IT and communication services,Defence Equipment & Support,SERCO LIMITED,RG27 9UY,813125,160921.91
Ministry of Defence,Ministry of Defence,24/06/2011,"Transporation of personnel, freight and travel expenses",Defence Equipment & Support,DHL GLOBAL FORWARDING (UK)  LIMITED,TW18 4BP,811397,160814.03
Ministry of Defence,Defence Science and Technology Laboratory,10/06/2011,Communications,Infrastructure,BT - DFTS,,V - 9000133356 - 00110999,160741.9
Ministry of Defence,Ministry of Defence,07/06/2011,Design services and minor equipment purchases,Land Forces,SERCO LIMITED,RG27 9UY,803749,160405.38
Ministry of Defence,Ministry of Defence,24/06/2011,Design services and minor equipment purchases,Land Forces,SERCO LIMITED,RG27 9UY,811783,160405.38
Ministry of Defence,Ministry of Defence,10/06/2011,"Purchase of munitions, other inventory or fuel",Defence Equipment & Support,FUCHS LUBRICANTS (UK) PLC,ST1 5HU,805375,159800.12
Ministry of Defence,Ministry of Defence,23/06/2011,Estate management,Defence Infrastructure Organisation ,ARAMARK LTD,LS16 6QY,810635,159378.41
Ministry of Defence,Defence Science and Technology Laboratory,17/06/2011,Sub Contracted Research,Programme Office,QINETIQ LIMITED,,V - 9000133667 - 00107162,159254
Ministry of Defence,Ministry of Defence,13/06/2011,Purchase of inventory and services ,Defence Equipment & Support,BOC LIMITED,M28 2UT,805954,158335.2
Ministry of Defence,Defence Science and Technology Laboratory,17/06/2011,Sub Contracted Research,Programme Office,AEROSYSTEMS INTERNATIONAL LIMITED,,V - 9000133677 - 00110664,158299.9
Ministry of Defence,Ministry of Defence,28/06/2011,Estate management,Defence Infrastructure Organisation ,SERCO LIMITED,RG27 9UY,813125,158059.71
Ministry of Defence,Ministry of Defence,02/06/2011,Estate management,Defence Infrastructure Organisation ,MODERN HOUSING SOLUTIONS (PRIME)LIMITED,PE28 4QG,802000,158006.78
Ministry of Defence,Ministry of Defence,10/06/2011,Estate management,Defence Infrastructure Organisation ,SCHAL INTERNATIONAL MANAGEMENT LIMITED,CR9 0AU,805730,157647.06
Ministry of Defence,Ministry of Defence,22/06/2011,Food and clothing,Defence Equipment & Support,ITURRI SA,OX16 3TA,3000005625,157522.01
Ministry of Defence,Met Office,13/06/2011,Accommodation,Chief Financial Officer,Scottish Hydro-Electric,,308555,157177.83
Ministry of Defence,Ministry of Defence,27/06/2011,Fuel for military use,Air Command,BP INTERNATIONAL LIMITED,HP2 4UL,2000012013,155917.29
Ministry of Defence,Ministry of Defence,17/06/2011,Purchase of buildings and military equipment ,Defence Infrastructure Organisation ,BEZIRKSREGIERUNG DUESSELDORF,,5000057762,155217.39
Ministry of Defence,Ministry of Defence,14/06/2011,Payment of utilities,Air Command,SSE ENERGY SUPPLY LIMITED,PH1 3AQ,806962,154379.28
Ministry of Defence,Ministry of Defence,17/06/2011,Development costs for military equipment,Defence Equipment & Support,MBDA UK LIMITED,SG1 2DA,808617,154071.6
Ministry of Defence,Ministry of Defence,21/06/2011,Design services and minor equipment purchases,Defence Equipment & Support,AERONAUTICAL & GENERAL INSTRUMENTS LIMITED,BH15 3SS,809565,153962
Ministry of Defence,Ministry of Defence,13/06/2011,Estate management,Defence Infrastructure Organisation ,TURNER FACILITIES MANAGEMENT LTD,G51 3EQ,806506,153938.69
Ministry of Defence,Ministry of Defence,13/06/2011,Estate management,Defence Infrastructure Organisation ,BEZIRKSREGIERUNG DUESSELDORF,,5000057567,153385.73
Ministry of Defence,Ministry of Defence,14/06/2011,Rent and rates,Defence Infrastructure Organisation ,VALE OF WHITE HORSE DISTRICT COUNCIL,OX14 3JH,807019,152789.42
Ministry of Defence,Ministry of Defence,22/06/2011,Payment of utilities,Defence Equipment & Support,SSE ENERGY SUPPLY LIMITED,PH1 3AQ,810524,152497.16
Ministry of Defence,Ministry of Defence,03/06/2011,Design services and minor equipment purchases,Defence Equipment & Support,DEFENCE SCIENCE & TECHNOLOGY LABORATORY,PO14 9HL,802346,152112.77
Ministry of Defence,Ministry of Defence,13/06/2011,Estate management,Defence Infrastructure Organisation ,OBERFINANZDIREKTION NIEDERSACHSEN,,5000057607,150966.92
Ministry of Defence,Ministry of Defence,21/06/2011,Environmental clear up,Defence Infrastructure Organisation ,CARILLIONENTERPRISE LIMITED,B75 7RL,809658,150901.11
Ministry of Defence,Ministry of Defence,28/06/2011,Purchase of inventory and services ,Central TLB,THE ROYAL MINT,CF72 8YT,813175,150709.57
Ministry of Defence,Met Office,29/06/2011,Software Licences,Technology,Oracle Corporation Uk Ltd,,309024,150662.36
Ministry of Defence,Ministry of Defence,02/06/2011,IT and communication services,Defence Equipment & Support,GREENROAD TECHNOLOGIES UK  LIMITED,W1W 5NA,801933,150524.64
Ministry of Defence,Ministry of Defence,09/06/2011,Estate management,Defence Infrastructure Organisation ,QINETIQ LIMITED,PO12 2AG,804947,150469.17
Ministry of Defence,Ministry of Defence,09/06/2011,Payment of utilities,Air Command,SSE ENERGY SUPPLY LIMITED,PH1 3AQ,805011,150056
Ministry of Defence,Defence Science and Technology Laboratory,10/06/2011,Sub Contracted Work,Operations,QINETIQ LIMITED,,V - 9000133475 - 00110682,150000
Ministry of Defence,Ministry of Defence,06/06/2011,Design services and minor equipment purchases,Navy Command,PERKINELMER LAS (U K) LTD,HP9 2FX,803203,149884
Ministry of Defence,Ministry of Defence,24/06/2011,Estate management,Defence Infrastructure Organisation ,SODEXO LTD,M50 0AL,811794,149792.85
Ministry of Defence,Ministry of Defence,13/06/2011,Fees for professional services,Central TLB,DEPARTMENT FOR WORK AND PENSIONS,FY5 3TA,806044,149332.75
Ministry of Defence,Ministry of Defence,22/06/2011,Rent and rates,Defence Infrastructure Organisation ,LIVERPOOL CITY COUNCIL,L69 2DQ,810267,148952
Ministry of Defence,Ministry of Defence,14/06/2011,Payment of utilities,Defence Equipment & Support,SSE ENERGY SUPPLY LIMITED,PH1 3AQ,806962,148818.68
Ministry of Defence,Ministry of Defence,22/06/2011,Estate management,Defence Infrastructure Organisation ,BEZIRKSREGIERUNG DUESSELDORF,,5000058096,148679.05
Ministry of Defence,Ministry of Defence,24/06/2011,Fees for professional services,Air Command,M.P.I. AVIATION LTD,SG13 7DQ,811572,148295.72
Ministry of Defence,Ministry of Defence,02/06/2011,Medical treatment & stores and welfare services.,Land Forces,GUY'S & ST THOMAS NHS FOUNDATION TRUST,,5000057154,147639.37
Ministry of Defence,Ministry of Defence,08/06/2011,Research and development,Defence Equipment & Support,QINETIQ LIMITED,PO12 2AG,804277,147441
Ministry of Defence,Ministry of Defence,22/06/2011,Purchase of inventory and services ,Air Command,CANON (UK) LIMITED,RH2 8BF,810098,146826.17
Ministry of Defence,Ministry of Defence,29/06/2011,Design services and minor equipment purchases,Defence Equipment & Support,DEVONPORT ROYAL DOCKYARD LIMITED,PL1 4SG,813351,146744.94
Ministry of Defence,Ministry of Defence,29/06/2011,Estate management,Defence Infrastructure Organisation ,SODEXO LTD,M50 0AL,813680,146728.17
Ministry of Defence,Ministry of Defence,29/06/2011,Payment of utilities,Air Command,TOTAL GAS & POWER LIMITED,RH1 1RX,813723,146475.28
Ministry of Defence,Ministry of Defence,20/06/2011,Design services and minor equipment purchases,Defence Equipment & Support,MABEY BRIDGE LIMITED,NP16 5YL,809202,146220
Ministry of Defence,Ministry of Defence,01/06/2011,Estate management,Defence Infrastructure Organisation ,BEZIRKSREGIERUNG DUESSELDORF,,5000057005,145629.94
Ministry of Defence,Ministry of Defence,24/06/2011,Estate management,Defence Infrastructure Organisation ,CARILLIONENTERPRISE LIMITED,B75 7RL,811338,145547.47
Ministry of Defence,Ministry of Defence,29/06/2011,Payment of utilities,Defence Infrastructure Organisation ,TOTAL GAS & POWER LIMITED,RH1 1RX,813723,145102.42
Ministry of Defence,Ministry of Defence,24/06/2011,Externally delivered education and training.,Land Forces,RYDER PUBLIC LIMITED COMPANY,SK16 4UL,811766,143646.33
Ministry of Defence,Ministry of Defence,01/06/2011,Externally delivered education and training.,Land Forces,Rift Valley Adventures,,202,143161.74
Ministry of Defence,Ministry of Defence,03/06/2011,Energy conservation and environmental charges.,Land Forces,DEFENCE SCIENCE & TECHNOLOGY LABORATORY,PO14 9HL,802346,143009.09
Ministry of Defence,Ministry of Defence,23/06/2011,Fuel for military use,Air Command,WORLD FUEL SERVICES EUROPE  LTD.,SW1E 5BH,2000012000,141570.28
Ministry of Defence,Ministry of Defence,01/06/2011,Design services and minor equipment purchases,Defence Equipment & Support,DEFENCE SUPPORT GROUP  (DSG),SP11 8HT,801498,141483.01
Ministry of Defence,Ministry of Defence,21/06/2011,Administration ,Navy Command,VT FLAGSHIP LTD,PO6 4PR,809981,141248.68
Ministry of Defence,Ministry of Defence,17/06/2011,Estate management,Defence Infrastructure Organisation ,OBERFINANZDIREKTION NIEDERSACHSEN,,5000057830,140913.02
Ministry of Defence,Ministry of Defence,14/06/2011,Purchase of buildings and military equipment ,Defence Infrastructure Organisation ,MODERN HOUSING SOLUTIONS (PRIME)LIMITED,PE28 4QG,806817,140184.33
Ministry of Defence,Ministry of Defence,23/06/2011,Estate management,Air Command,SERCO LIMITED,RG27 9UY,811086,139090.55
Ministry of Defence,Ministry of Defence,27/06/2011,Estate management,Defence Infrastructure Organisation ,CARILLIONENTERPRISE LIMITED,B75 7RL,812076,138781.48
Ministry of Defence,Ministry of Defence,22/06/2011,Rent and rates,Central TLB,S A IMMOLITH,,5000058229,138641.93
Ministry of Defence,Ministry of Defence,27/06/2011,Externally delivered education and training.,Land Forces,RYDER PUBLIC LIMITED COMPANY,SK16 4UL,812544,138429.27
Ministry of Defence,Ministry of Defence,02/06/2011,Design services and minor equipment purchases,Defence Equipment & Support,L B BENTLEY LIMITED,GL5 2BY,801971,138105.2
Ministry of Defence,Ministry of Defence,09/06/2011,Rent and rates,Defence Equipment & Support,EDDISONS COMMERCIAL PROPERY  MANAGEMENT LIMITED,WC2H 0AU,804625,137457
Ministry of Defence,Ministry of Defence,14/06/2011,Estate management,Defence Infrastructure Organisation ,INTERSERVE (DEFENCE) LTD,BS34 8YU,5000057672,135884.97
Ministry of Defence,Ministry of Defence,10/06/2011,Fees for professional services,Air Command,M.P.I. AVIATION LTD,SG13 7DQ,805508,135528.23
Ministry of Defence,Ministry of Defence,10/06/2011,Design services and minor equipment purchases,Defence Equipment & Support,FR AVIATION LIMITED,BH23 6NE,805373,135010.26
Ministry of Defence,Ministry of Defence,15/06/2011,Payment of utilities,Land Forces,GB OILS LIMITED,FK5 4RB,807279,134835.69
Ministry of Defence,Ministry of Defence,06/06/2011,Design services and minor equipment purchases,Defence Equipment & Support,DEFENCE SUPPORT GROUP  (DSG),SP11 8HT,802923,134701.64
Ministry of Defence,Ministry of Defence,29/06/2011,Medical treatment & stores and welfare services.,Central TLB,ROYAL SURREY COUNTY HOSPITAL N H S TRUST,GU2 7XX,813654,134691.69
Ministry of Defence,Ministry of Defence,20/06/2011,Medical treatment & stores and welfare services.,Central TLB,UNIVERSITY HOSPITAL BIRMINGHAM NHS FOUNDATION TRUST,B29 6JS,809518,134336.28
Ministry of Defence,Ministry of Defence,03/06/2011,Fees for professional services,Air Command,DEFENCE SCIENCE & TECHNOLOGY LABORATORY,PO14 9HL,802346,133919.04
Ministry of Defence,Ministry of Defence,28/06/2011,Rent and rates,Defence Infrastructure Organisation ,THE MORAY COUNCIL,IV30 1BX,813170,133361.91
Ministry of Defence,Ministry of Defence,29/06/2011,Fees for professional services,Central TLB,DEPARTMENT FOR WORK AND PENSIONS,FY5 3TA,813349,133206.32
Ministry of Defence,Ministry of Defence,22/06/2011,Rent and rates,Central TLB,S A IMMOLITH,,5000058228,133030.11
Ministry of Defence,Ministry of Defence,03/06/2011,Estate management,Defence Infrastructure Organisation ,TURNER FACILITIES MANAGEMENT LTD,G51 3EQ,802729,132655.7
Ministry of Defence,Ministry of Defence,08/06/2011,Design services and minor equipment purchases,Defence Equipment & Support,SUN TEST SYSTEMS BV,,5000057414,131644.47
Ministry of Defence,Ministry of Defence,01/06/2011,Purchase of buildings and military equipment ,Defence Equipment & Support,KIMTA ELECTRIC PTE LTD,,S00089/11,131578.22
Ministry of Defence,Ministry of Defence,20/06/2011,Payment of utilities,Defence Infrastructure Organisation ,SSE ENERGY SUPPLY LIMITED,PH1 3AQ,809458,131510.76
Ministry of Defence,Defence Science and Technology Laboratory,17/06/2011,Sub Contracted Research,Programme Office,QINETIQ LIMITED,,V - 9000133667 - 00107692,131468
Ministry of Defence,Ministry of Defence,03/06/2011,Research and development,Defence Equipment & Support,DEFENCE SCIENCE & TECHNOLOGY LABORATORY,PO14 9HL,802346,131306.22
Ministry of Defence,Ministry of Defence,20/06/2011,Purchase of plant and machinery,Defence Equipment & Support,KONGSBERG MARITIME LIMITED,AB22 8GT,809178,130450.8
Ministry of Defence,Ministry of Defence,10/06/2011,Transport hire charges,Land Forces,BABCOCK LAND (WHITEFLEET MANAGEMENT) LIMITED,BH23 6BS,805166,129632.14
Ministry of Defence,Defence Science and Technology Laboratory,17/06/2011,Sub Contracted Research,Programme Office,THALES UK LIMITED,,V - 9000133561 - 00110826,129468.8
Ministry of Defence,Ministry of Defence,27/06/2011,Purchase of buildings and military equipment ,Defence Infrastructure Organisation ,COUNCIL OF RESERVE FORCES' AND CADETS' ASSOCIATIONS,EC2A 4EY,812109,129200
Ministry of Defence,Ministry of Defence,07/06/2011,Estate management,Defence Equipment & Support,INTERSERVE (DEFENCE) LTD,BS34 8YU,5000057338,128973.11
Ministry of Defence,Ministry of Defence,28/06/2011,Grants to Reserves Forces and Cadets Association,Air Command,COUNCIL OF RESERVE FORCES' AND CADETS' ASSOCIATIONS,EC2A 4EY,812792,128805
Ministry of Defence,Ministry of Defence,14/06/2011,Rent and rates,Defence Infrastructure Organisation ,WYCOMBE DISTRICT COUNCIL,HP11 1BB,807050,128656.66
Ministry of Defence,Ministry of Defence,16/06/2011,Purchase of buildings and military equipment ,Defence Infrastructure Organisation ,DEBUT SERVICES LIMITED,B75 7RL,807778,128351
Ministry of Defence,Ministry of Defence,02/06/2011,Externally delivered education and training.,Defence Infrastructure Organisation ,NUFFIELD HEALTH,SG6 1UG,160438,127405.68
Ministry of Defence,Ministry of Defence,10/06/2011,Payment of utilities,Air Command,TOTAL GAS & POWER LIMITED,RH1 1RX,805806,127126.89
Ministry of Defence,Ministry of Defence,27/06/2011,Payment of utilities,Defence Infrastructure Organisation ,STADTWERKE BOEHMETAL GMBH,,5000058479,127082.91
Ministry of Defence,Ministry of Defence,10/06/2011,Payment of utilities,Land Forces,SSE ENERGY SUPPLY LIMITED,PH1 3AQ,805763,126892.35
Ministry of Defence,Ministry of Defence,10/06/2011,"Transporation of personnel, freight and travel expenses",Defence Equipment & Support,DHL GLOBAL FORWARDING (UK)  LIMITED,TW18 4BP,805306,126774.1
Ministry of Defence,Ministry of Defence,09/06/2011,Design services and minor equipment purchases,Defence Equipment & Support,FBS LIMITED,RG24 8AG,804650,126561.6
Ministry of Defence,Ministry of Defence,06/06/2011,Purchase of inventory and services ,Central TLB,THE ROYAL MINT,CF72 8YT,803332,126381.95
Ministry of Defence,Ministry of Defence,10/06/2011,Payment of utilities,Defence Equipment & Support,TOTAL GAS & POWER LIMITED,RH1 1RX,805806,126154.57
Ministry of Defence,Ministry of Defence,09/06/2011,Design services and minor equipment purchases,Air Command,COMPASS GROUP UK AND IRELAND LIMITED,B45 9PZ,804540,126126.86
Ministry of Defence,Ministry of Defence,22/06/2011,Design services and minor equipment purchases,Air Command,COMPASS GROUP UK AND IRELAND LIMITED,B45 9PZ,810126,126126.86
Ministry of Defence,United Kingdom Hydrographic Office,02/06/2011,Projects - Large Purchases,Admiralty Vector Chart Service Programme,Maritime Information Systems AS,,1500012298,126090.58
Ministry of Defence,Ministry of Defence,01/06/2011,IT and communication services,Defence Equipment & Support,AMADEUS IT GROUP SA,,3000005540,125909.89
Ministry of Defence,Ministry of Defence,17/06/2011,Purchase of buildings and military equipment ,Defence Infrastructure Organisation ,TURNER FACILITIES MANAGEMENT LTD,G51 3EQ,808827,125849.63
Ministry of Defence,Ministry of Defence,15/06/2011,Rent and rates,Defence Infrastructure Organisation ,WILTSHIRE COUNCIL,BA14 4DS,807626,125771.36
Ministry of Defence,Ministry of Defence,06/06/2011,IT and communication services,Defence Equipment & Support,AMADEUS IT GROUP SA,,3000005550,125592.62
Ministry of Defence,Defence Science and Technology Laboratory,24/06/2011,Sub Contracted Work,Operations,ROKE MANOR RESEARCH LIMITED,,V - 9000133769 - 00107603,125545
Ministry of Defence,Ministry of Defence,24/06/2011,Grants in aid,Navy Command,THE NATIONAL MUSEUM OF THE ROYAL NAVY,PO1 3NH,811853,125380.06
Ministry of Defence,Defence Science and Technology Laboratory,17/06/2011,IS Support Service,Infrastructure,STERIA LIMITED,,V - 9000133619 - 00111017,125318.79
Ministry of Defence,Ministry of Defence,10/06/2011,Estate management,Air Command,QINETIQ LIMITED,PO12 2AG,805684,125292.63
Ministry of Defence,Ministry of Defence,29/06/2011,Rent and rates,Land Forces,L H WOODHOUSE & CO LIMITED,NG12 3HG,813481,125107.2
Ministry of Defence,Ministry of Defence,09/06/2011,Design services and minor equipment purchases,Defence Equipment & Support,BAE SYSTEMS (OPERATIONS) LIMITED,PR4 1AX,804468,125000
Ministry of Defence,Defence Science and Technology Laboratory,17/06/2011,Sub Contracted Work,Programme Office,ATLAS ELEKTRONIK UK LIMITED,,V - 9000133674 - 00111318,125000
Ministry of Defence,Ministry of Defence,23/06/2011,Rent and rates,Defence Infrastructure Organisation ,PLYMOUTH CITY COUNCIL,PL1 2AA,811023,124193.84
Ministry of Defence,Ministry of Defence,14/06/2011,Rent and rates,Defence Infrastructure Organisation ,WEST OXFORDSHIRE DISTRICT  COUNCIL,OX28 6JH,807036,124100.27
Ministry of Defence,Ministry of Defence,07/06/2011,Payment of utilities,Defence Equipment & Support,TOTAL GAS & POWER LIMITED,RH1 1RX,803797,123057.51
Ministry of Defence,Ministry of Defence,29/06/2011,Food and clothing,Defence Equipment & Support,COMPASS GROUP PLC,B45 9PZ,813327,122679.25
Ministry of Defence,Ministry of Defence,23/06/2011,Design services and minor equipment purchases,Defence Equipment & Support,BAE SYSTEMS (OPERATIONS) LIMITED,PR4 1AX,161034,122635.69
Ministry of Defence,Ministry of Defence,21/06/2011,Rent and rates,Central TLB,F.LLI HANNUNA,,58,122239.77
Ministry of Defence,Ministry of Defence,06/06/2011,Design services and minor equipment purchases,Defence Equipment & Support,BRIGGS MARINE CONTRACTORS LIMITED,KY3 9AU,802850,121793.08
Ministry of Defence,Defence Science and Technology Laboratory,24/06/2011,Sub Contracted Research,Programme Office,BAE SYSTEMS INTEGRATED SYSTEM TECH. LIMITED.,,V - 9000133764 - 00109491,121563
Ministry of Defence,Ministry of Defence,22/06/2011,Purchase of buildings and military equipment ,Defence Infrastructure Organisation ,DEBUT SERVICES (SOUTH WEST)LIMITED,BA1 5AB,810147,121457.67
Ministry of Defence,Ministry of Defence,13/06/2011,Rent and rates,Defence Infrastructure Organisation ,GOSPORT BOROUGH COUNCIL,PO12 1EB,806135,121160.19
Ministry of Defence,Ministry of Defence,09/06/2011,Administration ,Land Forces,ISS MEDICLEAN LIMITED,GU21 5RW,804719,120633.44
Ministry of Defence,Ministry of Defence,03/06/2011,Fees for professional services,Central TLB,KPMG LLP,WD17 1DE,802458,120567.54
Ministry of Defence,Ministry of Defence,13/06/2011,Estate management,Defence Infrastructure Organisation ,ISS MEDICLEAN LIMITED,GU21 5RW,806179,120146.77
Ministry of Defence,Ministry of Defence,21/06/2011,Food and clothing,Air Command,ARAMARK LTD,LS16 6QY,809578,120103.14
Ministry of Defence,Defence Science and Technology Laboratory,17/06/2011,Repairs & Maintenance,Infrastructure,SERCO LIMITED,,V - 9000133669 - 00111298,120000
Ministry of Defence,Ministry of Defence,14/06/2011,Property leases,Land Forces,HOLDFAST TRAINING SERVICES LTD,ME4 4UG,806756,119931.95
Ministry of Defence,Ministry of Defence,27/06/2011,Purchase of inventory and services ,Defence Equipment & Support,SEAWARD ELECTRONIC LTD,SR8 2SW,812560,119310
Ministry of Defence,Ministry of Defence,24/06/2011,Grants to NDPBs,Navy Command,THE NATIONAL MUSEUM OF THE ROYAL NAVY,PO1 3NH,811853,119144.9
Ministry of Defence,Ministry of Defence,24/06/2011,Payment of utilities,Land Forces,NEW ENERGIE GMBH,,5000058428,119093.54
Ministry of Defence,Ministry of Defence,08/06/2011,Purchase of inventory and services ,Defence Equipment & Support,CORPORATE DOCUMENT SERVICES  LIMITED,LS2 7LY,803951,118703.28
Ministry of Defence,Ministry of Defence,24/06/2011,Purchase of inventory and services ,Defence Equipment & Support,HESCO BASTION LTD,LS9 0NP,811488,118652.11
Ministry of Defence,Ministry of Defence,16/06/2011,Payment of utilities,Defence Infrastructure Organisation ,PHOENIX NATURAL GAS LTD,BT3 9ED,32638,118646.78
Ministry of Defence,Ministry of Defence,06/06/2011,Estate management,Defence Infrastructure Organisation ,TURNER FACILITIES MANAGEMENT LTD,G51 3EQ,803349,118560.44
Ministry of Defence,Defence Science and Technology Laboratory,10/06/2011,Materials & Equipment,Operations,VWR INTERNATIONAL,,V - 9000133499 - 00110205,118191.97
Ministry of Defence,Defence Science and Technology Laboratory,10/06/2011,Sub Contracted Work,Operations,UNIVERSITY OF YORK,,V - 9000133366 - 00106784,118008
Ministry of Defence,Defence Science and Technology Laboratory,17/06/2011,Consumable Materials,Operations,ACUTRONIC SWITZERLAND LIMITED,,V - 0000001665 - 00111308,117483.8
Ministry of Defence,Ministry of Defence,02/06/2011,Payment of utilities,Defence Infrastructure Organisation ,MABANAFT DEUTSCHLAND GMBH,,5000057190,117373.25
Ministry of Defence,Ministry of Defence,22/06/2011,Rent and rates,Central TLB,S A LIXON,,5000058230,117330.1
Ministry of Defence,Defence Science and Technology Laboratory,24/06/2011,Sub Contracted Research,Programme Office,BAE SYSTEMS (OPERATIONS) LIMITED,,V - 9000133746 - 00111960,117309.2
Ministry of Defence,Ministry of Defence,17/06/2011,Estate management,Defence Infrastructure Organisation ,COUNCIL OF RESERVE FORCES' AND CADETS' ASSOCIATIONS,EC2A 4EY,808404,117066.67
Ministry of Defence,Ministry of Defence,20/06/2011,Nuclear decommissioning and restoration,Defence Equipment & Support,DEVONPORT ROYAL DOCKYARD LIMITED,PL1 4SG,809045,116594.82
Ministry of Defence,Ministry of Defence,01/06/2011,Payment of utilities,Defence Infrastructure Organisation ,MABANAFT DEUTSCHLAND GMBH,,5000057059,116236.02
Ministry of Defence,Ministry of Defence,14/06/2011,Food and clothing,Central TLB,SODEXO LTD,M50 0AL,806945,116221.92
Ministry of Defence,Ministry of Defence,02/06/2011,Fuel for military use,Air Command,WORLD FUEL SERVICES EUROPE  LTD.,SW1E 5BH,2000011770,116154.92
Ministry of Defence,Ministry of Defence,23/06/2011,Estate management,Defence Infrastructure Organisation ,AVENANCE PLC,SK11 6ET,810646,116022.48
Ministry of Defence,Ministry of Defence,15/06/2011,Fees for professional services,Central TLB,DEFENCE SCIENCE & TECHNOLOGY LABORATORY,PO14 9HL,807202,115767.68
Ministry of Defence,Ministry of Defence,28/06/2011,Rent and rates,Defence Infrastructure Organisation ,LONDON BOROUGH OF HILLINGDON,UB8 1UW,812919,114926.65
Ministry of Defence,Defence Science and Technology Laboratory,03/06/2011,Sub Contracted Research,Programme Office,ATLAS ELEKTRONIK UK LIMITED,,V - 9000133278 - 00110500,114918.95
Ministry of Defence,Ministry of Defence,20/06/2011,Rent and rates,Defence Infrastructure Organisation ,COLCHESTER BOROUGH COUNCIL,CO1 1QY,809014,114553.45
Ministry of Defence,Ministry of Defence,24/06/2011,Purchase of buildings and military equipment ,Defence Equipment & Support,AIRCRAFT MAINTENANCE SUPPORT SERVICES LTD,CF33 6NU,811229,114042
Ministry of Defence,Defence Science and Technology Laboratory,17/06/2011,Publications/Subscriptions,Infrastructure,JANE'S INFORMATION GROUP LIMITED,,V - 9000133645 - 00111616,113454
Ministry of Defence,Ministry of Defence,24/06/2011,IT and communication services,Defence Equipment & Support,L.A. INTERNATIONAL COMPUTER  CONSULTANTS LIMITED,ST1 5UB,811546,113393.73
Ministry of Defence,Ministry of Defence,23/06/2011,Design services and minor equipment purchases,Defence Equipment & Support,THALES UK LIMITED,BA5 1AA,811142,113281.8
Ministry of Defence,Ministry of Defence,29/06/2011,Design services and minor equipment purchases,Defence Equipment & Support,MARSHALL OF CAMBRIDGE AEROSPACE LIMITED,CB5 8RX,813513,113221.84
Ministry of Defence,Ministry of Defence,23/06/2011,"Transporation of personnel, freight and travel expenses",Central TLB,HOGG ROBINSON (TRAVEL) LIMITED,GU14 7NJ,810833,113124.09
Ministry of Defence,Ministry of Defence,23/06/2011,Transport hire charges,Land Forces,RYDER DEUTSCHLAND GMBH,,5000058360,112909.4
Ministry of Defence,Defence Science and Technology Laboratory,03/06/2011,Sub Contracted Work,Programme Office,DETICA LIMITED,,V - 9000133190 - 00110263,111914.01
Ministry of Defence,Defence Support Group,30/06/2011,Works - Fees,Business Stream 1,BABCOCK SUPPORT SERVICES LTD,,10129931,111462.9
Ministry of Defence,Ministry of Defence,13/06/2011,IT and communication services,Defence Equipment & Support,LOCKHEED MARTIN UK LIMITED,GU14 6TQ,806218,111425.1
Ministry of Defence,Ministry of Defence,16/06/2011,Purchase of buildings and military equipment ,Defence Infrastructure Organisation ,ROLLALONG LIMITED,BH21 6SF,808099,110763.2
Ministry of Defence,Ministry of Defence,21/06/2011,Purchase of buildings and military equipment ,Defence Infrastructure Organisation ,CARILLIONENTERPRISE LIMITED,B75 7RL,809658,110000
Ministry of Defence,Ministry of Defence,08/06/2011,Fees for professional services,Land Forces,G4S CARE AND JUSTICE SERVICES (UK) LIMITED,S81 7QF,804040,109959.32
Ministry of Defence,Ministry of Defence,09/06/2011,Fees for professional services,Defence Infrastructure Organisation ,ENTEC U K LTD,SY2 5DE,804635,109633.01
Ministry of Defence,Council of Reserve Forces and Cadets Associations,29/06/2011,Rent and rates,Infrastructure,Rylston Road Ltd,,2793,109553.4
Ministry of Defence,Ministry of Defence,22/06/2011,Food and clothing,Defence Infrastructure Organisation ,ARAMARK LTD,LS16 6QY,810031,108201.97
Ministry of Defence,Ministry of Defence,13/06/2011,"Purchase of major spares armaments, medical & general stores",Defence Equipment & Support,PCA ELECTRONIC TEST LIMITED,NG23 5JR,806349,108000
Ministry of Defence,Ministry of Defence,29/06/2011,Fees for professional services,Central TLB,LOGICA UK LIMITED,KT22 7LP,813496,107198.44
Ministry of Defence,United Kingdom Hydrographic Office,08/06/2011,Computer maintenance & hire,ICT Delivery Business Group,BAE Systems,,2000054483,106810.9
Ministry of Defence,Ministry of Defence,17/06/2011,Design services and minor equipment purchases,Land Forces,CANNON TECHNOLOGIES LTD,,GPC 005,106473.42
Ministry of Defence,Ministry of Defence,10/06/2011,Fees for professional services,Central TLB,GIFFORD OWEN LTD,BA11 2WH,805393,105470
Ministry of Defence,Ministry of Defence,23/06/2011,Rent and rates,Defence Infrastructure Organisation ,SHROPSHIRE COUNCIL,SY2 6ND,811095,104751.46
Ministry of Defence,Ministry of Defence,24/06/2011,Design services and minor equipment purchases,Defence Equipment & Support,EUROCOPTER,,5000058394,104580
Ministry of Defence,Ministry of Defence,20/06/2011,Payment of utilities,Air Command,SSE ENERGY SUPPLY LIMITED,PH1 3AQ,809458,104407.77
Ministry of Defence,Ministry of Defence,07/06/2011,Estate management,Central TLB,SODEXO LTD,M50 0AL,803753,104153.39
Ministry of Defence,Ministry of Defence,24/06/2011,Payment of utilities,Defence Infrastructure Organisation ,ANGLIAN WATER SERVICES LIMITED,LN5 7WR,811243,104095.38
Ministry of Defence,Ministry of Defence,28/06/2011,Estate management,Defence Infrastructure Organisation ,BEZIRKSREGIERUNG DUESSELDORF,,5000058488,102610.45
Ministry of Defence,Ministry of Defence,08/06/2011,Estate management,Navy Command,VT FLAGSHIP LTD,PO6 4PR,804401,102582.21
Ministry of Defence,Ministry of Defence,13/06/2011,Purchase of inventory and services ,Land Forces,C F ANDERSON & SON LIMITED,C06 1HD,805973,102370.3
Ministry of Defence,Ministry of Defence,15/06/2011,Design services and minor equipment purchases,Defence Equipment & Support,TYNE SLIPWAY & ENGINEERING CO LIMITED,NE33 5PL,807596,101535.51
Ministry of Defence,Ministry of Defence,17/06/2011,Food and clothing,Defence Infrastructure Organisation ,ARAMARK LTD,LS16 6QY,808286,101172.61
Ministry of Defence,Ministry of Defence,16/06/2011,Payment of utilities,Air Command,SSE ENERGY SUPPLY LIMITED,PH1 3AQ,808155,101020.75
Ministry of Defence,Ministry of Defence,23/06/2011,Fees for professional services,Air Command,KELLOGG BROWN & ROOT LIMITED,KT22 7NL,810859,100928.24
Ministry of Defence,Ministry of Defence,28/06/2011,Fuel for military use,Land Forces,UNITED AVIATION SERVICES,,2000012037,100311.66
Ministry of Defence,Defence Science and Technology Laboratory,17/06/2011,Sub Contracted Research,Programme Office,QINETIQ LIMITED,,V - 9000133667 - 00107144,100000
Ministry of Defence,Defence Science and Technology Laboratory,17/06/2011,Sub Contracted Research,Programme Office,QINETIQ LIMITED,,V - 9000133667 - 00110879,100000
Ministry of Defence,Ministry of Defence,28/06/2011,Rent and rates,Defence Infrastructure Organisation ,NORTH KESTEVEN DISTRICT COUNCIL,NG34 4GL,813035,99952.99
Ministry of Defence,Ministry of Defence,20/06/2011,Rent and rates,Defence Infrastructure Organisation ,CENTRAL BEDFORDSHIRE COUNCIL,LU6 9HE,808997,99600.85
Ministry of Defence,Ministry of Defence,13/06/2011,Design services and minor equipment purchases,Defence Equipment & Support,LSC GROUP LIMITED,WS13 8RZ,806224,99509.63
Ministry of Defence,Ministry of Defence,14/06/2011,Estate management,Defence Equipment & Support,SODEXO LTD,M50 0AL,806945,99445.34
Ministry of Defence,Ministry of Defence,24/06/2011,Estate management,Central TLB,ARAMARK LTD,LS16 6QY,811250,99318.9
Ministry of Defence,Defence Science and Technology Laboratory,03/06/2011,Sub Contracted Research,Programme Office,PHOTONIS FRANCE SAS,,V - 0000000671 - 00104594,99272.57
Ministry of Defence,Royal Hospital Chelsea GIA,02/06/2011,Property Management,Royal Hospital Chelsea,Norland Managed Services Ltd,,PIN118195,99128.5
Ministry of Defence,Royal Hospital Chelsea GIA,27/06/2011,Property Management,Royal Hospital Chelsea,Norland Managed Services Ltd,,PIN118227,99128.5
Ministry of Defence,Met Office,10/06/2011,Accommodation,Chief Financial Officer,Stratus Integrated Services Ltd,,308385,98774.24
Ministry of Defence,Ministry of Defence,20/06/2011,Food and clothing,Defence Infrastructure Organisation ,ARAMARK LTD,LS16 6QY,808902,98750.13
Ministry of Defence,Ministry of Defence,07/06/2011,Payment of utilities,Land Forces,TOTAL GAS & POWER LIMITED,RH1 1RX,803797,98607.23
Ministry of Defence,Ministry of Defence,10/06/2011,Rent and rates,Defence Infrastructure Organisation ,HAMBLETON DISTRICT COUNCIL,DL6 2UU,805408,98317.7
Ministry of Defence,Ministry of Defence,28/06/2011,Estate management,Defence Infrastructure Organisation ,OBERFINANZDIREKTION NIEDERSACHSEN,,5000058503,97566.09
Ministry of Defence,Ministry of Defence,22/06/2011,Fuel for military use,Air Command,ARVAL UK LTD,SN5 6PE,810034,97333.5
Ministry of Defence,Ministry of Defence,22/06/2011,Externally delivered education and training.,Land Forces,ROYAL ARTILLERY CENTRE FOR PERSONAL DEVELOPMENT,SP4 8QT,810471,97106.75
Ministry of Defence,Ministry of Defence,08/06/2011,Rent and rates,Central TLB,BRB (RESIDUARY) LTD,LS1 4WG,803907,96939.9
Ministry of Defence,Ministry of Defence,28/06/2011,Externally delivered education and training.,Land Forces,THE GALLMANN MEMORIAL FOUNDATION,,3000005647,96810.55
Ministry of Defence,Ministry of Defence,13/06/2011,Rent and rates,Defence Infrastructure Organisation ,HART DISTRICT COUNCIL,GU51 4AE,806147,96522.37
Ministry of Defence,United Kingdom Hydrographic Office,07/06/2011,Displays and Exhibitions,"Marketing, CS & Channel Management",Identity Holdings Ltd,,2000054476,96415
Ministry of Defence,Ministry of Defence,27/06/2011,Design services and minor equipment purchases,Land Forces,BABCOCK LAND (WHITEFLEET MANAGEMENT) LIMITED,BH23 6BS,811996,96264.71
Ministry of Defence,Ministry of Defence,08/06/2011,Estate management,Defence Infrastructure Organisation ,BEZIRKSREGIERUNG DUESSELDORF,,5000057353,95915.4
Ministry of Defence,Ministry of Defence,02/06/2011,Research and development,Defence Equipment & Support,QINETIQ LIMITED,PO12 2AG,802099,95467.37
Ministry of Defence,Ministry of Defence,09/06/2011,Rent and rates,Defence Equipment & Support,MAPELEY DELTA ACQUISITION CO (1) LTD,MK9 2EA,804767,95400
Ministry of Defence,Ministry of Defence,13/06/2011,Food and clothing,Central TLB,ISS MEDICLEAN LIMITED,GU21 5RW,806179,95202.95
Ministry of Defence,Ministry of Defence,03/06/2011,Design services and minor equipment purchases,Air Command,SERCO LIMITED,RG27 9UY,802662,95058.21
Ministry of Defence,Ministry of Defence,07/06/2011,Medical treatment & stores and welfare services.,Central TLB,SOUTH STAFFORDSHIRE & SHROPSHIRE HEALTHCARE NHS FOUNDATION TRUST,ST16 3SR,2.00E+11,94945.5
Ministry of Defence,Ministry of Defence,22/06/2011,"Transporation of personnel, freight and travel expenses",Defence Equipment & Support,ROYAL MAIL GROUP LIMITED,PE4 5PG,810474,94817.85
Ministry of Defence,Ministry of Defence,10/06/2011,Payment of utilities,Navy Command,TOTAL GAS & POWER LIMITED,RH1 1RX,805806,94725.86
Ministry of Defence,Ministry of Defence,06/06/2011,IT and communication services,Defence Equipment & Support,IBM UNITED KINGDOM LIMITED,PO6 3AE,803022,94319.01
Ministry of Defence,Ministry of Defence,24/06/2011,Estate management,Defence Infrastructure Organisation ,LANDMARC SUPPORT SERVICES LIMITED,SP3 4RS,811550,94141
Ministry of Defence,Defence Science and Technology Laboratory,17/06/2011,Sub Contracted Work,Operations,SPEX SERVICES LIMITED,,V - 9000133661 - 00111058,94078
Ministry of Defence,Ministry of Defence,03/06/2011,Food and clothing,Defence Equipment & Support,KERRY FOODS LIMITED,,32530,93759.96
Ministry of Defence,Ministry of Defence,14/06/2011,Design services and minor equipment purchases,Defence Equipment & Support,SOARING (OXFORD) LTD,NG23 5NG,806943,93147.34
Ministry of Defence,Ministry of Defence,23/06/2011,Design services and minor equipment purchases,Air Command,SERCO LIMITED,RG27 9UY,811086,93135.42
Ministry of Defence,Ministry of Defence,14/06/2011,Design services and minor equipment purchases,Defence Equipment & Support,FERRANTI TECHNOLOGIES LIMITED,OL4 3JA,806715,93120
Ministry of Defence,Defence Science and Technology Laboratory,17/06/2011,Capital Asset expenditure,Operations,ROHDE & SCHWARZ U.K. LIMITED,,V - 9000133567 - 00111573,93011.64
Ministry of Defence,Ministry of Defence,17/06/2011,IT and communication services,Navy Command,BLUE ARROW,,GPC 007,93010.26
Ministry of Defence,Ministry of Defence,22/06/2011,Payment of utilities,Air Command,SSE ENERGY SUPPLY LIMITED,PH1 3AQ,810524,92929.92
Ministry of Defence,Ministry of Defence,28/06/2011,Research and development,Land Forces,DEFENCE SCIENCE & TECHNOLOGY LABORATORY,PO14 9HL,812796,92890.74
Ministry of Defence,Ministry of Defence,01/06/2011,Estate management,Defence Infrastructure Organisation ,SERCO LIMITED,RG27 9UY,801720,92801.3
Ministry of Defence,Ministry of Defence,01/06/2011,Estate management,Air Command,Wing Cold Lake,,146,92547.77
Ministry of Defence,Ministry of Defence,08/06/2011,"Transporation of personnel, freight and travel expenses",Defence Infrastructure Organisation ,RYDER DEUTSCHLAND GMBH,,5000057407,92242.18
Ministry of Defence,Ministry of Defence,09/06/2011,Administration ,Central TLB,DENNIS CARTER LIMITED,W1H 5AQ,804559,91927.3
Ministry of Defence,Ministry of Defence,01/06/2011,Fuel for military use,Land Forces,UNITED AVIATION SERVICES,,2000011760,91293.55
Ministry of Defence,United Kingdom Hydrographic Office,28/06/2011,Raw Material/ Finished Goods,Print & Supply,Elliott Baxter & Company ltd,,2000054788,91051.8
Ministry of Defence,Ministry of Defence,23/06/2011,Rent and rates,Defence Infrastructure Organisation ,SOUTH OXFORDSHIRE DISTRICT  COUNCIL,OX10 8HQ,811110,90822.6
Ministry of Defence,Ministry of Defence,08/06/2011,Purchase of inventory and services ,Land Forces,CORPORATE DOCUMENT SERVICES  LIMITED,LS2 7LY,803951,90782.15
Ministry of Defence,Ministry of Defence,23/06/2011,Design services and minor equipment purchases,Defence Equipment & Support,DEFENCE SUPPORT GROUP  (DSG),SP11 8HT,810746,90677.38
Ministry of Defence,Ministry of Defence,24/06/2011,Estate management,Defence Infrastructure Organisation ,MODERN HOUSING SOLUTIONS (PRIME)LIMITED,PE28 4QG,811591,89727.27
Ministry of Defence,Ministry of Defence,23/06/2011,Rent and rates,Defence Infrastructure Organisation ,PORTSMOUTH CITY COUNCIL,PO1 2BE,811026,89681.18
Ministry of Defence,Ministry of Defence,23/06/2011,Estate management,Air Command,AVENANCE PLC,SK11 6ET,810646,89508.22
Ministry of Defence,Ministry of Defence,08/06/2011,Fuel for military use,Air Command,ARVAL UK LTD,SN5 6PE,803860,89375.05
Ministry of Defence,Ministry of Defence,13/06/2011,Rent and rates,Defence Infrastructure Organisation ,CITY OF EDINBURGH COUNCIL,EH1 1UF,806003,88571.73
Ministry of Defence,Defence Science and Technology Laboratory,14/06/2011,Sub Contracted Research,Programme Office,ROKE MANOR RESEARCH LIMITED,,V - 9000133515 - 00107168,88466
Ministry of Defence,Ministry of Defence,21/06/2011,Food and clothing,Defence Infrastructure Organisation ,AVENANCE PLC,SK11 6ET,809589,88106.08
Ministry of Defence,Defence Science and Technology Laboratory,24/06/2011,Sub Contracted Research,Programme Office,MET OFFICE,,V - 9000133754 - 00105121,88000
Ministry of Defence,Ministry of Defence,17/06/2011,"Purchase of munitions, other inventory or fuel",Defence Equipment & Support,FUCHS LUBRICANTS (UK) PLC,ST1 5HU,808500,87679.98
Ministry of Defence,Ministry of Defence,16/06/2011,Grants to NDPBs,Land Forces,ARMY FAMILIES FEDERATION,SN9 6BE,807658,87500
Ministry of Defence,Ministry of Defence,16/06/2011,"Transporation of personnel, freight and travel expenses",Defence Equipment & Support,DHL GLOBAL FORWARDING (UK)  LIMITED,TW18 4BP,807787,87316.82
Ministry of Defence,Ministry of Defence,27/06/2011,Food and clothing,Defence Infrastructure Organisation ,AVENANCE PLC,SK11 6ET,811988,86580.45
Ministry of Defence,Ministry of Defence,14/06/2011,"Purchase of munitions, other inventory or fuel",Defence Equipment & Support,PACE FUELCARE LIMITED,TW20 9AB,806869,86554.59
Ministry of Defence,Ministry of Defence,13/06/2011,Estate management,Defence Infrastructure Organisation ,ASPIRE DEFENCE LIMITED,SP9 7QD,805912,86537.9
Ministry of Defence,Ministry of Defence,27/06/2011,Medical treatment & stores and welfare services.,Central TLB,SPIRE HEALTHCARE LIMITED,PO9 5NP,812593,86350.15
Ministry of Defence,Ministry of Defence,22/06/2011,Food and clothing,Defence Equipment & Support,PURPLE FOODSERVICE SOLUTIONS LIMITED,GU32 3QD,810449,86135.87
Ministry of Defence,Ministry of Defence,14/06/2011,Rent and rates,Defence Infrastructure Organisation ,TEST VALLEY BOROUGH COUNCIL,SP10 3AJ,806982,86113.63
Ministry of Defence,Ministry of Defence,22/06/2011,Estate management,Defence Infrastructure Organisation ,SERCO LIMITED,RG27 9UY,810496,85796.01
Ministry of Defence,Ministry of Defence,17/06/2011,Estate management,Land Forces,CORDEN HARDWARE PRODUC,,GPC 006,85752.7
Ministry of Defence,United Kingdom Hydrographic Office,28/06/2011,Project External Costs,Transformation,BAE Systems,,2000054779,85444.15
Ministry of Defence,Ministry of Defence,27/06/2011,Externally delivered education and training.,Navy Command,UNIVERSITY OF PLYMOUTH,PL4 8AA,812654,85013.17
Ministry of Defence,Ministry of Defence,27/06/2011,Estate management,Defence Infrastructure Organisation ,ZWECKVERBAND ABFALLWIRTSCHAFT CELLE,,5000058486,84966.83
Ministry of Defence,Defence Science and Technology Laboratory,14/06/2011,Sub Contracted Work,Programme Office,FLUID GRAVITY ENGINEERING LIMITED,,V - 9000133518 - 00108815,84564.38
Ministry of Defence,Ministry of Defence,20/06/2011,Transport hire charges,Defence Equipment & Support,BABCOCK LAND (WHITEFLEET MANAGEMENT) LIMITED,BH23 6BS,808919,84539.92
Ministry of Defence,Defence Science and Technology Laboratory,24/06/2011,Sub Contracted Work,Operations,SERCO TECHNICAL CONSULTANCY SERVICES,,V - 9000133838 - 00106706,84221.95
Ministry of Defence,Ministry of Defence,01/06/2011,Estate management,Defence Equipment & Support,KIMTA ELECTRIC PTE LTD,,S00088/11,83772.52
Ministry of Defence,Royal Hospital Chelsea GIA,27/06/2011,Property Management,Royal Hospital Chelsea,Norland Managed Services Ltd,,PIN118228,83554.01
Ministry of Defence,Ministry of Defence,28/06/2011,IT and communication services,Defence Equipment & Support,IBM UNITED KINGDOM LIMITED,PO6 3AE,812870,83446.13
Ministry of Defence,Ministry of Defence,27/06/2011,IT and communication services,Defence Equipment & Support,MICROSOFT LTD,,32741,83434.9
Ministry of Defence,Ministry of Defence,20/06/2011,Estate management,Defence Infrastructure Organisation ,LANDKREIS HAMELN-PYRMONT,,5000057905,83415.65
Ministry of Defence,Ministry of Defence,20/06/2011,Design services and minor equipment purchases,Defence Equipment & Support,CONWAY PACKING SERVICES LTD,DY4 7UD,809019,83414.28
Ministry of Defence,Defence Science and Technology Laboratory,17/06/2011,Sub Contracted Work,Operations,DYTECNA LIMITED,,V - 9000133548 - 00110971,83364.29
Ministry of Defence,Met Office,03/06/2011,Accommodation,Chief Financial Officer,Total Gas & Power Limited,,308133,83281.12
Ministry of Defence,Defence Science and Technology Laboratory,17/06/2011,Sub Contracted Research,Programme Office,ATLAS ELEKTRONIK UK LIMITED,,V - 9000133674 - 00111317,83270.7
Ministry of Defence,Ministry of Defence,15/06/2011,Purchase of plant and machinery,Navy Command,VT FLAGSHIP LTD,PO6 4PR,807613,83245.7
Ministry of Defence,Defence Science and Technology Laboratory,17/06/2011,Sub Contracted Research,Programme Office,ROKE MANOR RESEARCH LIMITED,,V - 9000133568 - 00109019,82416.51
Ministry of Defence,Ministry of Defence,27/06/2011,Purchase of buildings and military equipment ,Defence Infrastructure Organisation ,TURNER FACILITIES MANAGEMENT LTD,G51 3EQ,812640,82413.99
Ministry of Defence,Ministry of Defence,17/06/2011,IT and communication services,Navy Command,QINETIQ LTD,,GPC 009,81955.94
Ministry of Defence,Defence Science and Technology Laboratory,10/06/2011,Sub Contracted Work,Operations,BAE SYSTEMS (OPERATIONS) LIMITED,,V - 9000133337 - 00110239,81868
Ministry of Defence,Defence Science and Technology Laboratory,10/06/2011,Sub Contracted Work,Operations,BAE SYSTEMS (OPERATIONS) LIMITED,,V - 9000133337 - 00109636,81867
Ministry of Defence,Council of Reserve Forces and Cadets Associations,12/05/2011,Rent and rates,Infrastructure,Vale of White Horse District Council,,2158,81480
Ministry of Defence,Ministry of Defence,27/06/2011,Externally delivered education and training.,Land Forces,ROYAL ARTILLERY CENTRE FOR PERSONAL DEVELOPMENT,SP4 8QT,812540,81119.49
Ministry of Defence,United Kingdom Hydrographic Office,14/06/2011,Admiralty Promotional Programme/ OEM support,"Marketing, CS & Channel Management",JBA Training Design Ltd,,2000054605,80019
Ministry of Defence,Ministry of Defence,03/06/2011,Fees for professional services,Land Forces,FRONTIER MEDICAL SERVICES  LIMITED,GL17 0DD,802387,79745
Ministry of Defence,Ministry of Defence,17/06/2011,Fees for professional services,Central TLB,DEFENCE SCIENCE & TECHNOLOGY LABORATORY,PO14 9HL,808419,79716.58
Ministry of Defence,Ministry of Defence,17/06/2011,IT and communication services,Navy Command,NSSL GLOBAL LIMITE,,GPC 008,79599.45
Ministry of Defence,Council of Reserve Forces and Cadets Associations,31/05/2011,Grants to Reserves Forces and Cadets Association,Estates Management,MCCarrick Construction,,7289,79550.92
Ministry of Defence,Ministry of Defence,22/06/2011,Estate management,Defence Infrastructure Organisation ,OBERFINANZDIREKTION NIEDERSACHSEN,,5000058213,79545.09
Ministry of Defence,Ministry of Defence,15/06/2011,Estate management,Navy Command,VT FLAGSHIP LTD,PO6 4PR,807613,79466.71
Ministry of Defence,Defence Science and Technology Laboratory,01/06/2011,Sub Contracted Research,Programme Office,COSWORTH ELECTRONICS LIMITED,,V - 9000133153 - 00106633,79444
Ministry of Defence,Ministry of Defence,23/06/2011,Payment of utilities,Air Command,GB OILS LIMITED,FK5 4RB,810806,79394.37
Ministry of Defence,Ministry of Defence,15/06/2011,Purchase of buildings and military equipment ,Defence Infrastructure Organisation ,CARILLIONENTERPRISE LIMITED,B75 7RL,807158,79351.45
Ministry of Defence,Met Office,15/06/2011,Services,Government Business,Bbc,,308344,79166.67
Ministry of Defence,Ministry of Defence,13/06/2011,Purchase of buildings and military equipment ,Defence Equipment & Support,RELAY ENGINEERING LIMITED,PL2 2BG,806386,78875
Ministry of Defence,Ministry of Defence,13/06/2011,Estate management,Land Forces,HESCO BASTION LTD,LS9 0NP,806158,78825.1
Ministry of Defence,Ministry of Defence,17/06/2011,"Transporation of personnel, freight and travel expenses",Land Forces,PHOENIX HOLIDAYS LTD,,GPC 010,78300
Ministry of Defence,Defence Science and Technology Laboratory,24/06/2011,Sub Contracted Research,Programme Office,QINETIQ LIMITED,,V - 9000133878 - 00108910,78134
Ministry of Defence,Ministry of Defence,27/06/2011,Purchase of inventory and services ,Defence Equipment & Support,PROMETHEUS MEDICAL LTD,HR6 0PW,812509,78090
Ministry of Defence,Ministry of Defence,29/06/2011,Payment of utilities,Land Forces,TOTAL GAS & POWER LIMITED,RH1 1RX,813723,78007.58
Ministry of Defence,Ministry of Defence,01/06/2011,Estate management,Defence Infrastructure Organisation ,LENGELING SERVICE GMBH,,5000057056,77958.5
Ministry of Defence,Ministry of Defence,28/06/2011,Payment of utilities,Defence Infrastructure Organisation ,NVV AG,,5000058502,77919.01
Ministry of Defence,Ministry of Defence,10/06/2011,Rent and rates,Defence Infrastructure Organisation ,HARROGATE BOROUGH COUNCIL,HG1 2SG,805412,77659.68
Ministry of Defence,Ministry of Defence,13/06/2011,Payment of utilities,Land Forces,GB OILS LIMITED,FK5 4RB,806128,77637.29
Ministry of Defence,Ministry of Defence,24/06/2011,Payment of utilities,Defence Equipment & Support,GB OILS LIMITED,FK5 4RB,811464,77629.86
Ministry of Defence,Ministry of Defence,22/06/2011,Rent and rates,Defence Infrastructure Organisation ,TOUCHSTONE CORPORATE PROPERTY SERVICES LIMITED,BA2 2AF,810562,77541.11
Ministry of Defence,Ministry of Defence,28/06/2011,Design services and minor equipment purchases,Defence Equipment & Support,SALT SEPARATION SERVICES LIMITED,OL11 1AP,813114,77413
Ministry of Defence,Council of Reserve Forces and Cadets Associations,12/05/2011,Rent and rates,Infrastructure,Vale of White Horse District Council,,2159,77292.56
Ministry of Defence,Ministry of Defence,02/06/2011,Estate management,Defence Infrastructure Organisation ,LENGELING SERVICE GMBH,,5000057188,77263.92
Ministry of Defence,Ministry of Defence,07/06/2011,Fees for professional services,Navy Command,HP ENTERPRISE SERVICES DEFENCE & SECURITY UK LIMITED,RG27 9XA,803573,77191
Ministry of Defence,Ministry of Defence,23/06/2011,Rent and rates,Defence Infrastructure Organisation ,RUTLAND COUNTY COUNCIL  DISTRICT COUNCIL,LE15 6HP,811074,77169.16
Ministry of Defence,Ministry of Defence,10/06/2011,Estate management,Defence Infrastructure Organisation ,BEZIRKSREGIERUNG DUESSELDORF,,5000057497,77007.22
Ministry of Defence,Ministry of Defence,28/06/2011,IT and communication services,Central TLB,DEPARTMENT FOR WORK AND PENSIONS,FY5 3TA,812798,77000
Ministry of Defence,Ministry of Defence,08/06/2011,Payment of utilities,Defence Infrastructure Organisation ,STADTWERKE HAMELN,,5000057410,76904.36
Ministry of Defence,Defence Support Group,23/06/2011,Technical Standards,Corporate,IHS GLOBAL LTD,,10128941,76567
Ministry of Defence,Ministry of Defence,09/06/2011,Fuel for military use,Land Forces,UNITED AVIATION SERVICES,,2000011856,76321.01
Ministry of Defence,Ministry of Defence,09/06/2011,IT and communication services,Defence Equipment & Support,LOCKHEED MARTIN UK LIMITED,GU14 6TQ,2000011843,76188.27
Ministry of Defence,Ministry of Defence,09/06/2011,"Transporation of personnel, freight and travel expenses",Defence Equipment & Support,PALLETWAYS (U K) LTD,WS13 8NE,804912,76050.72
Ministry of Defence,Ministry of Defence,09/06/2011,Estate management,Air Command,TRAVIS PERKINS TRADING COMPANY LIMITED,NN5 7UE,805065,75976.15
Ministry of Defence,Ministry of Defence,07/06/2011,Fees for professional services,Central TLB,HP ENTERPRISE SERVICES DEFENCE & SECURITY UK LIMITED,RG27 9XA,803573,75290
Ministry of Defence,Ministry of Defence,17/06/2011,Transport hire charges,Land Forces,BABCOCK LAND (WHITEFLEET MANAGEMENT) LIMITED,BH23 6BS,808308,75258.15
Ministry of Defence,Defence Science and Technology Laboratory,03/06/2011,Sub Contracted Research,Programme Office,QINETIQ LIMITED,,V - 9000133275 - 00106553,75254
Ministry of Defence,Ministry of Defence,29/06/2011,Payment of utilities,Defence Infrastructure Organisation ,Babcock,,24424,75133.91
Ministry of Defence,Ministry of Defence,27/06/2011,Fees for professional services,Land Forces,L.A. INTERNATIONAL COMPUTER  CONSULTANTS LIMITED,ST1 5UB,812283,74990
Ministry of Defence,Ministry of Defence,22/06/2011,IT and communication services,Defence Equipment & Support,DEVONPORT ROYAL DOCKYARD LIMITED,PL1 4SG,810155,74952
Ministry of Defence,Ministry of Defence,14/06/2011,Rent and rates,Defence Infrastructure Organisation ,SURREY HEATH BOROUGH COUNCIL,GU15 3HD,806971,74867.36
Ministry of Defence,Defence Science and Technology Laboratory,17/06/2011,Sub Contracted Work,Operations,MILLBROOK PROVING GROUND LIMITED,,V - 9000133638 - 00109451,74865
Ministry of Defence,Ministry of Defence,06/06/2011,Estate management,Defence Infrastructure Organisation ,MODERN HOUSING SOLUTIONS (PRIME)LIMITED,PE28 4QG,803096,74787.24
Ministry of Defence,Ministry of Defence,07/06/2011,Transport hire charges,Defence Equipment & Support,BABCOCK LAND (WHITEFLEET MANAGEMENT) LIMITED,BH23 6BS,803428,74675.71
Ministry of Defence,Ministry of Defence,16/06/2011,Payment of utilities,Defence Equipment & Support,SSE ENERGY SUPPLY LIMITED,PH1 3AQ,808155,74664.01
Ministry of Defence,Ministry of Defence,09/06/2011,"Purchase of munitions, other inventory or fuel",Defence Equipment & Support,ITW LIMITED,LS26 8BS,804721,74597.62
Ministry of Defence,Ministry of Defence,06/06/2011,Payment of utilities,Defence Infrastructure Organisation ,FIRMUS ENERGY (SUPPLY) LIMITED,BT41 4NN,32539,74383.42
Ministry of Defence,Ministry of Defence,13/06/2011,Rent and rates,Defence Infrastructure Organisation ,FIFE COUNCIL,KY7 5LT,806110,74159.48
Ministry of Defence,Ministry of Defence,21/06/2011,Payment of utilities,Defence Infrastructure Organisation ,MABANAFT DEUTSCHLAND GMBH,,5000058024,73913.21
Ministry of Defence,Ministry of Defence,29/06/2011,Estate management,Defence Infrastructure Organisation ,GEM MBH,,5000058531,73913.04
Ministry of Defence,Ministry of Defence,28/06/2011,Medical treatment & stores and welfare services.,Central TLB,NUFFIELD ORTHOPAEDIC CENTRE NHS  TRUST,OX3 7LD,2.00E+11,73795
Ministry of Defence,Ministry of Defence,15/06/2011,Fees for professional services,Land Forces,CENTRAL OFFICE OF INFORMATION,SE1 7DU,807167,73685.8
Ministry of Defence,Defence Science and Technology Laboratory,14/06/2011,Sub Contracted Research,Programme Office,NP AEROSPACE LIMITED,,V - 9000133517 - 00111004,73592.89
Ministry of Defence,Ministry of Defence,15/06/2011,Externally delivered education and training.,Air Command,WESTLAND HELICOPTERS LTD,BA20 2YB,807620,73367
Ministry of Defence,Ministry of Defence,23/06/2011,Purchase of buildings and military equipment ,Defence Infrastructure Organisation ,CARILLIONENTERPRISE LIMITED,B75 7RL,810707,72752.74
Ministry of Defence,Ministry of Defence,01/06/2011,Estate management,Air Command,"Cold Lake, Alberta",,155,72653.57
Ministry of Defence,United Kingdom Hydrographic Office,09/06/2011,Computer maintenance & hire,ICT Delivery Business Group,Maritime Information Systems AS,,1500012315,72500
Ministry of Defence,Ministry of Defence,20/06/2011,Rent and rates,Defence Infrastructure Organisation ,ARGYLL & BUTE COUNCIL,PA28 JU,808903,72493.11
Ministry of Defence,Ministry of Defence,22/06/2011,Purchase of inventory and services ,Defence Equipment & Support,CORPORATE DOCUMENT SERVICES  LIMITED,LS2 7LY,810132,72410.74
Ministry of Defence,Ministry of Defence,27/06/2011,Medical treatment & stores and welfare services.,Central TLB,PORTSMOUTH HOSPITALS N H S TRUST,WF3 1WE,2.00E+11,72360
Ministry of Defence,Ministry of Defence,07/06/2011,Fees for professional services,Air Command,HP ENTERPRISE SERVICES DEFENCE & SECURITY UK LIMITED,RG27 9XA,803573,72132
Ministry of Defence,Ministry of Defence,09/06/2011,"Transporation of personnel, freight and travel expenses",Defence Equipment & Support,CARTUS LTD,SN5 8RS,804520,71865.03
Ministry of Defence,Met Office,15/06/2011,Software Licences,Technology,Insight Direct (Uk) Ltd,,308592,71787.1
Ministry of Defence,Ministry of Defence,02/06/2011,Payment of utilities,Defence Equipment & Support,SSE ENERGY SUPPLY LIMITED,PH1 3AQ,802157,71733.54
Ministry of Defence,Defence Science and Technology Laboratory,24/06/2011,Travel & Subsistence,Operations,BARCLAYCARD,,G - 9000133909 - 00112432,71495.39
Ministry of Defence,Defence Science and Technology Laboratory,24/06/2011,Energy & Utility,Infrastructure,TOTAL GAS & POWER LIMITED,,V - 9000133859 - 00112253,71237.47
Ministry of Defence,Defence Support Group,30/06/2011,Works - Fees,Business Stream 2,BABCOCK SUPPORT SERVICES LTD,,10129909,71125.59
Ministry of Defence,Ministry of Defence,28/06/2011,Rent and rates,Defence Infrastructure Organisation ,TEWKESBURY BOROUGH COUNCIL,GL20 5TT,813163,70757.23
Ministry of Defence,Ministry of Defence,24/06/2011,Food and clothing,Defence Infrastructure Organisation ,ARAMARK LTD,LS16 6QY,811250,70737.21
Ministry of Defence,Ministry of Defence,17/06/2011,Design services and minor equipment purchases,Land Forces,BABCOCK LAND (WHITEFLEET MANAGEMENT) LIMITED,BH23 6BS,808308,70679.54
Ministry of Defence,Ministry of Defence,10/06/2011,Estate management,Defence Infrastructure Organisation ,COMPASS SERVICES (U.K.) LIMITED,B45 9PZ,805271,70567.32
Ministry of Defence,Ministry of Defence,15/06/2011,Food and clothing,Land Forces,BRISTOL MANAGED SERVICES LTD,BS16 5LL,807131,70560.2
Ministry of Defence,Ministry of Defence,23/06/2011,Estate management,Defence Infrastructure Organisation ,LENGELING SERVICE GMBH,,5000058330,70518.76
Ministry of Defence,Ministry of Defence,17/06/2011,Design services and minor equipment purchases,Defence Equipment & Support,BABCOCK INTEGRATED TECHNOLOGY  LIMITED,BS3 2HQ,808306,70462.8
Ministry of Defence,Ministry of Defence,22/06/2011,IT and communication services,Defence Equipment & Support,CIVICA UK LIMITED,B46 1JU,810123,70249.72
Ministry of Defence,Ministry of Defence,24/06/2011,Design services and minor equipment purchases,Air Command,COMPASS GROUP UK AND IRELAND LIMITED,B45 9PZ,811368,70068.14
Ministry of Defence,Ministry of Defence,03/06/2011,Medical treatment & stores and welfare services.,Central TLB,DR MARTIN ERRINGTON T/A ERRINGTON ASSOCIATES,EH13 0DT,802356,70006
Ministry of Defence,Ministry of Defence,09/06/2011,Research and development,Defence Equipment & Support,QINETIQ LIMITED,PO12 2AG,804947,70000
Ministry of Defence,Ministry of Defence,10/06/2011,Purchase of buildings and military equipment ,Defence Infrastructure Organisation ,TURNER FACILITIES MANAGEMENT LTD,G51 3EQ,805815,69890.36
Ministry of Defence,Ministry of Defence,10/06/2011,Food and clothing,Defence Infrastructure Organisation ,COMPASS SERVICES (U.K.) LIMITED,B45 9PZ,805271,69868.31
Ministry of Defence,Ministry of Defence,22/06/2011,Medical treatment & stores and welfare services.,Central TLB,SOUTH STAFFORDSHIRE & SHROPSHIRE HEALTHCARE NHS FOUNDATION TRUST,ST16 3SR,2.00E+11,69820
Ministry of Defence,Ministry of Defence,16/06/2011,Design services and minor equipment purchases,Defence Equipment & Support,GEMCO SERVICE LIMITED,HX2 6JB,807832,69730
Ministry of Defence,Defence Science and Technology Laboratory,17/06/2011,Sub Contracted Work,Operations,IMPERIAL COLLEGE LONDON,,V - 9000133627 - 00108841,69680
Ministry of Defence,Ministry of Defence,23/06/2011,Rent and rates,Defence Infrastructure Organisation ,LAND AND PROPERTY SERVICES,BT1 4JB,32710,69608.9
Ministry of Defence,Ministry of Defence,13/06/2011,IT and communication services,Central TLB,British Telecom Al Saudia Ltd,,CO AP03 018,69561.67
Ministry of Defence,Ministry of Defence,20/06/2011,Estate management,Defence Infrastructure Organisation ,OBERFINANZDIREKTION NIEDERSACHSEN,,5000057924,69451.4
Ministry of Defence,Ministry of Defence,15/06/2011,Transport hire charges,Land Forces,RYDER DEUTSCHLAND GMBH,,5000057729,69318.2
Ministry of Defence,Ministry of Defence,28/06/2011,Design services and minor equipment purchases,Defence Equipment & Support,MITCHELL DIESEL LIMITED,NG17 2JZ,812949,69134.11
Ministry of Defence,Ministry of Defence,08/06/2011,Estate management,Defence Infrastructure Organisation ,TURNER ESTATE SOLUTIONS LIMITED,KY11 2BL,804386,69088
Ministry of Defence,Ministry of Defence,22/06/2011,Payment of utilities,Central TLB,SSE ENERGY SUPPLY LIMITED,PH1 3AQ,810524,68886.6
Ministry of Defence,Ministry of Defence,13/06/2011,Design services and minor equipment purchases,Land Forces,BABCOCK LAND (WHITEFLEET MANAGEMENT) LIMITED,BH23 6BS,805925,68487.2
Ministry of Defence,Ministry of Defence,13/06/2011,Fees for professional services,Central TLB,CAPITA BUSINESS SERVICES LTD,DL1 9HN,805980,68047.84
Ministry of Defence,Ministry of Defence,27/06/2011,Payment of utilities,Defence Infrastructure Organisation ,TOTAL GAS & POWER LIMITED,RH1 1RX,812637,67967.77
Ministry of Defence,Ministry of Defence,22/06/2011,"Purchase of munitions, other inventory or fuel",Defence Equipment & Support,THE HIGHLAND COUNCIL,IV3 5NX,810550,67945.2
Ministry of Defence,Ministry of Defence,02/06/2011,Fees for professional services,Defence Infrastructure Organisation ,GRONTMIJ LIMITED,LS7 4DN,801935,67808.02
Ministry of Defence,Ministry of Defence,02/06/2011,International contributions,Central TLB,CRANFIELD UNIVERSITY,MK43 0AL,801874,67750.5
Ministry of Defence,Ministry of Defence,23/06/2011,Design services and minor equipment purchases,Land Forces,THE AUTOMOBILE ASSOCIATION LIMITED,RG21 4EA,161063,67609.57
Ministry of Defence,Ministry of Defence,22/06/2011,Fuel for military use,Defence Equipment & Support,ARVAL UK LTD,SN5 6PE,810034,67257.51
Ministry of Defence,Ministry of Defence,01/06/2011,Payment of utilities,Central TLB,GB OILS LIMITED,FK5 4RB,801549,67145.33
Ministry of Defence,Ministry of Defence,14/06/2011,Payment of utilities,Central TLB,SSE ENERGY SUPPLY LIMITED,PH1 3AQ,806962,67032.48
Ministry of Defence,Ministry of Defence,02/06/2011,Food and clothing,Defence Equipment & Support,SERCO LIMITED,RG27 9UY,802131,66929.43
Ministry of Defence,Ministry of Defence,23/06/2011,Transport hire charges,Defence Equipment & Support,BABCOCK LAND (WHITEFLEET MANAGEMENT) LIMITED,BH23 6BS,810656,66906.67
Ministry of Defence,Ministry of Defence,14/06/2011,Building maintenance and accommodation stores,Land Forces,FORBO FLOORING UK LIMITED,DE5 3NT,806719,66881.48
Ministry of Defence,Defence Science and Technology Laboratory,24/06/2011,Sub Contracted Work,Operations,VESTGUARD UK LIMITED,,V - 9000133890 - 00111783,66567.2
Ministry of Defence,Defence Science and Technology Laboratory,10/06/2011,Sub Contracted Work,Programme Office,NORTHROP GRUMMAN MISSION SYSTEMS EUROPE,,V - 9000133331 - 00110645,66500
Ministry of Defence,Ministry of Defence,08/06/2011,Estate management,Air Command,COMPASS SERVICES (U.K.) LIMITED,B45 9PZ,803947,66249.78
Ministry of Defence,Ministry of Defence,28/06/2011,Rent and rates,Defence Infrastructure Organisation ,NORTH DORSET DISTRICT COUNCIL,DT11 7LL,813034,66235.76
Ministry of Defence,Ministry of Defence,03/06/2011,Fees for professional services,Air Command,CARILLIONENTERPRISE LIMITED,B75 7RL,802308,66141.11
Ministry of Defence,Ministry of Defence,28/06/2011,Payment of utilities,Command Joint Operations,VEOLIA WATER OUTSOURCING LIMITED,AL10 9HL,813198,65821.21
Ministry of Defence,Ministry of Defence,10/06/2011,Fees for professional services,Defence Infrastructure Organisation ,GVA GRIMLEY LIMITED,B1 2JB,805402,65770
Ministry of Defence,Ministry of Defence,28/06/2011,Rent and rates,Defence Infrastructure Organisation ,BOROUGH COUNCIL OF KINGS LYNN & WEST NORFOLK,PE30 1PX,812745,65651.16
Ministry of Defence,Ministry of Defence,23/06/2011,Purchase of buildings and military equipment ,Defence Infrastructure Organisation ,BABCOCK DYNCORP LIMITED,PE28 2EA,810653,65630
Ministry of Defence,Ministry of Defence,03/06/2011,IT and communication services,Defence Equipment & Support,SYSTECON (U.K.) LIMITED,DT4 9YY,802697,65570
Ministry of Defence,Ministry of Defence,24/06/2011,Externally delivered education and training.,Land Forces,TQ EDUCATION AND TRAINING  LIMITED,DE74 2SJ,811871,65560
Ministry of Defence,Defence Science and Technology Laboratory,07/06/2011,Materials & Equipment,Operations,VWR INTERNATIONAL,,V - 9000133308 - 00110833,65322.75
Ministry of Defence,Ministry of Defence,10/06/2011,Rent and rates,Defence Infrastructure Organisation ,GUILDFORD BOROUGH COUNCIL,GU2 4BB,805401,65273.23
Ministry of Defence,Ministry of Defence,14/06/2011,Food and clothing,Defence Infrastructure Organisation ,AVENANCE PLC,SK11 6ET,806577,65170.41
Ministry of Defence,Ministry of Defence,29/06/2011,Design services and minor equipment purchases,Defence Equipment & Support,ATLAS ELEKTRONIK UK LIMITED,NP19 4SS,813254,65000
Ministry of Defence,Ministry of Defence,20/06/2011,Payment of utilities,Defence Infrastructure Organisation ,STADT HAMELN,,5000057941,64868.4
Ministry of Defence,Ministry of Defence,17/06/2011,IT and communication services,Defence Equipment & Support,HP ENTERPRISE SERVICES DEFENCE & SECURITY UK LIMITED,OX25 1LP,808545,64686.94
Ministry of Defence,Ministry of Defence,13/06/2011,Rent and rates,Defence Infrastructure Organisation ,CORNWALL COUNCIL,PL27 6TW,806021,64578.39
Ministry of Defence,Ministry of Defence,14/06/2011,Design services and minor equipment purchases,Defence Equipment & Support,HONEYWELL AEROSPACE UK,BA20 2YD,806759,64551.12
Ministry of Defence,Ministry of Defence,27/06/2011,Design services and minor equipment purchases,Defence Equipment & Support,HONEYWELL AEROSPACE UK,BA20 2YD,812250,64551.12
Ministry of Defence,Ministry of Defence,21/06/2011,"Transporation of personnel, freight and travel expenses",Central TLB,RAIL SETTLEMENT PLAN LIMITED,SG1 2YN,809886,64528.6
Ministry of Defence,Ministry of Defence,22/06/2011,"Transporation of personnel, freight and travel expenses",Defence Equipment & Support,DHL GLOBAL FORWARDING (UK)  LIMITED,TW18 4BP,810156,64434.54
Ministry of Defence,Ministry of Defence,06/06/2011,Estate management,Defence Infrastructure Organisation ,BEZIRKSREGIERUNG DUESSELDORF,,5000057303,64417.71
Ministry of Defence,Defence Science and Technology Laboratory,17/06/2011,Sub Contracted Work,Operations,ALCOA EUROPE LIMITED,,V - 9000133611 - 00109689,64417.5
Ministry of Defence,Ministry of Defence,16/06/2011,Fuel for military use,Air Command,CEPSA GIBRALTAR LTD,,3000005604,64375.97
Ministry of Defence,Ministry of Defence,28/06/2011,Externally delivered education and training.,Land Forces,KAMOGI LIMITED,,3000005644,64325.23
Ministry of Defence,Ministry of Defence,27/06/2011,Medical treatment & stores and welfare services.,Central TLB,DR MARTIN ERRINGTON T/A ERRINGTON ASSOCIATES,EH13 0DT,812161,63963
Ministry of Defence,Ministry of Defence,20/06/2011,Rent and rates,Defence Infrastructure Organisation ,AYLESBURY VALE DISTRICT COUNCIL,HP20 2TW,808915,63905.22
Ministry of Defence,Ministry of Defence,24/06/2011,"Transporation of personnel, freight and travel expenses",Land Forces,DHL GLOBAL FORWARDING (UK)  LIMITED,TW18 4BP,811397,63707.49
Ministry of Defence,Ministry of Defence,04/06/2011,Estate management,Central TLB,NCMA,,CO AP03 017,63513.55
Ministry of Defence,Royal Hospital Chelsea GIA,02/06/2011,Property Management,Royal Hospital Chelsea,Norland Managed Services Ltd,,PIN118196,63487.8
Ministry of Defence,Ministry of Defence,03/06/2011,Purchase of plant and machinery,Defence Equipment & Support,STS DEFENCE LIMITED,PO12 1AF,160473,63396.39
Ministry of Defence,Council of Reserve Forces and Cadets Associations,18/05/2011,IT and communication services,IT & Comms,Mycroft Talisen Ltd,,11,63228
Ministry of Defence,Ministry of Defence,03/06/2011,Estate management,Land Forces,HUMBERSIDE AGGREGATES & EXCAVATIONS LIMITED,HU15 2PG,802428,63140.79
Ministry of Defence,Ministry of Defence,27/06/2011,Estate management,Defence Infrastructure Organisation ,AVENANCE PLC,SK11 6ET,811988,62987.33
Ministry of Defence,Ministry of Defence,07/06/2011,Payment of utilities,Air Command,TOTAL GAS & POWER LIMITED,RH1 1RX,803797,62985.03
Ministry of Defence,Ministry of Defence,24/06/2011,"Purchase of munitions, other inventory or fuel",Defence Equipment & Support,WINCANTON GROUP LIMITED,SN14 0WT,811917,62976.31
Ministry of Defence,Defence Science and Technology Laboratory,01/06/2011,Sub Contracted Work,Operations,ATLAS ELEKTRONIK UK LIMITED,,V - 9000133154 - 00107425,62822.77
Ministry of Defence,Ministry of Defence,22/06/2011,Design services and minor equipment purchases,Defence Equipment & Support,DEFENCE SCIENCE & TECHNOLOGY LABORATORY,PO14 9HL,810150,62745.46
Ministry of Defence,Ministry of Defence,02/06/2011,Design services and minor equipment purchases,Land Forces,BABCOCK LAND (WHITEFLEET MANAGEMENT) LIMITED,BH23 6BS,801809,62695.08
Ministry of Defence,Ministry of Defence,24/06/2011,Design services and minor equipment purchases,Defence Equipment & Support,CONWAY PACKING SERVICES LTD,DY4 7UD,811376,62527.7
Ministry of Defence,Ministry of Defence,20/06/2011,Transport hire charges,Defence Equipment & Support,DAWSONRENTALS TRUCK & TRAILER LTD,MK15 8JH,809034,62312.2
Ministry of Defence,Ministry of Defence,17/06/2011,IT and communication services,Air Command,JEPPESEN U.K. LIMITED,RH10 9AD,808568,62304.08
Ministry of Defence,Defence Science and Technology Laboratory,10/06/2011,Sub Contracted Research,Programme Office,SELEX GALILEO LIMITED,,V - 9000133477 - 00106843,62278
Ministry of Defence,Ministry of Defence,13/06/2011,Transport hire charges,Central TLB,BABCOCK LAND (WHITEFLEET MANAGEMENT) LIMITED,BH23 6BS,805925,62151.49
Ministry of Defence,Ministry of Defence,17/06/2011,Fees for professional services,Central TLB,PHOENIX STRATEGIC LTD,PE7 8FA,808708,62142
Ministry of Defence,Ministry of Defence,08/06/2011,Fuel for military use,Defence Equipment & Support,ARVAL UK LTD,SN5 6PE,803860,62066.17
Ministry of Defence,Ministry of Defence,09/06/2011,Purchase of inventory and services ,Defence Equipment & Support,AAH PHARMACEUTICALS LTD,CV2 2TX,804422,62032.35
Ministry of Defence,Defence Science and Technology Laboratory,24/06/2011,Sub Contracted Work,Operations,UNIVERSITY OF SOUTHAMPTON,,V - 9000133879 - 00111955,62000
Ministry of Defence,Ministry of Defence,24/06/2011,Fees for professional services,Land Forces,L.A. INTERNATIONAL COMPUTER  CONSULTANTS LIMITED,ST1 5UB,811546,61973.16
Ministry of Defence,Ministry of Defence,16/06/2011,"Transporation of personnel, freight and travel expenses",Defence Equipment & Support,PALLETWAYS (U K) LTD,WS13 8NE,808043,61942.35
Ministry of Defence,Ministry of Defence,28/06/2011,Design services and minor equipment purchases,Defence Equipment & Support,QINETIQ LIMITED,PO12 2AG,813088,61908
Ministry of Defence,Ministry of Defence,21/06/2011,"Transporation of personnel, freight and travel expenses",Land Forces,RAIL SETTLEMENT PLAN LIMITED,SG1 2YN,809886,61867.7
Ministry of Defence,Ministry of Defence,22/06/2011,"Transporation of personnel, freight and travel expenses",Defence Equipment & Support,ROYAL MAIL GROUP LIMITED,PE4 5PG,810475,61834.4
Ministry of Defence,Ministry of Defence,17/06/2011,Property leases,Defence Infrastructure Organisation ,KELDA WATER SERVICES (ESTATES) LIMITED,S35 2PQ,808576,61675.18
Ministry of Defence,Ministry of Defence,10/06/2011,Transport hire charges,Defence Equipment & Support,BABCOCK LAND (WHITEFLEET MANAGEMENT) LIMITED,BH23 6BS,805166,61475.49
Ministry of Defence,Ministry of Defence,21/06/2011,Design services and minor equipment purchases,Defence Equipment & Support,BRITISH TELECOMMUNICATIONS PUBLIC LIMITED COMPANY,NE82 6XX,809639,61430.76
Ministry of Defence,Ministry of Defence,23/06/2011,Design services and minor equipment purchases,Defence Equipment & Support,ALFA LAVAL LTD,GU15 3DN,810620,61280.48
Ministry of Defence,Ministry of Defence,08/06/2011,Estate management,Air Command,ARAMARK LTD,LS16 6QY,803857,61229.57
Ministry of Defence,Ministry of Defence,13/06/2011,Estate management,Central TLB,EUROPA FACILITIES MANAGEMENT LTD,M50 3SP,806100,61207.52
Ministry of Defence,Ministry of Defence,03/06/2011,Development costs for military equipment,Defence Equipment & Support,DEFENCE SCIENCE & TECHNOLOGY LABORATORY,PO14 9HL,802346,61013.5
Ministry of Defence,Royal Hospital Chelsea GIA,15/06/2011,Security,Royal Hospital Chelsea,Wilson James,,PIN118204,60981.46
Ministry of Defence,Defence Science and Technology Laboratory,17/06/2011,Sub Contracted Research,Programme Office,UNIVERSITY OF MANCHESTER,,V - 9000133581 - 00107943,60763
Ministry of Defence,Ministry of Defence,14/06/2011,Research and development,Defence Equipment & Support,LOGICA UK LIMITED,CF31 9AP,806792,60580
Ministry of Defence,Defence Science and Technology Laboratory,24/06/2011,Energy & Utility,Infrastructure,SCOTTISH HYDRO ELECTRIC GAS LIMITED,,V - 9000133877 - 00111439,60351.11
Ministry of Defence,Defence Science and Technology Laboratory,10/06/2011,Repairs & Maintenance,Infrastructure,SERCO LIMITED,,V - 9000133476 - 00111208,60053.25
Ministry of Defence,Defence Science and Technology Laboratory,17/06/2011,Sub Contracted Work,Operations,RAYTHEON SYSTEMS LIMITED,,V - 9000133549 - 00110548,60000
Ministry of Defence,Defence Science and Technology Laboratory,17/06/2011,Sub Contracted Research,Programme Office,QINETIQ LIMITED,,V - 9000133667 - 00110875,60000
Ministry of Defence,Ministry of Defence,16/06/2011,Estate management,Air Command,CARILLIONENTERPRISE LIMITED,B75 7RL,807738,59863.84
Ministry of Defence,Ministry of Defence,07/06/2011,Food and clothing,Defence Equipment & Support,ITURRI SA,OX16 3TA,3000005560,59793.39
Ministry of Defence,Ministry of Defence,24/06/2011,Estate management,Land Forces,COMPASS SERVICES (U.K.) LIMITED,B45 9PZ,811369,59328.15
Ministry of Defence,Ministry of Defence,14/06/2011,Rent and rates,Defence Infrastructure Organisation ,WINDSOR AND MAIDENHEAD ROYAL BOROUGH COUNCIL,SL6 1RF,807043,59326.7
Ministry of Defence,United Kingdom Hydrographic Office,20/06/2011,Gas,Facilities Management,Scottish Hydro Electric,,2000054670,59215.5
Ministry of Defence,Ministry of Defence,10/06/2011,Estate management,Air Command,TURNER FACILITIES MANAGEMENT LTD,G51 3EQ,805815,59130.64
Ministry of Defence,Ministry of Defence,14/06/2011,Rent and rates,Defence Infrastructure Organisation ,TEWKESBURY BOROUGH COUNCIL,GL20 5TT,806983,59120.34
Ministry of Defence,Ministry of Defence,13/06/2011,Purchase of information and communications technology,Defence Equipment & Support,PARITY SOLUTIONS LTD,SW19 3RU,806346,59053.48
Ministry of Defence,Ministry of Defence,17/06/2011,Design services and minor equipment purchases,Air Command,SERCO LIMITED,RG27 9UY,808758,58950
Ministry of Defence,Ministry of Defence,01/06/2011,Design services and minor equipment purchases,Defence Equipment & Support,ROLLS-ROYCE POWER ENGINEERING PLC,KY11 9JT,801702,58885.72
Ministry of Defence,Ministry of Defence,01/06/2011,Design services and minor equipment purchases,Defence Equipment & Support,CONWAY PACKING SERVICES LTD,DY4 7UD,801490,58799.66
Ministry of Defence,Defence Support Group,16/06/2011,Telephones - Lines & Rental,Corporate,British Telecommunications PLC,,10128561,58611.69
Ministry of Defence,Ministry of Defence,24/06/2011,Payment of utilities,Defence Infrastructure Organisation ,ELECTRICITY AUTHORITY OF CYPRUS,BFPO 53,4000005431,58591.55
Ministry of Defence,Ministry of Defence,24/06/2011,Estate management,Land Forces,COMPASS CONTRACT SERVICES (U K)LIMITED,B45 9PZ,811366,58546.81
Ministry of Defence,Ministry of Defence,10/06/2011,Rent and rates,Air Command,HILL WOOLHOUSE PROPERTY MANAGEMENT LIMITED,LS21 1BT,805422,58500
Ministry of Defence,Ministry of Defence,03/06/2011,Purchase of inventory and services ,Defence Equipment & Support,OLDBURY ENGINEERING CO LIMITED,RH6 9HT,802594,58416.06
Ministry of Defence,Defence Science and Technology Laboratory,03/06/2011,Sub Contracted Work,Operations,SENSORS UNLIMITED INC.,,V - 0000000611 - 00110255,58352.47
Ministry of Defence,Ministry of Defence,07/06/2011,Purchase of inventory and services ,Defence Equipment & Support,UNIDRUG DISTRIBUTION GROUP LIMITED,DE55 2FH,803806,58331.9
Ministry of Defence,Ministry of Defence,15/06/2011,Design services and minor equipment purchases,Defence Equipment & Support,HP ENTERPRISE SERVICES DEFENCE & SECURITY UK LIMITED,RG27 9XA,807307,58324
Ministry of Defence,Defence Support Group,30/06/2011,Telephones - Lines & Rental,Corporate,British Telecommunications PLC,,10129930,58291.02
Ministry of Defence,Defence Science and Technology Laboratory,03/06/2011,Sub Contracted Work,Operations,THALES AIR DEFENCE LIMITED,,V - 9000133195 - 00107349,58227.48
Ministry of Defence,United Kingdom Hydrographic Office,28/06/2011,Assets under construction,ICT Delivery Business Group,Specialist Computer Centres plc,,2000054787,58152.46
Ministry of Defence,Defence Science and Technology Laboratory,10/06/2011,Local Authority Rates,Infrastructure,SEVENOAKS DISTRICT COUNCIL,,V - 9000133401 - 00110892,58022
Ministry of Defence,Ministry of Defence,15/06/2011,Estate management,Defence Infrastructure Organisation ,AVENANCE PLC,SK11 6ET,807099,58019.22
Ministry of Defence,Met Office,17/06/2011,Services,Chief Financial Officer,National Audit Office,,308680,58000
Ministry of Defence,Ministry of Defence,22/06/2011,Fuel for military use,Navy Command,ARVAL UK LTD,SN5 6PE,810034,57980.64
Ministry of Defence,Ministry of Defence,09/06/2011,Payment of utilities,Defence Infrastructure Organisation ,ELECTRICITY AUTHORITY OF CYPRUS,BFPO 53,4000005364,57896.12
Ministry of Defence,Defence Support Group,16/06/2011,Electricity,Business Stream 1,Scottish Hydro- Electric,,10128528,57701.22
Ministry of Defence,Ministry of Defence,06/06/2011,Design services and minor equipment purchases,Defence Equipment & Support,MEGGITT (UK) LIMITED,RG22 4BS,160496,57600
Ministry of Defence,Ministry of Defence,23/06/2011,Payment of utilities,Defence Equipment & Support,GB OILS LIMITED,FK5 4RB,810805,57396.24
Ministry of Defence,Ministry of Defence,20/06/2011,"Transporation of personnel, freight and travel expenses",Defence Equipment & Support,CARTUS LTD,SN5 8RS,808990,57383.48
Ministry of Defence,Ministry of Defence,17/06/2011,Payment of utilities,Defence Infrastructure Organisation ,SSE ENERGY SUPPLY LIMITED,PH1 3AQ,808786,57254.25
Ministry of Defence,Ministry of Defence,03/06/2011,"Purchase of munitions, other inventory or fuel",Defence Equipment & Support,PACE FUELCARE LIMITED,TW20 9AB,802602,57120
Ministry of Defence,Ministry of Defence,14/06/2011,IT and communication services,Defence Equipment & Support,LOCKHEED MARTIN UK LIMITED,GU14 6TQ,2000011889,57064.81
Ministry of Defence,Ministry of Defence,01/06/2011,Transport hire charges,Air Command,Enterprise Rent a Car,,CO AP03 015,56939.72
Ministry of Defence,Ministry of Defence,27/06/2011,Purchase of inventory and services ,Air Command,BOC LIMITED,M28 2UT,812033,56877.15
Ministry of Defence,Met Office,22/06/2011,Accommodation,Chief Financial Officer,Total Gas & Power Limited,,308827,56653.4
Ministry of Defence,Ministry of Defence,10/06/2011,Design services and minor equipment purchases,Defence Equipment & Support,HALE HAMILTON (VALVES) LTD,UB8 2AF,805407,56650
Ministry of Defence,Ministry of Defence,21/06/2011,Purchase of inventory and services ,Defence Equipment & Support,CORPORATE DOCUMENT SERVICES  LIMITED,LS2 7LY,809688,56606.58
Ministry of Defence,Ministry of Defence,22/06/2011,Medical treatment & stores and welfare services.,Central TLB,QUEEN ELIZABETHS FOUNDATION FOR DISABLED PEOPLE,KT22 0BN,810454,56576.33
Ministry of Defence,Ministry of Defence,20/06/2011,"Transporation of personnel, freight and travel expenses",Land Forces,EMDER VERKEHRSGESELLSCHAFT AG,,5000057881,56446.7
Ministry of Defence,Ministry of Defence,24/06/2011,Transport hire charges,Land Forces,RYDER PUBLIC LIMITED COMPANY,SK16 4UL,811766,56362.16
Ministry of Defence,Ministry of Defence,22/06/2011,Food and clothing,Defence Infrastructure Organisation ,AVENANCE PLC,SK11 6ET,810041,56329.47
Ministry of Defence,Defence Science and Technology Laboratory,17/06/2011,Sub Contracted Work,Operations,UNIVERSITY OF BRISTOL,,V - 9000133575 - 00106162,56294
Ministry of Defence,Defence Science and Technology Laboratory,21/06/2011,Sub Contracted Work,Operations,GILL RESEARCH & DEVELOPMENT LIMITED,,V - 9000133709 - 00106845,56188
Ministry of Defence,Ministry of Defence,23/06/2011,Rent and rates,Defence Infrastructure Organisation ,SHEPWAY DISTRICT COUNCIL,CT20 2QY,811093,55985.02
Ministry of Defence,Ministry of Defence,28/06/2011,Design services and minor equipment purchases,Defence Equipment & Support,PARKER HANNIFIN LIMITED,DH3 2SF,813063,55909.18
Ministry of Defence,Ministry of Defence,01/06/2011,Design services and minor equipment purchases,Defence Equipment & Support,DHS SYSTEMS INT'L LIMITED,HR2 6NP,2000011754,55640.25
Ministry of Defence,Ministry of Defence,14/06/2011,Food and clothing,Defence Equipment & Support,COMPASS SERVICES (U.K.) LIMITED,GU15 4PQ,806662,55276.31
Ministry of Defence,Defence Science and Technology Laboratory,17/06/2011,Sub Contracted Research,Programme Office,TRL TECHNOLOGY LIMITED,,V - 9000133573 - 00109133,55164.96
Ministry of Defence,Ministry of Defence,29/06/2011,Administration ,Defence Equipment & Support,FOREIGN & COMMONWEALTH OFFICE,MK10 1PX,2.00E+11,55141.94
Ministry of Defence,Defence Science and Technology Laboratory,03/06/2011,Sub Contracted Work,Operations,UNIVERSITY OF HULL,,V - 9000133206 - 00107931,54977.12
Ministry of Defence,United Kingdom Hydrographic Office,07/06/2011,Displays and Exhibitions,"Marketing, CS & Channel Management",Identity Holdings Ltd,,2000054476,54972
Ministry of Defence,Council of Reserve Forces and Cadets Associations,09/06/2011,Building maintenance and accommodation stores,Estates Management,FLEMING BUILDINGS LTD,,1335,54934.8
Ministry of Defence,Ministry of Defence,22/06/2011,Fuel for military use,Central TLB,ARVAL UK LTD,SN5 6PE,810034,54893.65
Ministry of Defence,Ministry of Defence,23/06/2011,Fuel for military use,Air Command,MULTI SERVICE AERO B.V.,,3000005628,54831.61
Ministry of Defence,Ministry of Defence,23/06/2011,"Purchase of munitions, other inventory or fuel",Defence Equipment & Support,PACE FUELCARE LIMITED,TW20 9AB,811005,54751.03
Ministry of Defence,Ministry of Defence,08/06/2011,Rent and rates,Land Forces,TRUSTEES OF THE MICHAEL J FIELD SIPPS P & B RACKIND TRUST ACCT,BS1 4AB,804383,54750
Ministry of Defence,Defence Science and Technology Laboratory,17/06/2011,Materials & Equipment,Operations,IROBOT CORPORATION,,V - 0000000617 - 00108774,54742.25
Ministry of Defence,Ministry of Defence,08/06/2011,Design services and minor equipment purchases,Defence Equipment & Support,BAE SYSTEMS (OPERATIONS) LIMITED,PR4 1AX,160587,54720.32
Ministry of Defence,Ministry of Defence,03/06/2011,Estate management,Defence Equipment & Support,BUNDESWEHR DIENSTLEISTUNGSZENTRUM,,5000057263,54629.49
Ministry of Defence,Ministry of Defence,16/06/2011,"Transporation of personnel, freight and travel expenses",Defence Equipment & Support,DSV AIR & SEA LIMITED,M22 4NY,807795,54582.51
Ministry of Defence,Ministry of Defence,01/06/2011,Payment of utilities,Defence Infrastructure Organisation ,NVV AG,,5000057068,54353.98
Ministry of Defence,Defence Science and Technology Laboratory,10/06/2011,Sub Contracted Work,Operations,QINETIQ LIMITED,,V - 9000133475 - 00110689,54332.76
Ministry of Defence,Defence Science and Technology Laboratory,10/06/2011,Communications,Infrastructure,VODAFONE CORPORATE LIMITED,,V - 9000133377 - 00110634,54118.48
Ministry of Defence,Ministry of Defence,28/06/2011,"Transporation of personnel, freight and travel expenses",Air Command,EUROCONTROL,,5000058490,54027.34
Ministry of Defence,Met Office,08/06/2011,Services,Science,Nerc,,308348,54000
Ministry of Defence,Ministry of Defence,01/06/2011,Estate management,Air Command,SODEXO LTD,M50 2UE,801729,53959.3
Ministry of Defence,Ministry of Defence,02/06/2011,Estate management,Defence Infrastructure Organisation ,BEZIRKSREGIERUNG DUESSELDORF,,5000057110,53713.06
Ministry of Defence,Ministry of Defence,28/06/2011,Fees for professional services,Central TLB,CAPITA BUSINESS SERVICES LTD,DL1 9HN,812766,53670.59
Ministry of Defence,Ministry of Defence,08/06/2011,Fuel for military use,Navy Command,ARVAL UK LTD,SN5 6PE,803860,53654.36
Ministry of Defence,Ministry of Defence,13/06/2011,"Transporation of personnel, freight and travel expenses",Land Forces,WELTER TOURS,,5000057629,53400
Ministry of Defence,Ministry of Defence,23/06/2011,IT and communication services,Defence Equipment & Support,L.A. INTERNATIONAL COMPUTER  CONSULTANTS LIMITED,ST1 5UB,810870,53220
Ministry of Defence,Ministry of Defence,21/06/2011,IT and communication services,Defence Equipment & Support,CIVICA UK LIMITED,DY1 4TD,809675,53094
Ministry of Defence,Ministry of Defence,09/06/2011,Rent and rates,Land Forces,BAMFORDS TRUST PLC,NW1 4LJ,804478,52875
Ministry of Defence,Ministry of Defence,08/06/2011,Payment of utilities,Defence Infrastructure Organisation ,STADTWERKE MUNSTER GMBH,,5000057411,52858.2
Ministry of Defence,Ministry of Defence,10/06/2011,Food and clothing,Land Forces,ARAMARK LTD,LS16 6QY,805149,52835.89
Ministry of Defence,Ministry of Defence,23/06/2011,Rent and rates,Defence Infrastructure Organisation ,SOUTH CAMBRIDGESHIRE DISTRICT COUNCIL,CB3 6EA,811105,52467.08
Ministry of Defence,Ministry of Defence,06/06/2011,Transport hire charges,Land Forces,BABCOCK LAND (WHITEFLEET MANAGEMENT) LIMITED,BH23 6BS,802822,52205.45
Ministry of Defence,Defence Science and Technology Laboratory,17/06/2011,Sub Contracted Work,Operations,ROKE MANOR RESEARCH LIMITED,,V - 9000133568 - 00109107,52100
Ministry of Defence,Defence Science and Technology Laboratory,10/06/2011,Sub Contracted Work,Operations,PULSE PHOTONICS LIMITED,,V - 9000133398 - 00110866,51800
Ministry of Defence,Met Office,03/06/2011,Accommodation,Chief Financial Officer,Owm Properties,,308212,51500
Ministry of Defence,Ministry of Defence,02/06/2011,Transport hire charges,Land Forces,BABCOCK LAND (WHITEFLEET MANAGEMENT) LIMITED,BH23 6BS,801809,51286.72
Ministry of Defence,Ministry of Defence,17/06/2011,Estate management,Defence Infrastructure Organisation ,TURNER FACILITIES MANAGEMENT LTD,G51 3EQ,808827,51241.86
Ministry of Defence,Ministry of Defence,13/06/2011,Rent and rates,Defence Infrastructure Organisation ,EAST HAMPSHIRE DISTRICT COUNCIL,GU31 4EX,806081,51164.39
Ministry of Defence,Ministry of Defence,08/06/2011,IT and communication services,Defence Equipment & Support,SERCO LIMITED,RG27 9UY,804318,51030
Ministry of Defence,Ministry of Defence,27/06/2011,Medical treatment & stores and welfare services.,Central TLB,NUFFIELD ORTHOPAEDIC CENTRE NHS  TRUST,OX3 7LD,2.00E+11,50885
Ministry of Defence,Defence Science and Technology Laboratory,17/06/2011,IT Software,Operations,CST GMBH,,V - 0000000683 - 00107386,50834.4
Ministry of Defence,Ministry of Defence,21/06/2011,Estate management,Air Command,ARAMARK LTD,LS16 6QY,809578,50824.44
Ministry of Defence,Ministry of Defence,14/06/2011,Rent and rates,Defence Infrastructure Organisation ,WINCHESTER CITY COUNCIL,SO23 9LJ,807042,50809.75
Ministry of Defence,Ministry of Defence,10/06/2011,Administration ,Central TLB,G4S ASSESSMENT SERVICES (UK) LIMITED,GL20 8NB,160686,50758
Ministry of Defence,Ministry of Defence,20/06/2011,Design services and minor equipment purchases,Defence Equipment & Support,TERADYNE LIMITED,SK3 0XG,809480,50719.49
Ministry of Defence,Defence Science and Technology Laboratory,24/06/2011,Professional Services,Programme Office,LSC GROUP LIMITED,,V - 9000133868 - 00111564,50701
Ministry of Defence,Ministry of Defence,22/06/2011,Purchase of buildings and military equipment ,Defence Equipment & Support,MBDA UK LIMITED,SG1 2DA,810289,50600.4
Ministry of Defence,Ministry of Defence,23/06/2011,Administration ,Central TLB,HOGG ROBINSON (TRAVEL) LIMITED,GU14 7NJ,810833,50587.38
Ministry of Defence,Ministry of Defence,06/06/2011,Fuel for military use,Air Command,BP INTERNATIONAL LIMITED,HP2 4UL,2000011797,50401.34
Ministry of Defence,Ministry of Defence,20/06/2011,Transport hire charges,Air Command,BABCOCK LAND (WHITEFLEET MANAGEMENT) LIMITED,BH23 6BS,808919,50400.14
Ministry of Defence,Ministry of Defence,17/06/2011,Medical treatment & stores and welfare services.,Central TLB,BRAIN INJURY REHABILITATION  TRUST,RH13 0TP,808343,50280.5
Ministry of Defence,Ministry of Defence,20/06/2011,Payment of utilities,Navy Command,KELDA WATER SERVICES LIMITED,S35 2PQ,809175,50254.1
Ministry of Defence,Ministry of Defence,15/06/2011,Externally delivered education and training.,Land Forces,G4S FSI LIMITED,SM1 4LD,807274,50251.2
Ministry of Defence,Defence Science and Technology Laboratory,17/06/2011,Communications,Infrastructure,STERIA LIMITED,,V - 9000133619 - 00111022,50106.24
Ministry of Defence,Defence Science and Technology Laboratory,10/06/2011,Materials & Equipment,Operations,SCIENCE & TECHNOLOGY FACILITIES COUNCIL,,V - 9000133405 - 00107493,50000
Ministry of Defence,Ministry of Defence,16/06/2011,Estate management,Defence Infrastructure Organisation ,TURNER FACILITIES MANAGEMENT LTD,G51 3EQ,808208,49977.38
Ministry of Defence,Ministry of Defence,17/06/2011,Property leases,Defence Infrastructure Organisation ,ASPIRE DEFENCE LIMITED,SP9 7QD,808296,49920.39
Ministry of Defence,Defence Science and Technology Laboratory,17/06/2011,Sub Contracted Work,Operations,GENERAL DYNAMICS UK LIMITED,,V - 9000133621 - 00107977,49839
Ministry of Defence,Ministry of Defence,28/06/2011,Rent and rates,Defence Infrastructure Organisation ,HUNTINGDONSHIRE DISTRICT COUNCIL,PE29 3TN,812869,49790.08
Ministry of Defence,Ministry of Defence,06/06/2011,Purchase of buildings and military equipment ,Defence Equipment & Support,C-PLAN TELECOMMUNICATIONS LIMITED,EH52 5NE,802864,49742.71
Ministry of Defence,Ministry of Defence,16/06/2011,Design services and minor equipment purchases,Defence Equipment & Support,POYRY ENERGY LIMITED,RH13 5UZ,808063,49732.56
Ministry of Defence,Ministry of Defence,28/06/2011,Fuel for military use,Air Command,BP INTERNATIONAL LIMITED,HP2 4UL,2000012031,49598.42
Ministry of Defence,Ministry of Defence,08/06/2011,Fees for professional services,Defence Infrastructure Organisation ,TRANSCEND CONSULTANCY LLP,M1 2AP,804380,49503.5
Ministry of Defence,Ministry of Defence,23/06/2011,Rent and rates,Defence Infrastructure Organisation ,PURBECK DISTRICT COUNCIL,BH20 4PP,811035,49455.31
Ministry of Defence,Defence Science and Technology Laboratory,24/06/2011,Sub Contracted Work,Operations,AUBURN UNIVERSITY,,V - 0000000619 - 00111721,49400.93
Ministry of Defence,Ministry of Defence,21/06/2011,Purchase of inventory and services ,Defence Equipment & Support,SOFRANCE S A,,5000058062,49399.46
Ministry of Defence,Ministry of Defence,16/06/2011,Design services and minor equipment purchases,Defence Equipment & Support,GE AVIATION SYSTEMS LIMITED,GL52 8SF,807831,49365.04
Ministry of Defence,Ministry of Defence,24/06/2011,Estate management,Defence Equipment & Support,COMPASS SERVICES (U.K.) LIMITED,B45 9PZ,811369,49364.55
Ministry of Defence,Ministry of Defence,15/06/2011,"Transporation of personnel, freight and travel expenses",Defence Equipment & Support,CITYSPRINT (UK) LIMITED,RH1 1SH,807177,49224.55
Ministry of Defence,Defence Science and Technology Laboratory,17/06/2011,Sub Contracted Work,Operations,THALES UK LIMITED,,V - 9000133562 - 00109670,49179
Ministry of Defence,Ministry of Defence,24/06/2011,Payment of utilities,Defence Infrastructure Organisation ,DCC ENERGY LTD,BT3 9ED,32725,49004.73
Ministry of Defence,Defence Science and Technology Laboratory,17/06/2011,Sub Contracted Research,Programme Office,QINETIQ LIMITED,,V - 9000133667 - 00110681,49000
Ministry of Defence,Ministry of Defence,06/06/2011,Design services and minor equipment purchases,Land Forces,BABCOCK LAND (WHITEFLEET MANAGEMENT) LIMITED,BH23 6BS,802822,48861.04
Ministry of Defence,Ministry of Defence,09/06/2011,Estate management,Air Command,ARAMARK LTD,LS16 6QY,804445,48717.34
Ministry of Defence,Ministry of Defence,28/06/2011,Property leases,Land Forces,ASPIRE DEFENCE LIMITED,SP9 7QD,812716,48694.45
Ministry of Defence,Ministry of Defence,08/06/2011,Fuel for military use,Central TLB,ARVAL UK LTD,SN5 6PE,803860,48591.46
Ministry of Defence,Defence Support Group,30/06/2011,Equipment Support - Other,Large Aircraft,Cardiff Airport,,10129952,48557.25
Ministry of Defence,Ministry of Defence,29/06/2011,Payment of utilities,Defence Infrastructure Organisation ,ANGLIAN WATER SERVICES LIMITED,LN5 7WR,813243,48541.99
Ministry of Defence,Ministry of Defence,16/06/2011,Payment of utilities,Defence Infrastructure Organisation ,BRITISH GAS TRADING LIMITED,OX4 2JY,807714,48488.13
Ministry of Defence,Ministry of Defence,07/06/2011,Design services and minor equipment purchases,Defence Equipment & Support,DEFENCE SUPPORT GROUP  (DSG),SP11 8HT,803508,48462.23
Ministry of Defence,Ministry of Defence,15/06/2011,Administration ,Navy Command,VT FLAGSHIP LTD,PO6 4PR,807613,48381.85
Ministry of Defence,Ministry of Defence,24/06/2011,Food and clothing,Land Forces,NAVY ARMY AND AIR FORCE INSTITUES (THE),DL1 1YN,5000058427,48295.76
Ministry of Defence,Defence Science and Technology Laboratory,24/06/2011,Sub Contracted Work,Operations,ATKINS LIMITED,,V - 9000133756 - 00111938,48000
Ministry of Defence,Ministry of Defence,20/06/2011,Externally delivered education and training.,Air Command,OPEN UNIVERSITY (THE),MK7 6BT,809335,47908
Ministry of Defence,Ministry of Defence,29/06/2011,Purchase of inventory and services ,Defence Equipment & Support,INSTRUMENTATION LABORATORY (U K) LTD,WA3 7PB,813466,47862
Ministry of Defence,Ministry of Defence,27/06/2011,Design services and minor equipment purchases,Air Command,CENTRAL OFFICE OF INFORMATION,SE1 7DU,812086,47750.4
Ministry of Defence,Ministry of Defence,03/06/2011,Payment of utilities,Defence Infrastructure Organisation ,MABANAFT DEUTSCHLAND GMBH,,5000057275,47626.01
Ministry of Defence,Ministry of Defence,07/06/2011,General services and support,Defence Equipment & Support,THALES ATM LIMITED,KT9 1TB,803783,47601.84
Ministry of Defence,Ministry of Defence,17/06/2011,Estate management,Defence Infrastructure Organisation ,LENGELING SERVICE GMBH,,5000057808,47573.75
Ministry of Defence,Ministry of Defence,15/06/2011,"Purchase of munitions, other inventory or fuel",Defence Equipment & Support,UNIVAR LIMITED,BD1 5BD,807602,47543.42
Ministry of Defence,Ministry of Defence,27/06/2011,Design services and minor equipment purchases,Defence Equipment & Support,AEROSPACE & AIRWORTHINESS CONSULTANCY ENTERPRISES LIMITED,OX1 5DX,811950,47500
Ministry of Defence,Ministry of Defence,08/06/2011,Rent and rates,Air Command,DOWNING PROPERTY SERVICES LTD,L7 7DN,803988,47391.78
Ministry of Defence,Ministry of Defence,23/06/2011,Rent and rates,Defence Infrastructure Organisation ,ST EDMUNDSBURY BOROUGH COUNCIL,IP33 3YS,811121,47002.07
Ministry of Defence,Ministry of Defence,22/06/2011,Purchase of inventory and services ,Land Forces,CORPORATE DOCUMENT SERVICES  LIMITED,LS2 7LY,810132,47001.51
Ministry of Defence,Met Office,13/06/2011,Services,Science,University Of Reading,,306882,47000
Ministry of Defence,Ministry of Defence,17/06/2011,Design services and minor equipment purchases,Air Command,BABCOCK LAND (WHITEFLEET MANAGEMENT) LIMITED,BH23 6BS,808308,46874.65
Ministry of Defence,Ministry of Defence,13/06/2011,Payment of utilities,Central TLB,THAMES WATER UTILITIES LIMITED,SN38 2TW,806477,46795.26
Ministry of Defence,Ministry of Defence,02/06/2011,IT and communication services,Central TLB,SOFTWARE BOX LTD,YO61 1ET,802141,46770.8
Ministry of Defence,Ministry of Defence,14/06/2011,Medical treatment & stores and welfare services.,Land Forces,GUY'S & ST THOMAS NHS FOUNDATION TRUST,,5000057660,46740.32
Ministry of Defence,Ministry of Defence,24/06/2011,Estate management,Defence Equipment & Support,WYG MANAGEMENT SERVICES LIMITED,L2 6RE,811921,46543.5
Ministry of Defence,Ministry of Defence,27/06/2011,"Purchase of munitions, other inventory or fuel",Defence Equipment & Support,UNIVAR LIMITED,BD1 5BD,812649,46482.89
Ministry of Defence,Ministry of Defence,17/06/2011,Purchase of inventory and services ,Land Forces,CARWOOD MOTOR UNITS LTD,CV3 2RQ,808375,46449.25
Ministry of Defence,Ministry of Defence,17/06/2011,Externally delivered education and training.,Navy Command,CARLISLE STAFFING PLC,LU1 3BA,808374,46427.27
Ministry of Defence,Ministry of Defence,03/06/2011,Medical treatment & stores and welfare services.,Central TLB,ALLIANCE MEDICAL LIMITED,CV34 6DA,802238,46418.96
Ministry of Defence,Ministry of Defence,16/06/2011,Medical treatment & stores and welfare services.,Central TLB,FOREIGN & COMMONWEALTH OFFICE,MK10 1PX,2.00E+11,46386.78
Ministry of Defence,Ministry of Defence,29/06/2011,"Transporation of personnel, freight and travel expenses",Defence Equipment & Support,DHL GLOBAL FORWARDING (UK)  LIMITED,TW18 4BP,813352,46300.65
Ministry of Defence,Ministry of Defence,17/06/2011,Payment of utilities,Defence Equipment & Support,SSE ENERGY SUPPLY LIMITED,PH1 3AQ,808786,46268.22
Ministry of Defence,Ministry of Defence,23/06/2011,Rent and rates,Defence Infrastructure Organisation ,SOUTH SOMERSET DISTRICT COUNCIL,BH20 2DH,811111,46172.74
Ministry of Defence,Ministry of Defence,23/06/2011,Transport hire charges,Air Command,BABCOCK LAND (WHITEFLEET MANAGEMENT) LIMITED,BH23 6BS,810656,46169.99
Ministry of Defence,Ministry of Defence,09/06/2011,Medical treatment & stores and welfare services.,Land Forces,WILTSHIRE PRIMARY CARE TRUST,SN10 5EQ,160672,46162
Ministry of Defence,United Kingdom Hydrographic Office,14/06/2011,Electricity,Facilities Management,Scottish Hydro Electric,,2000054600,46100.72
Ministry of Defence,Ministry of Defence,06/06/2011,Payment of utilities,Defence Infrastructure Organisation ,TOTAL GAS & POWER LIMITED,RH1 1RX,803340,46068.26
Ministry of Defence,Ministry of Defence,28/06/2011,Rent and rates,Defence Infrastructure Organisation ,MEDWAY COUNCIL,ME2 4AU,812938,46028.38
Ministry of Defence,Ministry of Defence,14/06/2011,Design services and minor equipment purchases,Defence Equipment & Support,SELEX GALILEO LTD,SS14 3EL,806934,45960.91
Ministry of Defence,Ministry of Defence,01/06/2011,Purchase of buildings and military equipment ,Defence Infrastructure Organisation ,FIG - Quarry Stone,,"90048
90051",45956.59
Ministry of Defence,Defence Science and Technology Laboratory,07/06/2011,Sub Contracted Work,Operations,ROKE MANOR RESEARCH LIMITED,,V - 9000133296 - 00100977,45950
Ministry of Defence,Ministry of Defence,14/06/2011,Design services and minor equipment purchases,Defence Equipment & Support,VERITEK GLOBAL LIMITED,BN22 9NJ,160792,45919.5
Ministry of Defence,Ministry of Defence,29/06/2011,Food and clothing,Land Forces,TECHNOGYM U K LIMITED,RG12 8PE,813701,45910.38
Ministry of Defence,Ministry of Defence,16/06/2011,Purchase of inventory and services ,Defence Equipment & Support,AAH PHARMACEUTICALS LTD,CV2 2TX,807639,45832.45
Ministry of Defence,Ministry of Defence,20/06/2011,Fees for professional services,Land Forces,FRONTIER MEDICAL SERVICES  LIMITED,GL17 0DD,809106,45825
Ministry of Defence,Ministry of Defence,24/06/2011,Design services and minor equipment purchases,Defence Equipment & Support,DEFENCE SCIENCE & TECHNOLOGY LABORATORY,PO14 9HL,811391,45741.47
Ministry of Defence,Ministry of Defence,28/06/2011,Rent and rates,Defence Infrastructure Organisation ,PETERBOROUGH CITY COUNCIL,PE1 1HQ,813072,45722.65
Ministry of Defence,Defence Science and Technology Laboratory,17/06/2011,Sub Contracted Work,Operations,GENERAL DYNAMICS UK LIMITED,,V - 9000133621 - 00106030,45685
Ministry of Defence,Ministry of Defence,03/06/2011,"Transporation of personnel, freight and travel expenses",Central TLB,HOGG ROBINSON (TRAVEL) LIMITED,GU14 7NJ,802418,45226.24
Ministry of Defence,Ministry of Defence,03/06/2011,"Purchase of major spares armaments, medical & general stores",Defence Equipment & Support,ROLLS-ROYCE POWER ENGINEERING PLC,DE24 8BJ,802648,45190
Ministry of Defence,Ministry of Defence,06/06/2011,Design services and minor equipment purchases,Defence Equipment & Support,ROLLS-ROYCE POWER ENGINEERING PLC,DE24 8BJ,803250,45174
Ministry of Defence,Ministry of Defence,10/06/2011,Estate management,Land Forces,LANKES ENTSORGUNG UND UMWELTSERVICE GMBH,,5000057526,45156.23
Ministry of Defence,Ministry of Defence,21/06/2011,"Transporation of personnel, freight and travel expenses",Defence Equipment & Support,DSV AIR & SEA LIMITED,M22 4NY,809708,45007.18
Ministry of Defence,Ministry of Defence,15/06/2011,Design services and minor equipment purchases,Defence Equipment & Support,NAMSA,,5000057724,44979.45
Ministry of Defence,Ministry of Defence,01/06/2011,"Transporation of personnel, freight and travel expenses",Air Command,Inn Suites,,CO AP03 014,44948.7
Ministry of Defence,Defence Science and Technology Laboratory,10/06/2011,IT Software,Infrastructure,ITT VISUAL INFORMATION SOLUTIONS LIMITED,,V - 9000133324 - 00110581,44868
Ministry of Defence,Ministry of Defence,09/06/2011,Food and clothing,Land Forces,MOTIF8 EMBROIDERY & PRINT  LIMITED,TS17 6AL,804787,44866.21
Ministry of Defence,Ministry of Defence,09/06/2011,Externally delivered education and training.,Land Forces,RIGHT MANAGEMENT LIMITED,EC4N 7BE,804960,44834.44
Ministry of Defence,Ministry of Defence,23/06/2011,"Transporation of personnel, freight and travel expenses",Defence Equipment & Support,PALLETWAYS (U K) LTD,WS13 8NE,811007,44757.88
Ministry of Defence,Ministry of Defence,20/06/2011,Estate management,Defence Infrastructure Organisation ,STADT DETMOLD,,5000057940,44730.47
Ministry of Defence,Defence Science and Technology Laboratory,17/06/2011,Sub Contracted Work,Operations,QINETIQ LIMITED,,V - 9000133614 - 00111537,44700
Ministry of Defence,Ministry of Defence,01/06/2011,Estate management,Defence Infrastructure Organisation ,JAKOBSMEYER STRASSENBAU GMBH,,5000057046,44653.27
Ministry of Defence,Ministry of Defence,01/06/2011,Estate management,Defence Equipment & Support,SERCO LIMITED,RG27 9UY,801720,44650.52
Ministry of Defence,Ministry of Defence,10/06/2011,Purchase of buildings and military equipment ,Defence Infrastructure Organisation ,MODERN HOUSING SOLUTIONS (PRIME)LIMITED,PE28 4QG,805531,44630.56
Ministry of Defence,Ministry of Defence,07/06/2011,Estate management,Defence Infrastructure Organisation ,ISS MEDICLEAN LIMITED,GU21 5RW,803582,44628.04
Ministry of Defence,Council of Reserve Forces and Cadets Associations,18/05/2011,IT and communication services,IT & Comms,Mycroft Talisen Ltd,,10,44628
Ministry of Defence,United Kingdom Hydrographic Office,16/06/2011,Projects - Large Purchases,Admiralty Vector Chart Service Programme,Maritime Information Systems AS,,1500012333,44550.66
Ministry of Defence,Ministry of Defence,01/06/2011,Design services and minor equipment purchases,Central TLB,Hafif Travel & Tourism Ltd,,CO AP03 021,44523.17
Ministry of Defence,Ministry of Defence,06/06/2011,Estate management,Defence Infrastructure Organisation ,AVENANCE PLC,SK11 6ET,802812,44387.87
Ministry of Defence,Ministry of Defence,23/06/2011,Rent and rates,Defence Infrastructure Organisation ,SOUTH GLOUCESTERSHIRE COUNCIL,BS37 5YU,811107,44318.2
Ministry of Defence,Ministry of Defence,22/06/2011,Purchase of inventory and services ,Defence Equipment & Support,PROMETHEUS MEDICAL LTD,HR6 0PW,810444,44124
Ministry of Defence,Ministry of Defence,29/06/2011,Payment of utilities,Central TLB,TOTAL GAS & POWER LIMITED,RH1 1RX,813723,44096.52
Ministry of Defence,Ministry of Defence,29/06/2011,Design services and minor equipment purchases,Defence Equipment & Support,SPRAYBAKE LTD,CO10 2XG,813689,44081.86
Ministry of Defence,Ministry of Defence,15/06/2011,Rent and rates,Defence Infrastructure Organisation ,NORTHUMBERLAND COUNTY COUNCIL,NE61 2EF,807430,44078.08
Ministry of Defence,United Kingdom Hydrographic Office,09/06/2011,Electricity,Facilities Management,Scottish Hydro Electric,,2000054530,44070.2
Ministry of Defence,Ministry of Defence,16/06/2011,Design services and minor equipment purchases,Defence Equipment & Support,QINETIQ LIMITED,PO12 2AG,808077,44000
Ministry of Defence,Defence Science and Technology Laboratory,17/06/2011,Sub Contracted Work,Operations,ATLAS ELEKTRONIK UK LIMITED,,V - 9000133674 - 00111313,43952.74
Ministry of Defence,Ministry of Defence,09/06/2011,"Transporation of personnel, freight and travel expenses",Central TLB,HOGG ROBINSON (TRAVEL) LIMITED,GU14 7NJ,804699,43777.57
Ministry of Defence,Ministry of Defence,20/06/2011,Rental of plant and machinery,Defence Equipment & Support,T W ENGINEERING COMPANY LTD,DE7 4RB,809473,43752.12
Ministry of Defence,Ministry of Defence,03/06/2011,IT and communication services,Land Forces,SYSTEMS CONSULTANTS SERVICES  LIMITED,RG7 4SA,802699,43672
Ministry of Defence,Ministry of Defence,20/06/2011,IT and communication services,Defence Equipment & Support,SERCO LIMITED,RG27 9UY,809431,43670.88
Ministry of Defence,Ministry of Defence,08/06/2011,Estate management,Defence Infrastructure Organisation ,BLUM GMBH.,,5000057354,43618
Ministry of Defence,Ministry of Defence,14/06/2011,Rent and rates,Defence Infrastructure Organisation ,CITY OF YORK COUNCIL,YO1 7DU,806652,43592.25
Ministry of Defence,Ministry of Defence,22/06/2011,Fuel for military use,Defence Infrastructure Organisation ,ARVAL UK LTD,SN5 6PE,810034,43472.14
Ministry of Defence,Ministry of Defence,15/06/2011,Food and clothing,Land Forces,AVENANCE PLC,SK11 6ET,807099,43432.99
Ministry of Defence,Ministry of Defence,14/06/2011,Design services and minor equipment purchases,Defence Equipment & Support,ALLYANCE LIMITED,OX1 5DX,806561,43372
Ministry of Defence,Ministry of Defence,09/06/2011,Purchase of inventory and services ,Land Forces,AAH PHARMACEUTICALS LTD,CV2 2TX,804422,43371.6
Ministry of Defence,Ministry of Defence,21/06/2011,"Purchase of munitions, other inventory or fuel",Defence Equipment & Support,FUCHS LUBRICANTS (UK) PLC,ST1 5HU,809735,43266.47
Ministry of Defence,Ministry of Defence,14/06/2011,Rent and rates,Defence Infrastructure Organisation ,LINK BUSINESS PARK LIMITED,JE1 3JQ,806789,43239.9
Ministry of Defence,Ministry of Defence,13/06/2011,Food and clothing,Navy Command,TURNER VIRR & CO. LTD,LS25 2DY,806507,43159.32
Ministry of Defence,Ministry of Defence,13/06/2011,Estate management,Air Command,SAFESKYS LTD,HP11 1LT,806409,43148.33
Ministry of Defence,Ministry of Defence,14/06/2011,Rent and rates,Defence Infrastructure Organisation ,WEST BERKSHIRE DISTRICT COUNCIL,RG14 5LD,807032,43067.45
Ministry of Defence,Ministry of Defence,13/06/2011,Rent and rates,Defence Infrastructure Organisation ,FAREHAM BOROUGH COUNCIL,PO16 7PU,806107,43057.76
Ministry of Defence,Ministry of Defence,06/06/2011,Fees for professional services,Land Forces,EXPLOSIVE LEARNING SOLUTIONS LIMITED,OX11 0SG,802968,43045
Ministry of Defence,Ministry of Defence,09/06/2011,Externally delivered education and training.,Land Forces,THE BRITISH SCHOOL OF MOTORING LIMITED,BS32 4TR,160669,42996.04
Ministry of Defence,Ministry of Defence,08/06/2011,Estate management,Navy Command,OCS GROUP UK LIMITED,LA3 3BJ,804234,42950.4
Ministry of Defence,Defence Science and Technology Laboratory,03/06/2011,Repairs & Maintenance,Infrastructure,SERCO LIMITED,,V - 9000133277 - 00109956,42851.61
Ministry of Defence,Defence Science and Technology Laboratory,10/06/2011,Materials & Equipment,Operations,SEVEN TECHNOLOGIES LIMITED,,V - 9000133458 - 00104553,42835
Ministry of Defence,Ministry of Defence,21/06/2011,Design services and minor equipment purchases,Defence Equipment & Support,FBS LIMITED,RG24 8AG,809730,42796.8
Ministry of Defence,Ministry of Defence,16/06/2011,"Transporation of personnel, freight and travel expenses",Defence Equipment & Support,CARTUS LTD,SN5 8RS,807741,42608.92
Ministry of Defence,Ministry of Defence,27/06/2011,Development costs for military equipment,Defence Equipment & Support,ORACLE CORPORATION U K LTD,RG6 1RA,812462,42375.72
Ministry of Defence,Ministry of Defence,10/06/2011,Purchase of inventory and services ,Defence Equipment & Support,AMSAFE BRIDPORT LTD,DT6 3QU,805142,42367.25
Ministry of Defence,Ministry of Defence,01/06/2011,Food and clothing,Land Forces,Lenana Grocers,,118,42321.86
Ministry of Defence,Ministry of Defence,10/06/2011,Estate management,Central TLB,CIVIL SERVICE SPORTS COUNCIL  LIMITED (THE),HP13 5HW,805259,42307.5
Ministry of Defence,Ministry of Defence,07/06/2011,Externally delivered education and training.,Land Forces,THE BRITISH SCHOOL OF MOTORING LIMITED,BS32 4TR,160578,42243.6
Ministry of Defence,Ministry of Defence,08/06/2011,Rent and rates,Land Forces,SAVILLS COMMERCIAL LTD,M2 4AW,804313,42233.87
Ministry of Defence,Defence Support Group,09/06/2011,Works - Fees,Business Stream 2,BABCOCK SUPPORT SERVICES LTD,,10127851,42195.49
Ministry of Defence,Defence Support Group,30/06/2011,Works - Fees,Business Stream 2,BABCOCK SUPPORT SERVICES LTD,,10129913,42195.49
Ministry of Defence,Ministry of Defence,22/06/2011,"Transporation of personnel, freight and travel expenses",Land Forces,DHL GLOBAL FORWARDING (UK)  LIMITED,TW18 4BP,810156,42191.85
Ministry of Defence,Ministry of Defence,24/06/2011,"Transporation of personnel, freight and travel expenses",Defence Equipment & Support,PLANT SPEED LIMITED,BS10 7ES,811714,42057.88
Ministry of Defence,Ministry of Defence,14/06/2011,Purchase of inventory and services ,Defence Equipment & Support,AAH PHARMACEUTICALS LTD,CV2 2TX,806552,42037.67
Ministry of Defence,Met Office,17/06/2011,Software Licences,Commercial Business,Esri (Uk) Ltd,,308668,41985
Ministry of Defence,Ministry of Defence,14/06/2011,Rent and rates,Defence Infrastructure Organisation ,WOKINGHAM DISTRICT COUNCIL,RG40 1BN,807045,41905.3
Ministry of Defence,Ministry of Defence,14/06/2011,Payment of utilities,Navy Command,SSE ENERGY SUPPLY LIMITED,PH1 3AQ,806962,41889.79
Ministry of Defence,Ministry of Defence,16/06/2011,"Transporation of personnel, freight and travel expenses",Land Forces,DSV AIR & SEA LIMITED,M22 4NY,807795,41801.99
Ministry of Defence,Ministry of Defence,09/06/2011,Estate management,Defence Infrastructure Organisation ,WISAG ELEKTROTECHNIK GMBH & CO KG,,5000057485,41747.24
Ministry of Defence,Ministry of Defence,08/06/2011,Payment of utilities,Defence Infrastructure Organisation ,SWALEC GAS LIMITED,PO9 5JB,804347,41701.1
Ministry of Defence,Ministry of Defence,17/06/2011,Building maintenance and accommodation stores,Defence Infrastructure Organisation ,GODFREY SYRETT LTD,,GPC 002,41687.45
Ministry of Defence,Ministry of Defence,03/06/2011,Estate management,Navy Command,CORPS OF COMMISSIONAIRES  MANAGEMENT LIMITED,RH10 9WE,802333,41625.79
Ministry of Defence,Ministry of Defence,16/06/2011,IT and communication services,Defence Equipment & Support,CAPGEMINI UK PLC,GU21 6DB,807734,41566.4
Ministry of Defence,Ministry of Defence,01/06/2011,Estate management,Defence Infrastructure Organisation ,FRITZ BIEFANG GMBH & CO KG,,5000057027,41553.77
Ministry of Defence,Ministry of Defence,03/06/2011,"Purchase of munitions, other inventory or fuel",Defence Equipment & Support,MCGEOCH TECHNOLOGY LTD,B19 3PA,802491,41551.2
Ministry of Defence,Defence Science and Technology Laboratory,17/06/2011,Sub Contracted Work,Operations,EPSRC,,V - 9000133534 - 00111453,41513.8
Ministry of Defence,Ministry of Defence,17/06/2011,Estate management,Defence Infrastructure Organisation ,LANKES ENTSORGUNG UND UMWELTSERVICE GMBH,,5000057807,41500.49
Ministry of Defence,Ministry of Defence,28/06/2011,Purchase of inventory and services ,Defence Equipment & Support,DEVONPORT ROYAL DOCKYARD LIMITED,PL1 4SG,812801,41498.29
Ministry of Defence,Met Office,29/06/2011,Services,Science,Australian Bureau Of Meteorology,,308636,41480
Ministry of Defence,United Kingdom Hydrographic Office,29/06/2011,Raw Material/ Finished Goods,Print & Supply,FUJIFILM UK Ltd,,2000054799,41444.73
Ministry of Defence,Ministry of Defence,27/06/2011,Design services and minor equipment purchases,Defence Equipment & Support,COMPUTACENTER (UK) LIMITED,SE1 8HL,812107,41399.58
Ministry of Defence,Ministry of Defence,09/06/2011,Design services and minor equipment purchases,Defence Equipment & Support,DM SYSTEMS AND TEST LIMITED,SG4 0TA,804564,41358.88
Ministry of Defence,Ministry of Defence,10/06/2011,"Public relations, including marketing and advertising.",Land Forces,CENTRAL OFFICE OF INFORMATION,SE1 7DU,805246,41311.74
Ministry of Defence,Ministry of Defence,08/06/2011,Fees for professional services,Air Command,M.P.I. AVIATION LTD,SG13 7DQ,804115,41241.54
Ministry of Defence,Ministry of Defence,28/06/2011,Externally delivered education and training.,Land Forces,TANGO MAOS LIMITED,,3000005646,41212.7
Ministry of Defence,Ministry of Defence,10/06/2011,Estate management,Defence Infrastructure Organisation ,VSM ESTATES LIMITED,B32 1AF,805840,41153
Ministry of Defence,Ministry of Defence,09/06/2011,Payment of utilities,Defence Infrastructure Organisation ,MABANAFT DEUTSCHLAND GMBH,,5000057453,41068.36
Ministry of Defence,National Army Museum  GIA,08/06/2011,Lease Costs ,Operations,GEOGHEGAN BROS. LTD,,A4342,40964
Ministry of Defence,Met Office,17/06/2011,Software Licences,Technology,Insight Direct (Uk) Ltd,,308683,40816
Ministry of Defence,Ministry of Defence,08/06/2011,Estate management,Air Command,TURNER FACILITIES MANAGEMENT LTD,G51 3EQ,804387,40787.07
Ministry of Defence,Ministry of Defence,15/06/2011,Purchase of inventory and services ,Defence Equipment & Support,WORLD FUEL SERVICES EUROPE  LTD.,SW1E 5BH,5000057738,40765.09
Ministry of Defence,Ministry of Defence,24/06/2011,Transport hire charges,Defence Equipment & Support,FBS LIMITED,RG24 8AG,811441,40749.98
Ministry of Defence,Ministry of Defence,20/06/2011,Payment of utilities,Navy Command,SSE ENERGY SUPPLY LIMITED,PH1 3AQ,809458,40747.93
Ministry of Defence,Ministry of Defence,01/06/2011,"Transporation of personnel, freight and travel expenses",Air Command,Inn Suites,,CO AP03 013,40701.56
Ministry of Defence,Ministry of Defence,08/06/2011,Design services and minor equipment purchases,Defence Equipment & Support,MEGGITT (UK) LIMITED,RG22 4BS,160600,40670
Ministry of Defence,Defence Science and Technology Laboratory,24/06/2011,Sub Contracted Research,Programme Office,BAE SYSTEMS (OPERATIONS) LIMITED,,V - 9000133745 - 00110660,40652.44
Ministry of Defence,Ministry of Defence,24/06/2011,Estate management,Defence Infrastructure Organisation ,COMPASS SERVICES (U.K.) LIMITED,B45 9PZ,811369,40646.5
Ministry of Defence,Ministry of Defence,24/06/2011,Design services and minor equipment purchases,Land Forces,FBS LIMITED,RG24 8AG,811441,40640.85
Ministry of Defence,Defence Science and Technology Laboratory,24/06/2011,Energy & Utility,Infrastructure,SCOTTISH HYDRO ELECTRIC GAS LIMITED,,V - 9000133877 - 00111371,40583.48
Ministry of Defence,Ministry of Defence,03/06/2011,Medical treatment & stores and welfare services.,Land Forces,PROFESSOR DR. MED. BERTIN DUFAUX & PARTNERS T/AS LABOR KRONE,,5000057290,40579.71
Ministry of Defence,Ministry of Defence,08/06/2011,Payment of utilities,Defence Infrastructure Organisation ,TOTAL GAS & POWER LIMITED,RH1 1RX,804377,40487.5
Ministry of Defence,Ministry of Defence,09/06/2011,Fuel for military use,Air Command,INFRATIL KENT AIRPORT LTD,KA9 2PL,804716,40485.27
Ministry of Defence,Ministry of Defence,02/06/2011,Design services and minor equipment purchases,Defence Equipment & Support,ADB BVBA.,,2000000872,40350.4
Ministry of Defence,Ministry of Defence,20/06/2011,Design services and minor equipment purchases,Defence Equipment & Support,MEL AVIATION LTD,CO10 2YW,809216,40326.3
Ministry of Defence,Ministry of Defence,20/06/2011,"Transporation of personnel, freight and travel expenses",Defence Equipment & Support,DSV AIR & SEA LIMITED,M22 4NY,809067,40319.11
Ministry of Defence,Ministry of Defence,09/06/2011,Estate management,Air Command,SODEXO LTD,M50 0AL,804998,40238.12
Ministry of Defence,Defence Science and Technology Laboratory,24/06/2011,Energy & Utility,Infrastructure,SCOTTISH HYDRO ELECTRIC GAS LIMITED,,V - 9000133877 - 00111436,40207.76
Ministry of Defence,Ministry of Defence,14/06/2011,Payment of utilities,Defence Infrastructure Organisation ,BRITISH GAS TRADING LIMITED,OX4 2JY,806623,40202.36
Ministry of Defence,Ministry of Defence,15/06/2011,Fees for professional services,Defence Equipment & Support,FOREIGN & COMMONWEALTH OFFICE,MK19 7BH,2.00E+11,40200
Ministry of Defence,Ministry of Defence,20/06/2011,Rent and rates,Defence Infrastructure Organisation ,CHICHESTER DISTRICT COUNCIL,PO19 1TY,809007,40191.79
Ministry of Defence,Defence Science and Technology Laboratory,17/06/2011,IS Support Service,Infrastructure,STERIA LIMITED,,V - 9000133619 - 00111023,40188.92
Ministry of Defence,Ministry of Defence,13/06/2011,Rent and rates,Defence Infrastructure Organisation ,HERTSMERE BOROUGH COUNCIL,WD6 1WA,806156,40133.94
Ministry of Defence,Ministry of Defence,14/06/2011,Design services and minor equipment purchases,Defence Equipment & Support,SOMERS TOTALKARE LIMITED,B62 8RP,806947,40092.64
Ministry of Defence,Defence Science and Technology Laboratory,10/06/2011,Sub Contracted Research,Programme Office,ATLAS ELEKTRONIK UK LIMITED,,V - 9000133482 - 00111049,40000
Ministry of Defence,Met Office,17/06/2011,International,Government Business,Pacific Fund Trust Fund Account,,308678,40000
Ministry of Defence,Defence Science and Technology Laboratory,17/06/2011,Sub Contracted Research,Programme Office,QINETIQ LIMITED,,V - 9000133667 - 00111365,40000
Ministry of Defence,Defence Science and Technology Laboratory,21/06/2011,Materials & Equipment,Operations,VWR INTERNATIONAL,,V - 9000133720 - 00103070,39973.68
Ministry of Defence,Ministry of Defence,10/06/2011,Design services and minor equipment purchases,Defence Equipment & Support,M.P.I. AVIATION LTD,SG13 7DQ,805508,39910.9
Ministry of Defence,Ministry of Defence,23/06/2011,Payment of utilities,Defence Infrastructure Organisation ,NEW ENERGIE GMBH,,5000058343,39760.24
Ministry of Defence,Ministry of Defence,17/06/2011,Fees for professional services,Central TLB,WORDWAVE INTERNATIONAL LIMITED,EC4A 2AG,808853,39675.78
Ministry of Defence,Ministry of Defence,08/06/2011,"Purchase of munitions, other inventory or fuel",Defence Equipment & Support,UNIVAR LIMITED,BD1 5BD,804392,39672.89
Ministry of Defence,Defence Science and Technology Laboratory,17/06/2011,Sub Contracted Work,Operations,PROIMMUNE LIMITED,,V - 9000133681 - 00110488,39620.2
Ministry of Defence,National Army Museum  GIA,13/06/2011,Casual Security ,Operations,G4 SECURITY SERVICES LTD,,2586,39579.37
Ministry of Defence,Ministry of Defence,30/06/2011,Payment of utilities,Defence Infrastructure Organisation ,Babcock,,24429,39507.09
Ministry of Defence,Ministry of Defence,17/06/2011,Design services and minor equipment purchases,Air Command,JACK CARMICHAEL (FLOORING) LIMITED,IV30 6AG,808567,39456
Ministry of Defence,Ministry of Defence,29/06/2011,Purchase of inventory and services ,Defence Equipment & Support,AAH PHARMACEUTICALS LTD,CV2 2TX,813221,39436.78
Ministry of Defence,Defence Science and Technology Laboratory,17/06/2011,Capital Asset expenditure,Infrastructure,SERCO LIMITED,,V - 9000133669 - 00111027,39398.64
Ministry of Defence,Ministry of Defence,03/06/2011,Environmental clear up,Defence Infrastructure Organisation ,DEFENCE SCIENCE & TECHNOLOGY LABORATORY,PO14 9HL,802346,39103.53
Ministry of Defence,Met Office,29/06/2011,Software Licences,Technology,Software Box Limited,,308937,39084.7
Ministry of Defence,Ministry of Defence,01/06/2011,Payment of utilities,Central TLB,ENEL,,43,39082.56
Ministry of Defence,Defence Science and Technology Laboratory,24/06/2011,Sub Contracted Research,Programme Office,QINETIQ LIMITED,,V - 9000133878 - 00111361,38767
Ministry of Defence,Ministry of Defence,02/06/2011,Food and clothing,Defence Equipment & Support,SODEXO LTD,M50 0AL,802140,38701.59
Ministry of Defence,Defence Science and Technology Laboratory,10/06/2011,Capital Asset expenditure,Operations,ROHDE & SCHWARZ U.K. LIMITED,,V - 9000133357 - 00108526,38676.41
Ministry of Defence,Ministry of Defence,21/06/2011,Purchase of inventory and services ,Defence Equipment & Support,AAH PHARMACEUTICALS LTD,CV2 2TX,809554,38559.56
Ministry of Defence,Ministry of Defence,10/06/2011,Rent and rates,Central TLB,Government Actuary's Department,EC4A 1AB,2.00E+11,38532.59
Ministry of Defence,Ministry of Defence,09/06/2011,Design services and minor equipment purchases,Defence Equipment & Support,EUROCOPTER,,3000005571,38436
Ministry of Defence,Ministry of Defence,23/06/2011,Design services and minor equipment purchases,Defence Equipment & Support,EUROCOPTER,,3000005627,38436
Ministry of Defence,Ministry of Defence,21/06/2011,Design services and minor equipment purchases,Defence Equipment & Support,RFD BEAUFORT LIMITED,CH41 1HQ,809890,38433.87
Ministry of Defence,Council of Reserve Forces and Cadets Associations,29/06/2011,Payment of utilities,Infrastructure,BCS Electrics,,1740,38369.44
Ministry of Defence,Ministry of Defence,24/06/2011,Estate management,Air Command,ARAMARK LTD,LS16 6QY,811250,38353.74
Ministry of Defence,Ministry of Defence,21/06/2011,Purchase of inventory and services ,Land Forces,CORPORATE DOCUMENT SERVICES  LIMITED,LS2 7LY,809688,38048.85
Ministry of Defence,Ministry of Defence,24/06/2011,Purchase of inventory and services ,Land Forces,AAH PHARMACEUTICALS LTD,CV2 2TX,811213,38048.05
Ministry of Defence,Defence Science and Technology Laboratory,03/06/2011,Sub Contracted Work,Operations,QINETIQ LIMITED,,V - 9000133275 - 00110478,37959.63
Ministry of Defence,Defence Science and Technology Laboratory,17/06/2011,Sub Contracted Work,Operations,I C CONSULTANTS LIMITED,,V - 9000133537 - 00111409,37920
Ministry of Defence,Ministry of Defence,10/06/2011,Payment of utilities,Defence Infrastructure Organisation ,TOTAL GAS & POWER LIMITED,RH1 1RX,805806,37877.92
Ministry of Defence,Ministry of Defence,23/06/2011,Estate management,Air Command,SAFESKYS LTD,HP11 1LT,811076,37874.83
Ministry of Defence,Ministry of Defence,29/06/2011,Medical treatment & stores and welfare services.,Land Forces,HONEYBEERECRUITMENT.COM LTD,TW12 1PD,813452,37804.78
Ministry of Defence,Ministry of Defence,01/06/2011,"Purchase of munitions, other inventory or fuel",Air Command,MAXCOM PETROLI S.P.A.,,5000057062,37791.24
Ministry of Defence,Ministry of Defence,23/06/2011,Design services and minor equipment purchases,Defence Equipment & Support,CATERPILLAR REMANUFACTURING LIMITED,NN10 6AZ,810713,37768.11
Ministry of Defence,Ministry of Defence,21/06/2011,IT and communication services,Defence Equipment & Support,IBM UNITED KINGDOM LIMITED,PO6 3AE,809763,37765.72
Ministry of Defence,Ministry of Defence,13/06/2011,Medical treatment & stores and welfare services.,Air Command,SOUTHAMPTON UNIVERSITY HOSPITALS NHS TRUST,WF3 1WE,2.00E+11,37750.33
Ministry of Defence,Defence Science and Technology Laboratory,10/06/2011,Sub Contracted Work,Operations,QINETIQ LIMITED,,V - 9000133475 - 00110685,37711
Ministry of Defence,Council of Reserve Forces and Cadets Associations,14/06/2011,Building maintenance and accommodation stores,Estates Management,Pyramid Construction (UK) Ltd,,1458,37688.4
Ministry of Defence,Defence Science and Technology Laboratory,03/06/2011,Sub Contracted Work,Operations,IMPERIAL COLLEGE LONDON,,V - 9000133254 - 00110043,37654.89
Ministry of Defence,Ministry of Defence,01/06/2011,Design services and minor equipment purchases,Defence Equipment & Support,SOMERS TOTALKARE LIMITED,B62 8RP,801731,37649.45
Ministry of Defence,Ministry of Defence,08/06/2011,IT and communication services,Central TLB,RISKHIVE LIMITED,BS48 4PG,804295,37510.29
Ministry of Defence,Ministry of Defence,23/06/2011,Rent and rates,Air Command,BAA BUSINESS SUPPORT CENTRE  LIMITED,G52 4YG,810652,37500
Ministry of Defence,Ministry of Defence,01/06/2011,Fuel for military use,Air Command,CHEVRON BAHRAIN TRADING COMPANY  BSC,,2000011753,37476.38
Ministry of Defence,Ministry of Defence,10/06/2011,Rent and rates,Land Forces,CB RICHARD ELLIS LIMITED,LS1 2HL,805238,37350
Ministry of Defence,Ministry of Defence,08/06/2011,Fuel for military use,Defence Infrastructure Organisation ,ARVAL UK LTD,SN5 6PE,803860,37335.25
Ministry of Defence,Council of Reserve Forces and Cadets Associations,27/05/2011,Grants to Reserves Forces and Cadets Association,Estates Management,MCCarrick Construction,,7255,37299.66
Ministry of Defence,Ministry of Defence,09/06/2011,Payment of utilities,Defence Infrastructure Organisation ,BRITISH GAS TRADING LIMITED,OX4 2JY,804499,37265.93
Ministry of Defence,Defence Science and Technology Laboratory,10/06/2011,IS Support Service,Infrastructure,STERIA LIMITED,,V - 9000133423 - 00110295,37207.92
Ministry of Defence,Council of Reserve Forces and Cadets Associations,18/05/2011,IT and communication services,IT & Comms,SOFTWARE BOX LTD,,9,37201.2
Ministry of Defence,United Kingdom Hydrographic Office,09/06/2011,Computer maintenance & hire,ICT Delivery Business Group,Jeppesen Norway AS  EM,,1500012314,37182.4
Ministry of Defence,Ministry of Defence,02/06/2011,Purchase of inventory and services ,Land Forces,XMA LTD,NG11 7EP,802219,37039.69
Ministry of Defence,Ministry of Defence,10/06/2011,Transport hire charges,Land Forces,BUSVERKEHR OSTWESTFALEN GMBH,,5000057500,36999.17
Ministry of Defence,Ministry of Defence,14/06/2011,IT and communication services,Defence Equipment & Support,VEGA CONSULTING SERVICES LTD,AL7 1TW,807020,36889
Ministry of Defence,Met Office,06/06/2011,Plant And Equipment,Chief Financial Officer,Mitie Infrastructure Ltd,,308184,36847.51
Ministry of Defence,Ministry of Defence,15/06/2011,Development costs for military equipment,Defence Equipment & Support,MBDA UK LIMITED,SG1 2DA,807361,36837.6
Ministry of Defence,Ministry of Defence,03/06/2011,Fees for professional services,Central TLB,SERCO LIMITED,RG27 9UY,802662,36744.05
Ministry of Defence,Ministry of Defence,23/06/2011,General services and support,Defence Equipment & Support,MARSHALL OF CAMBRIDGE AEROSPACE LIMITED,CB5 8RX,810889,36700
Ministry of Defence,Ministry of Defence,08/06/2011,Estate management,Air Command,SODEXO LTD,M50 0AL,804329,36626.57
Ministry of Defence,Met Office,22/06/2011,Plant And Equipment,Science,Aventech Research Inc,,308086,36624.91
Ministry of Defence,Ministry of Defence,14/06/2011,Food and clothing,Defence Infrastructure Organisation ,ARAMARK LTD,LS16 6QY,806568,36599.99
Ministry of Defence,Ministry of Defence,24/06/2011,Externally delivered education and training.,Land Forces,OPEN UNIVERSITY (THE),MK7 6BT,811688,36516
Ministry of Defence,Ministry of Defence,21/06/2011,Estate management,Defence Infrastructure Organisation ,AVENANCE PLC,SK11 6ET,809589,36457
Ministry of Defence,Ministry of Defence,03/06/2011,"Adminstration, claims, compensation and awards",Land Forces,BUNDESANSTALT FUER IMMOBLIENAUFGABEN,,5000057262,36412.98
Ministry of Defence,Defence Science and Technology Laboratory,17/06/2011,Sub Contracted Work,Operations,QINETIQ LIMITED,,V - 9000133667 - 00107121,36289.3
Ministry of Defence,Ministry of Defence,03/06/2011,IT and communication services,Defence Equipment & Support,IBM UNITED KINGDOM LIMITED,PO6 3AE,802430,36138
Ministry of Defence,Ministry of Defence,02/06/2011,Estate management,Defence Infrastructure Organisation ,SODEXO LTD,M50 0AL,802140,36135.04
Ministry of Defence,Ministry of Defence,17/06/2011,Estate management,Air Command,SODEXO LTD,M50 0AL,808771,36103.31
Ministry of Defence,Defence Science and Technology Laboratory,17/06/2011,Sub Contracted Work,Operations,QINETIQ LIMITED,,V - 9000133667 - 00107671,35957.57
Ministry of Defence,Ministry of Defence,03/06/2011,IT and communication services,Navy Command,DEFENCE SCIENCE & TECHNOLOGY LABORATORY,PO14 9HL,802346,35951.38
Ministry of Defence,Ministry of Defence,22/06/2011,Payment of utilities,Defence Equipment & Support,HENTY OIL LTD,L3 0AT,810227,35890.87
Ministry of Defence,Ministry of Defence,08/06/2011,Purchase of inventory and services ,Central TLB,CORPORATE DOCUMENT SERVICES  LIMITED,LS2 7LY,803951,35883.29
Ministry of Defence,United Kingdom Hydrographic Office,13/06/2011,Promotional Materials,"Marketing, CS & Channel Management",Pennant Information Services Ltd,,2000054566,35824.8
Ministry of Defence,Ministry of Defence,28/06/2011,Service and civilian recruitment,Defence Equipment & Support,GATENBYSANDERSON LTD,LS1 2HL,812846,35791.2
Ministry of Defence,Ministry of Defence,09/06/2011,Purchase of inventory and services ,Defence Equipment & Support,CORPORATE DOCUMENT SERVICES  LIMITED,LS2 7LY,804545,35779.55
Ministry of Defence,Defence Science and Technology Laboratory,28/06/2011,Materials & Equipment,Operations,VWR INTERNATIONAL,,V - 9000133946 - 00111613,35738.84
Ministry of Defence,Ministry of Defence,01/06/2011,"Transporation of personnel, freight and travel expenses",Land Forces,RAIL SETTLEMENT PLAN LIMITED,SG1 2YN,801689,35601.7
Ministry of Defence,Ministry of Defence,21/06/2011,IT and communication services,Defence Equipment & Support,COKER LOGISTICS SOLUTIONS INC,,809677,35541.25
Ministry of Defence,Ministry of Defence,24/06/2011,Rent and rates,Navy Command,NB REAL ESTATE LIMITED,W1S 3HQ,811645,35490
Ministry of Defence,Ministry of Defence,29/06/2011,Fees for professional services,Defence Infrastructure Organisation ,ARCHITETTO FIORENZO PETILLO,,5000058510,35435.3
Ministry of Defence,Ministry of Defence,17/06/2011,Purchase of inventory and services ,Defence Equipment & Support,AAH PHARMACEUTICALS LTD,CV2 2TX,808256,35415.19
Ministry of Defence,Ministry of Defence,07/06/2011,Rental of plant and machinery,Defence Equipment & Support,CALUMET PHOTOGRAPHIC LTD,MK7 8AJ,803471,35394.29
Ministry of Defence,Ministry of Defence,13/06/2011,Estate management,Navy Command,OCS GROUP UK LIMITED,LA3 3BJ,806328,35316.44
Ministry of Defence,Ministry of Defence,23/06/2011,Design services and minor equipment purchases,Defence Equipment & Support,SELEX GALILEO LTD,SS14 3EL,811084,35266.8
Ministry of Defence,Ministry of Defence,13/06/2011,Rent and rates,Defence Infrastructure Organisation ,THE HEREFORDSHIRE COUNCIL,HR1 2XW,806482,35215.44
Ministry of Defence,Ministry of Defence,08/06/2011,Estate management,Defence Infrastructure Organisation ,REMONDIS GMBH & CO KG,,5000057404,35195.96
Ministry of Defence,United Kingdom Hydrographic Office,27/06/2011,Raw Material/ Finished Goods,Print & Supply,Antalis McNaughton,,2000054757,35080
Ministry of Defence,Ministry of Defence,20/06/2011,Estate management,Defence Infrastructure Organisation ,ARAMARK LTD,LS16 6QY,808902,35069.92
Ministry of Defence,Ministry of Defence,08/06/2011,Rent and rates,Navy Command,NW1.04 LIMITED,M14 4HB,804233,35034.6
Ministry of Defence,Defence Science and Technology Laboratory,17/06/2011,Sub Contracted Research,Programme Office,ATHENE WORKS LIMITED,,V - 9000133678 - 00106813,35032
Ministry of Defence,Defence Science and Technology Laboratory,07/06/2011,Sub Contracted Work,Operations,"IMPERIAL COLLEGE OF SCIENCE, TECH & MED",,V - 9000133299 - 00105072,35000
Ministry of Defence,Ministry of Defence,20/06/2011,Payment of utilities,Defence Infrastructure Organisation ,GB OILS LIMITED,FK5 4RB,809111,34977.45
Ministry of Defence,Ministry of Defence,23/06/2011,Food and clothing,Defence Equipment & Support,AVENANCE PLC,SK11 6ET,810646,34973.96
Ministry of Defence,Defence Science and Technology Laboratory,17/06/2011,Sub Contracted Research,Programme Office,IGENCE LIMITED,,V - 9000133688 - 00110942,34960
Ministry of Defence,Ministry of Defence,07/06/2011,Transport hire charges,Air Command,BABCOCK LAND (WHITEFLEET MANAGEMENT) LIMITED,BH23 6BS,803428,34948.08
Ministry of Defence,Defence Science and Technology Laboratory,10/06/2011,Professional Services,Operations,SERCO TECHNICAL CONSULTANCY SERVICES,,V - 9000133439 - 00110057,34931.85
Ministry of Defence,Ministry of Defence,10/06/2011,Purchase of inventory and services ,Land Forces,AAH PHARMACEUTICALS LTD,CV2 2TX,805113,34918.33
Ministry of Defence,Ministry of Defence,14/06/2011,Rent and rates,Defence Infrastructure Organisation ,VALE OF GLAMORGAN COUNCIL,CF63 4YN,807018,34852.86
Ministry of Defence,Ministry of Defence,28/06/2011,Food and clothing,Air Command,COTSWOLD OUTDOOR LTD,SN16 9SH,812791,34844.19
Ministry of Defence,Defence Science and Technology Laboratory,10/06/2011,Sub Contracted Research,Programme Office,QINETIQ LIMITED,,V - 9000133475 - 00109750,34844
Ministry of Defence,Ministry of Defence,20/06/2011,Rent and rates,Defence Infrastructure Organisation ,CHERWELL DISTRICT COUNCIL,OX15 4BH,809005,34815.24
Ministry of Defence,Defence Science and Technology Laboratory,17/06/2011,Sub Contracted Work,Operations,GENERAL DYNAMICS UK LIMITED,,V - 9000133621 - 00107978,34782.75
Ministry of Defence,Ministry of Defence,09/06/2011,"Purchase of munitions, other inventory or fuel",Defence Equipment & Support,FUCHS LUBRICANTS (UK) PLC,ST1 5HU,804663,34730.75
Ministry of Defence,Ministry of Defence,15/06/2011,Estate management,Air Command,VT FLAGSHIP LTD,PO6 4PR,807613,34723.7
Ministry of Defence,Ministry of Defence,20/06/2011,Purchase of inventory and services ,Land Forces,AAH PHARMACEUTICALS LTD,CV2 2TX,808865,34722.79
Ministry of Defence,Defence Science and Technology Laboratory,17/06/2011,Sub Contracted Research,Programme Office,QINETIQ LIMITED,,V - 9000133667 - 00108936,34560
Ministry of Defence,Ministry of Defence,20/06/2011,Rent and rates,Defence Infrastructure Organisation ,BRACKNELL FOREST BOROUGH COUNCIL,RG12 1AQ,808950,34542.73
Ministry of Defence,Ministry of Defence,15/06/2011,Fuel for military use,Land Forces,Brunei Shell Marketing Co,,149,34541.54
Ministry of Defence,Ministry of Defence,27/06/2011,Transport hire charges,Land Forces,BABCOCK LAND (WHITEFLEET MANAGEMENT) LIMITED,BH23 6BS,811996,34490.31
Ministry of Defence,Ministry of Defence,20/06/2011,Rent and rates,Defence Infrastructure Organisation ,BRECKLAND COUNCIL,NR19 1EE,808956,34480.09
Ministry of Defence,Council of Reserve Forces and Cadets Associations,03/06/2011,Rent and rates,Infrastructure,Canterbury City Council,,1778,34473.5
Ministry of Defence,Ministry of Defence,27/06/2011,Estate management,Defence Infrastructure Organisation ,SODEXO LTD,M50 0AL,812575,34426.06
Ministry of Defence,Ministry of Defence,27/06/2011,Purchase of inventory and services ,Defence Equipment & Support,AAH PHARMACEUTICALS LTD,CV2 2TX,811938,34422.17
Ministry of Defence,Ministry of Defence,24/06/2011,"Transporation of personnel, freight and travel expenses",Central TLB,FOREIGN & COMMONWEALTH OFFICE,MK10 1PX,2.00E+11,34415.3
Ministry of Defence,Ministry of Defence,17/06/2011,"Purchase of munitions, other inventory or fuel",Defence Equipment & Support,UNIVAR LIMITED,BD1 5BD,808833,34388.21
Ministry of Defence,Ministry of Defence,22/06/2011,Fees for professional services,Central TLB,KPMG LLP,WD17 1DE,810264,34376
Ministry of Defence,Defence Science and Technology Laboratory,24/06/2011,Sub Contracted Research,Programme Office,BAE SYSTEMS (OPERATIONS) LIMITED,,V - 9000133746 - 00111956,34368
Ministry of Defence,Defence Science and Technology Laboratory,17/06/2011,Materials & Equipment,Operations,BIOPHARMA TECHNOLOGY LIMITED,,V - 9000133597 - 00108749,34322
Ministry of Defence,Ministry of Defence,20/06/2011,Fees for professional services,Land Forces,LGC LTD,TW11 0LY,809186,34316.9
Ministry of Defence,Ministry of Defence,23/06/2011,Fuel for military use,Air Command,EXXONMOBIL PETROLEUM & CHEMICAL BVBA,KT22 8UX,2000011984,34245.39
Ministry of Defence,Ministry of Defence,13/06/2011,Rent and rates,Defence Infrastructure Organisation ,EAST LINDSEY DISTRICT COUNCIL,LN11 8XN,806082,34234.53
Ministry of Defence,Ministry of Defence,28/06/2011,Administration ,Central TLB,DEPARTMENT FOR WORK AND PENSIONS,FY5 3TA,812798,34164.78
Ministry of Defence,Ministry of Defence,20/06/2011,Estate management,Air Command,WESSEX WATER SERVICES LTD,BA2 7WW,809538,34148.16
Ministry of Defence,Ministry of Defence,13/06/2011,Fees for professional services,Land Forces,LINE COMMUNICATIONS GROUP  LIMITED,W2 5RH,806215,34137
Ministry of Defence,Ministry of Defence,10/06/2011,Rent and rates,Defence Infrastructure Organisation ,GREENWICH COUNCIL,SE18 6BU,805399,34104.01
Ministry of Defence,Ministry of Defence,15/06/2011,Purchase of inventory and services ,Land Forces,CARWOOD MOTOR UNITS LTD,CV3 2RQ,807160,34056.11
Ministry of Defence,Ministry of Defence,17/06/2011,Design services and minor equipment purchases,Navy Command,BABCOCK LAND (WHITEFLEET MANAGEMENT) LIMITED,BH23 6BS,808308,34050.46
Ministry of Defence,Ministry of Defence,28/06/2011,Rent and rates,Defence Infrastructure Organisation ,NORTH DEVON DISTRICT COUNCIL,EX31 1EA,813033,34041.72
Ministry of Defence,Ministry of Defence,27/06/2011,Design services and minor equipment purchases,Defence Equipment & Support,SELEX SYSTEMS INTEGRATION LTD,AL7 1TW,812562,34030.55
Ministry of Defence,Ministry of Defence,17/06/2011,Design services and minor equipment purchases,Defence Equipment & Support,CONWAY PACKING SERVICES LTD,DY4 7UD,808401,34024.76
Ministry of Defence,Defence Science and Technology Laboratory,17/06/2011,Sub Contracted Research,Programme Office,ADVANCED DEFENCE MATERIALS LIMITED,,V - 9000133630 - 00105580,34000
Ministry of Defence,Ministry of Defence,29/06/2011,Medical treatment & stores and welfare services.,Land Forces,MED TEAM PRIMARY CARE SERVICES LIMITED,SA2 9BT,813517,33999.75
Ministry of Defence,Defence Science and Technology Laboratory,21/06/2011,Sub Contracted Work,Operations,LOCKHEED MARTIN UK IS&S LIMITED,,V - 9000133706 - 00111844,33961
Ministry of Defence,Ministry of Defence,17/06/2011,Estate management,Defence Infrastructure Organisation ,ARAMARK LTD,LS16 6QY,808286,33956.34
Ministry of Defence,Ministry of Defence,01/06/2011,"Transporation of personnel, freight and travel expenses",Air Command,Davis Monthan Lodgings,,CO AP03 012,33954.54
Ministry of Defence,Council of Reserve Forces and Cadets Associations,15/06/2011,Purchase of buildings and military equipment ,Capital Expenditure,Stokes Solicitors,,2161,33945.52
Ministry of Defence,Ministry of Defence,29/06/2011,Rental of plant and machinery,Land Forces,CANON (UK) LIMITED,RH2 8BF,813304,33892.69
Ministry of Defence,Ministry of Defence,10/06/2011,"Transporation of personnel, freight and travel expenses",Central TLB,DEFENCE MANAGEMENT (WATCHFIELD) LIMITED,SN6 8TS,805296,33887.04
Ministry of Defence,Ministry of Defence,27/06/2011,Purchase of inventory and services ,Land Forces,C F ANDERSON & SON LIMITED,C06 1HD,812063,33867.38
Ministry of Defence,Ministry of Defence,06/06/2011,Payment of utilities,Defence Infrastructure Organisation ,DEPARTMENT FOR REGIONAL DEVELOPMENT,BT1 9DJ,32538,33856.55
Ministry of Defence,Ministry of Defence,28/06/2011,Payment of utilities,Defence Infrastructure Organisation ,NIERSVERBAND VIERSEN,,5000058500,33817.39
Ministry of Defence,Ministry of Defence,03/06/2011,"Transporation of personnel, freight and travel expenses",Defence Equipment & Support,CITYSPRINT (UK) LIMITED,RH1 1SH,802324,33811.91
Ministry of Defence,Ministry of Defence,23/06/2011,Payment of utilities,Defence Infrastructure Organisation ,GB OILS LIMITED,FK5 4RB,810806,33799.03
Ministry of Defence,Defence Science and Technology Laboratory,24/06/2011,Sub Contracted Work,Programme Office,H W COMMUNICATIONS LIMITED,,V - 9000133894 - 00110371,33708.8
Ministry of Defence,Ministry of Defence,28/06/2011,Purchase of buildings and military equipment ,Defence Infrastructure Organisation ,BEZIRKSREGIERUNG DUESSELDORF,,5000058488,33691.42
Ministry of Defence,Ministry of Defence,15/06/2011,"Purchase of munitions, other inventory or fuel",Defence Equipment & Support,WESSEX PETROLEUM LTD,SO45 3NY,807618,33628.9
Ministry of Defence,Ministry of Defence,02/06/2011,Fees for professional services,Defence Infrastructure Organisation ,CARILLIONENTERPRISE LIMITED,B75 7RL,801855,33592.28
Ministry of Defence,Ministry of Defence,16/06/2011,"Purchase of munitions, other inventory or fuel",Defence Equipment & Support,NORTHERN DIVER (INTERNATIONAL) LTD,WN6 9AE,808025,33552.72
Ministry of Defence,Ministry of Defence,03/06/2011,Purchase of buildings and military equipment ,Defence Infrastructure Organisation ,OBERFINANZDIREKTION NIEDERSACHSEN,,5000057284,33486.22
Ministry of Defence,Ministry of Defence,10/06/2011,Rent and rates,Land Forces,YORKSHIRE BUILDING SOCIETY,BD5 8LJ,805866,33454.5
Ministry of Defence,Ministry of Defence,14/06/2011,Purchase of inventory and services ,Land Forces,XMA LTD,NG11 7EP,807053,33447.78
Ministry of Defence,Ministry of Defence,23/06/2011,Design services and minor equipment purchases,Defence Equipment & Support,SECOMAK LIMITED,WD6 3TJ,811082,33434.71
Ministry of Defence,Ministry of Defence,02/06/2011,Food and clothing,Defence Equipment & Support,KERRY FOODS LIMITED,,32512,33365.88
Ministry of Defence,Ministry of Defence,08/06/2011,Estate management,Navy Command,CAPITA SYMONDS LTD,DL1 9HN,803924,33325
Ministry of Defence,Ministry of Defence,17/06/2011,Externally delivered education and training.,Land Forces,ARMY CATERING TRAINING TRUST,SO21 2RG,808290,33235.02
Ministry of Defence,Ministry of Defence,17/06/2011,Purchase of inventory and services ,Land Forces,AAH PHARMACEUTICALS LTD,CV2 2TX,808256,33227.28
Ministry of Defence,Ministry of Defence,20/06/2011,Rent and rates,Defence Infrastructure Organisation ,BABERGH DISTRICT COUNCIL,IP7 6SJ,808924,33212.06
Ministry of Defence,Ministry of Defence,01/06/2011,Design services and minor equipment purchases,Central TLB,Multinational Logistic Service Overseas ,,12,33182.31
Ministry of Defence,Ministry of Defence,06/06/2011,Payment of utilities,Defence Infrastructure Organisation ,SSE ENERGY SUPPLY LIMITED,PH1 3AQ,803307,33132.46
Ministry of Defence,Defence Science and Technology Laboratory,24/06/2011,Facility Management Costs,Infrastructure,QINETIQ LIMITED,,V - 9000133878 - 00111837,33099
